Workbook

Sheet Notes
A1: TrendPersistenceRate.xlsm; Traders Tip spreadsheet created for the February 2021 Issue
A2: Coded beginning 2020-December-5 by Ronald McAllister (rpmac_xltt@sprynet.com)
A4: This Workbook demonstrates an EXCEL version of the ideas presented
A5: by Richard Poster, PhD in an article titled "Trend Strength: Measuring The Duration Of A Trend"
A6: which originally appeared in the February 2021 issue of
A7: "Technical Analysis of Stocks and Commodities" magazine.
A9: * * * * * * * * * * * * * * * *
A11: Development Notes:
A28: New for August 2020
A29: Restructured my Symbol-Not-Found detection and now stop further processing in the not found case
A31: New with the May 2020 version of my T-Tips template: VBA to implement a "Perpetual" U.S. Markets Closed Holiday Calendar.
A33: Why we need one: The Yahoo Finance recently has begun having occasional filtration problems where bars for U.S. Market Closed Holidays
A34: make their way onto the Historical Data web page and into the Historical Data download.
A36: While testing this May 2020 spreadsheet with different symbols, I found that I sometimes had bars with the text "null" in the price fields.
A37: My code always translates the "null" text price values to zeros.
A38: The resulting zeros cause real problems with indicator computations and the amount of blank space below price candles on the price chart.
A40: "null" price bars can be valid for very lightly traded penny sheet symbols which may not trade every day the markets are open.
A41: But is definitely not normal for symbols on the big boards.
A43: A closer look determined that these "bars" were for holiday dates when the US markets are normally closed.
A44: I found it interesting that some times the next download for the same symbol would not contain any of these "holiday" bars. Weird!
A46: My approach here was to write code to determine if the DATE on a null price values bar falls on one of the 9 market closed U.S. Holidays.
A47: If the bar date corresponds to one of these market closed holidays, I drop the bar before it reaches the InputPriceData tab.
A48: If the date is not a holiday, I let the bar through with the resulting zero values.
A50: No messy tables to update over the years as there are good solid rules that can be used in VBA or any other programming language to determine
A51: the dates for U.S. Market Closed Holidays for any given calendar year.
A53: This workbook contains and uses VBA macros and may take advantage of user defined VBA Class structures.
A54: Input Data:
A55: The data in this workbook is sorted date-descending (most recent date at the top). All cell formulas and
A56: VBA routines are built assuming this date sequence.
A58: ERROR 9 (already fixed in this spreadsheet)
A59: On or about Jan 29, 2020 Yahoo Finance changed the format of the split factor expression used their historical data downloads.
A60: The Split expression went from using "/" as in "New Share Number/Old Share Number",
A61: to using ":" as in "New Share Number:Old Share Number".
A62: This caused the then current version of my VBA code to fail with a "Runtime Error '9': subscript out of range".
A64: Fix for this ERROR 9
A65: For T-Tip spreadsheets from September 2018 up to present:
A66: Selecting the Debug option takes one into the VBA at the code line which causes the failure:
A67: CellArray(C_A_RowNdx, C_A_ColNdx + 1) = SplitFactors(1)
A68: Two lines above the failing VBA line is a line that reads:
A69: SplitFactors = Split(CsvColumns(CsvColNdx), "/")
A70: Change the / to a :
A71: The corrected line should now read
A72: SplitFactors = Split(CsvColumns(CsvColNdx), ":")
A74: If you are fixing several spreadsheets and do not want to use the failure to find the fix location,
A75: you can use VBA’s FIND dialog (Ctrl F) to look for the substring
A76: SplitFactors =
A77: Do include one space and the equal sign in your FIND string
A78: Select the "Current Project" option
A79: There should only be one instance.
A81: T-Tip spreadsheets prior to the September 2018 spreadsheet do not hard fail.
A83: They just get weird results in the split columns of the Input Price Data tab (soft fail).
A84: These older spreadsheets used different data retrieval and formatting logic.
A86: To fix these older spreadsheets:
A87: In the VBA editor, use find (CTRL-F).
A88: Select the "Current Project" option, and search for the following:
A89: OtherChar:="/"
A90: You are looking for a hit in a line reading:
A91: Other:=True, OtherChar:="/", _
A92: This line is part of a multiline block of code starting with a line that reads:
A93: SplitRange.Offset(0, 1).Resize(SpRows, 1).TextToColumns
A94: Change the / to a : so that the line reads
A95: Other:=True, OtherChar:=":", _
A98: 2019-04-04 Finally came up with a mechanism to align the left location and overall length of the cursor scroll bar so that the left most and right most
A99: scroll bar thumb positions visually align reasonably well with the left and right ends of the price chart horizontal axis.
A100: Makes it a little easier to visually align the Thumb and thus the cursor with points of interest on the charts.
A102: Older:
B103: My sincere apologies to our Macintosh based readers: Neither MSXML nor WinHttpRequest are supported in your environment. So as it stands this version of the spreadsheet will not work for you.
B104: See "Why this approach does not work for Macintosh" below.
B105: I am investigating cURL as a non-Querytable based approach for the Macintosh environment.
A107: The new Yahoo Finance history download interface has changed rather radically. The biggest hurdle being a pseudo-security requirement of adding a
B108: crumb character string to any URL requesting any type of history download. That crumb must match up (by way of some sort of hash algorithm) with
B109: the Yahoo Finance cookie that must also be sent with any request to the new Yahoo History down load interface.
B111: A crumb value is returned, buried in the HTML for any of what I call the "entry level" Yahoo Finance web pages (no crumb security requirement for entry level pages).
B112: A crumb may come with other Yahoo Finance pages. A crumb may even accompany some of the secured pages as well. I have not checked.
B114: Entry level pages are the top level pages of the various Yahoo Finance dialogs and include: Quote Lookup, Stock Summary Quote, and any of the pages
B115: with links in the horizontal row with the "Summary" link on the quote summary page such as Options, Historical Data, and the rest.
B117: To date I have found no way to get at this crumb value using any native EXCEL capabilities.
B119: So this crumb requirement effectively shuts out any solution that attempts to exclusively use built-in facilities of EXCEL, which is to say a purely Querytables solution.
B121: The approach built for this Traders Tip spreadsheet uses WINHTTP calls to Load the InputPriceData worksheet.
B123: First I call to get the HTML text for the Yahoo Summary Quote page using the requested symbol. From this HTML text I extract the full company name,
B124: the market it trades, the market status and time stamp, and finally the associated crumb string. There is a bunch of other useful bits buried in this HTML
B125: text that do not necessarily appear on the web page your browser presents. Perhaps some day I will go after and build a worksheet with these other bits.
B127: Next I add the freshly extracted crumb string to the URLs I use in three separate WINHTTP calls to retrieve Price history, Split history, and Dividend history respectively.
B129: From there VBA code proceeds as in the past to fill in the cell formulas and formatting that make the "prettied up" InputPriceData sheet.
A131: Why this approach works for Windows:
B132: WINHTTP maintains a temporary computer memory cache where cookies are maintained for as long as the WINHTTP object is instantiated.
B133: WINHTTP updates this cache any time a "set cookie" header accompanies a web response.
B134: Subsequent WINHTTP calls automatically search this cache for cookies and add any "appropriate" cookies to the headers
B135: of any web requests that get sent out.
B136: This cookie handling automation means that even if the response to our WINHTTP call for the Summary web page includes a new version of
B137: the Yahoo Finance cookie, the imbedded Crumb value will always match the cookie newly installed in the cache!
A140: Why this approach does not work for Macintosh:
B141: For what it is worth, the Macintosh version of the MS Office suite of products do in fact maintain a special, shared amongst themselves only, cookie cache.
B142: They automate cookie handling into and from this cache JUST for the Office products and any Querytable activity they might originate.
B144: This cache is not tied to, nor shared with, any browser that might be installed on the MAC. And I have not found anything with HTTP capabilities similar to
B145: MSXML that can work with that Office product cookie cache.
B147: When working in the MAC EXCEL environment, I have not yet become conversant with a Mac based WINHTTP like capability.
B148: So l currently have no mechanism to replicate the non-Querytable data retrieval process I am using in Windows environments.
B149: A software product called CURL has been suggested as providing this capability in the MAC environment.
B150: A version of CURL is available for the Windows So some day I may explore its capabilities and how to access those capabilities from VBA.
A152: Calculation and Chart Worksheet Usage Comments:
C153: In General, Items in Bolded BLUE are items you may freely change to play what-if games.
C154: Be sure to have a backup copy of the spreadsheet before you alter anything else.
A156: Features carried forward from the June 2016 version of my T-Tips Template
A157: Added a pair of buttons near cell F12 that will allow the user to step the charting window forward or backward one bar for each click.
A158: I find this to be a good way to test my understanding of the author's ideas as I step through the evolution of the price behavior and the indicators.
B160: First: In the "Help! I would like to plot data" area.
B161: Added button to resolve #NA problems by locating the bar in the input data with a slightly more recent date than what the user actually requested.
B162: I find this particularly useful when I have a general idea of where I want to be date wise. Now I can pick a set of dates "out of the air".
B163: If either (or both) of my date specifications fall between dates that are available in the price history,
B164: this button will resolve them to the dates of the nearest, slightly more recent input bars.
B165: I can then refine my data interval search as necessary from there.
B166: Really great when working with Weekly or Monthly studies!
C167: 2016Jun11 - added logic to the "I would like to chart.." button to detect #N/A values and terminate
C168: gracefully with a message instead of blowing up in the charting logic.
B170: Second: In the "Price Chart Windowing Controls" area. (A11 and A12)
B171: When retrieving data for a new symbol or when changing from daily to weekly or monthly data, there was the possibility that the
B172: residual settings in A11 and A12 would fall outside of the number bars available on the input data tab after the new data retrieval.
B173: In certain combinations, this could create a serious error in the chart sizing logic and crash the spreadsheet.
B174: I have taken this opportunity to update the validity checking logic used in the chart sizing macros
B175: to adjust these values as necessary so that they fall within the boundaries of the newly retrieved input data.
A176: Features carried forward from the October 2015 Traders Tips Template
B177: Improved automation: changes to any of the following will automatically initiate calculations appropriate to reflect a change.
C178: Changing either of cells A11 (pan) or A12 (zoom) will automatically initiate the same chart sizing macros that the manual
C179: "Set Chart" button uses.

Sheet InputPriceData
A1: NVIDIA Corporation (NVDA) -NasdaqGS (Daily) | B1: NVIDIA Corporation (NVDA)
M2: To retrieve data for symbols traded on non US Exchanges, | II2: 241.79
A3: Request Online Yahoo History for: | F3: Market State == > | G3: At close: | H3: 16:00:00 | I3: EST | M3: you will need to append the dot-suffix for the exchange to the symbol.
A4: Symbol | B4: NVDA | D4: Valid | I4: =OFFSET(I4,-2,0,1,1) -> 0 | M4: The following links provide a description of how to use the exchange suffix
A5: From | B5: 1950-10-01 | D5: Data | M5: along with a list of suffixes for the major world exchanges. | AD5: Trailing 12 Div return (Cur Close)
A6: To | B6: =NOW() -> 2020-12-14T19:25:31 | D6: Types | E6: =VLOOKUP(B7,D7:E10,2,FALSE) -> d | M6: https://help.yahoo.com/kb/finance/SLN2310.html
A7: Data Type | B7: Daily | D7: Daily | E7: d | M7: And
A8: Crumb | B8: pW4KsZTJeBy | D8: Weekly | E8: w | M8: https://www.stockmarketeye.com/users-guide/ticker-symbols-and-data-providers/data-providers.html
A9: Available Data | D9: Monthly | E9: m
A10: Bar Count: | B10: 5511 | M10: You may search on “exchange suffixes” for additional discussions | AD10: =OFFSET(AC15,1,0,1,1)/OFFSET(N15,1,0,1,1) -> 0.001202216587
A11: From: | B11: =IF(B10<=0,"",OFFSET(B15,B10,IF(HistReqDataType="v",1,0),1,1)) -> 1999-01-22 | W11: Trailing 12 Month Dividend Returns
A12: To: | B12: =IF(B10<=0,"",IF(HistReqDataType="v",OFFSET(B15,2,1,1,1),OFFSET(B15,1,0,1,1))) -> 2020-12-14 | W12: Raw Close price on Dividend date | X12: Div Year and Month | Y12: Looking for year ago Div Year and Month | Z12: Year ago Div Date we found | AA12: row offset to year ago div Date | AB12: Same month flag | AC12: Trailing 12 Div Total | AD12: Trailing 12 Div return
Q13: Split History | S13: 5 | T13: Running | U13: Dividend History
B14: Raw Data Values | H14: Adjusted | I14: Price Adjust | J14: Vol Adjust | K14: Adjusted Values | P14: Last | Q14: Effective | R14: Shares | T14: Vol Adjust | V14: 33
A15: RelRow | B15: Date | C15: Open | D15: High | E15: Low | F15: Close | G15: Volume | H15: Close | I15: Factor | J15: Factor | K15: Open | L15: High | M15: Low | N15: Close | O15: Volume | P15: Trade | Q15: 44180 | R15: New | S15: Old | T15: 1 | U15: Date | V15: $ / Share
A16: 1 | B16: 2020-12-14 | C16: 523.515015 | D16: 535.549988 | E16: 523.099976 | F16: 532.349976 | G16: 6580666 | H16: 532.349976 | I16: =IF(F16=0,1,H16/F16) -> 1 | J16: =INDEX(OFFSET($T$15,0,0,$S$13+1,1),MATCH(B16,OFFSET($Q$15,0,0,$S$13+1,1),-1)) -> 1 | K16: =ROUND($I16*C16,2) -> 523.52 | L16: =ROUND($I16*D16,2) -> 535.55 | M16: 523.1 | N16: 532.35 | O16: =G16*J16 -> 6580666 | Q16: 2007-09-11 | R16: 3 | S16: 2 | T16: 1.5 | U16: 2020-12-03 | V16: 0.16 | W16: =(INDEX(OFFSET($F$15,1,0,$B$10,1),MATCH(U16,OFFSET($B$15,1,0,$B$10,1),-1))) -> 535.840027 | X16: =YEAR(U16)&RIGHT("0"&MONTH(U16),2) -> 202012 | Y16: =YEAR(U16)-1&RIGHT("0"&MONTH(U16),2) -> 201912 | Z16: =OFFSET(U15,AA16,0,1,1) -> 2020-02-27 | AA16: =MATCH(Y16,OFFSET($X$15,A16,0,$V$14+1-A16,1),-1) -> 4 | AB16: =IF(OR(AND(YEAR(U16)=YEAR(Z16),MONTH(U16)=MONTH(Z16)),MONTH(U16)=MONTH(Z16)),1,0) -> 0 | AC16: =(V16+IF(AA16-AB16=0,0,IFERROR(SUM(OFFSET(V16,1,0,AA16-AB16-1,1)),0))) -> 0.64 | AD16: =AC16/(INDEX(OFFSET($F$15,1,0,$B$10,1),MATCH(U16,OFFSET($B$15,1,0,$B$10,1),-1))) -> 0.001194386324
A17: 2 | B17: 2020-12-11 | C17: 518.690002 | D17: 520.799988 | E17: 512.919983 | F17: 520.530029 | G17: 5228600 | H17: 520.530029 | I17: =IF(F17=0,1,H17/F17) -> 1 | J17: =INDEX(OFFSET($T$15,0,0,$S$13+1,1),MATCH(B17,OFFSET($Q$15,0,0,$S$13+1,1),-1)) -> 1 | K17: =ROUND($I17*C17,2) -> 518.69 | L17: =ROUND($I17*D17,2) -> 520.8 | M17: =ROUND($I17*E17,2) -> 512.92 | N17: =ROUND($I17*F17,2) -> 520.53 | O17: =G17*J17 -> 5228600 | Q17: 2006-04-07 | R17: 2 | S17: 1 | T17: 3 | U17: 2020-09-01 | V17: 0.16 | W17: =(INDEX(OFFSET($F$15,1,0,$B$10,1),MATCH(U17,OFFSET($B$15,1,0,$B$10,1),-1))) -> 552.840027 | X17: =YEAR(U17)&RIGHT("0"&MONTH(U17),2) -> 202009 | Y17: =YEAR(U17)-1&RIGHT("0"&MONTH(U17),2) -> 201909 | Z17: =OFFSET(U16,AA17,0,1,1) -> 2019-11-27 | AA17: =MATCH(Y17,OFFSET($X$15,A17,0,$V$14+1-A17,1),-1) -> 4 | AB17: =IF(OR(AND(YEAR(U17)=YEAR(Z17),MONTH(U17)=MONTH(Z17)),MONTH(U17)=MONTH(Z17)),1,0) -> 0 | AC17: =(V17+IF(AA17-AB17=0,0,IFERROR(SUM(OFFSET(V17,1,0,AA17-AB17-1,1)),0))) -> 0.64 | AD17: =AC17/(INDEX(OFFSET($F$15,1,0,$B$10,1),MATCH(U17,OFFSET($B$15,1,0,$B$10,1),-1))) -> 0.001157658579
A18: 3 | B18: 2020-12-10 | C18: 514.76001 | D18: 522.75 | E18: 513.97998 | F18: 518.890015 | G18: 5194100 | H18: 518.890015 | I18: 1 | J18: 1 | K18: 514.76 | L18: 522.75 | M18: 513.98 | N18: 518.89 | O18: 5194100 | Q18: 2001-09-17 | R18: 2 | S18: 1 | T18: 6 | U18: 2020-06-04 | V18: 0.16 | W18: 350.660004 | X18: 202006 | Y18: 201906 | Z18: 2019-08-28 | AA18: 4 | AB18: 0 | AC18: 0.64 | AD18: 0.001825129734
A19: 4 | B19: 2020-12-09 | C19: 532.02002 | D19: 536.559998 | E19: 514.72998 | F19: 517.22998 | G19: 10032500 | H19: 517.22998 | I19: 1 | J19: 1 | K19: 532.02 | L19: 536.56 | M19: 514.73 | N19: 517.23 | O19: 10032500 | Q19: 2001-09-12 | R19: 2 | S19: 1 | T19: 12 | U19: 2020-02-27 | V19: 0.16 | W19: 252.600006 | X19: 202002 | Y19: 201902 | Z19: 2019-02-28 | AA19: 5 | AB19: 1 | AC19: 0.64 | AD19: 0.002533649979
A20: 5 | B20: 2020-12-08 | C20: 543.400024 | D20: 543.950012 | E20: 531.26001 | F20: 534 | G20: 6798000 | H20: 534 | I20: 1 | J20: 1 | K20: 543.4 | L20: 543.95 | M20: 531.26 | N20: 534 | O20: 6798000 | Q20: 2000-06-27 | R20: 2 | S20: 1 | T20: 24 | U20: 2019-11-27 | V20: 0.16 | W20: 218.240005 | X20: 201911 | Y20: 201811 | Z20: 2018-11-29 | AA20: 5 | AB20: 1 | AC20: 0.64 | AD20: 0.002932551252
A21: 6 | B21: 2020-12-07 | C21: 544.049988 | D21: 549.25 | E21: 540 | F21: 544.27002 | G21: 5581100 | H21: 544.27002 | I21: 1 | J21: 1 | K21: 544.05 | L21: 549.25 | M21: 540 | N21: 544.27 | O21: 5581100 | U21: 2019-08-28 | V21: 0.16 | W21: 161.220001 | X21: 201908 | Y21: 201808 | Z21: 2018-08-29 | AA21: 5 | AB21: 1 | AC21: 0.64 | AD21: 0.003969730778
A22: 7 | B22: 2020-12-04 | C22: 537.940002 | D22: 542.400024 | E22: 535.549988 | F22: 542.330017 | G22: 5056100 | H22: 542.330017 | I22: 1 | J22: 1 | K22: 537.94 | L22: 542.4 | M22: 535.55 | N22: 542.33 | O22: 5056100 | U22: 2019-05-30 | V22: 0.16 | W22: 139.110001 | X22: 201905 | Y22: 201805 | Z22: 2018-05-23 | AA22: 5 | AB22: 1 | AC22: 0.63 | AD22: 0.004528790134
A23: 8 | B23: 2020-12-03 | C23: 543.5 | D23: 546.400024 | E23: 533.159973 | F23: 535.840027 | G23: 4988000 | H23: 535.840027 | I23: 1 | J23: 1 | K23: 543.5 | L23: 546.4 | M23: 533.16 | N23: 535.84 | O23: 4988000 | U23: 2019-02-28 | V23: 0.16 | W23: 154.259995 | X23: 201902 | Y23: 201802 | Z23: 2018-02-22 | AA23: 5 | AB23: 1 | AC23: 0.62 | AD23: 0.004019188514
A24: 9 | B24: 2020-12-02 | C24: 534.02002 | D24: 546.940002 | E24: 529.369995 | F24: 541.780029 | G24: 7084000 | H24: 541.619995 | I24: 0.9997046144 | J24: 1 | K24: 533.86 | L24: 546.78 | M24: 529.21 | N24: 541.62 | O24: 7084000 | U24: 2018-11-29 | V24: 0.16 | W24: 157.360001 | X24: 201811 | Y24: 201711 | Z24: 2017-11-22 | AA24: 5 | AB24: 1 | AC24: 0.61 | AD24: 0.003876461592
A25: 10 | B25: 2020-12-01 | C25: 539.690002 | D25: 541.150024 | E25: 529.130005 | F25: 535.599976 | G25: 7439300 | H25: 535.441772 | I25: 0.9997046228 | J25: 1 | K25: 539.53 | L25: 540.99 | M25: 528.97 | N25: 535.44 | O25: 7439300 | U25: 2018-08-29 | V25: 0.15 | W25: 278.48999 | X25: 201808 | Y25: 201708 | Z25: 2017-08-22 | AA25: 5 | AB25: 1 | AC25: 0.6 | AD25: 0.002154476001
A26: 11 | B26: 2020-11-30 | C26: 530.599976 | D26: 536.5 | E26: 518.890015 | F26: 536.059998 | G26: 7173800 | H26: 535.901672 | I26: 0.9997046487 | J26: 1 | K26: 530.44 | L26: 536.34 | M26: 518.74 | N26: 535.9 | O26: 7173800 | U26: 2018-05-23 | V26: 0.15 | W26: 247.539993 | X26: 201805 | Y26: 201705 | Z26: 2017-05-19 | AA26: 5 | AB26: 1 | AC26: 0.59 | AD26: 0.002383453247
A27: 12 | B27: 2020-11-27 | C27: 535 | D27: 536.299988 | E27: 526.820007 | F27: 530.450012 | G27: 4181900 | H27: 530.293335 | I27: 0.9997046338 | J27: 1 | K27: 534.84 | L27: 536.14 | M27: 526.66 | N27: 530.29 | O27: 4181900 | U27: 2018-02-22 | V27: 0.15 | W27: 242.149994 | X27: 201802 | Y27: 201702 | Z27: 2017-02-22 | AA27: 5 | AB27: 1 | AC27: 0.58 | AD27: 0.00239520964
A28: 13 | B28: 2020-11-25 | C28: 521.299988 | D28: 530.780029 | E28: 520.799988 | F28: 529.390015 | G28: 6497900 | H28: 529.233643 | I28: 0.9997046185 | J28: 1 | K28: 521.15 | L28: 530.62 | M28: 520.65 | N28: 529.23 | O28: 6497900 | U28: 2017-11-22 | V28: 0.15 | W28: 214.929993 | X28: 201711 | Y28: 201611 | Z28: 2016-11-23 | AA28: 5 | AB28: 1 | AC28: 0.57 | AD28: 0.002652026327
A29: 14 | B29: 2020-11-24 | C29: 525.700012 | D29: 526.47998 | E29: 515.400024 | F29: 518.309998 | G29: 8662500 | H29: 518.156921 | I29: 0.9997046613 | J29: 1 | K29: 525.54 | L29: 526.32 | M29: 515.25 | N29: 518.16 | O29: 8662500 | U29: 2017-08-22 | V29: 0.14 | W29: 162.550003 | X29: 201708 | Y29: 201608 | Z29: 2016-08-23 | AA29: 5 | AB29: 1 | AC29: 0.56 | AD29: 0.003445093754
A30: 15 | B30: 2020-11-23 | C30: 526.849976 | D30: 535.299988 | E30: 520.619995 | F30: 525.599976 | G30: 9033900 | H30: 525.444763 | I30: 0.9997046937 | J30: 1 | K30: 526.69 | L30: 535.14 | M30: 520.47 | N30: 525.44 | O30: 9033900 | U30: 2017-05-19 | V30: 0.14 | W30: 136 | X30: 201705 | Y30: 201605 | Z30: 2016-05-24 | AA30: 5 | AB30: 1 | AC30: 0.535 | AD30: 0.003933823529
A31: 16 | B31: 2020-11-20 | C31: 538.159973 | D31: 539.780029 | E31: 522.599976 | F31: 523.51001 | G31: 8500500 | H31: 523.355408 | I31: 0.9997046819 | J31: 1 | K31: 538 | L31: 539.62 | M31: 522.45 | N31: 523.36 | O31: 8500500 | U31: 2017-02-22 | V31: 0.14 | W31: 110.760002 | X31: 201702 | Y31: 201602 | Z31: 2016-02-29 | AA31: 5 | AB31: 1 | AC31: 0.51 | AD31: 0.004604550296
A32: 17 | B32: 2020-11-19 | C32: 528.51001 | D32: 539.5 | E32: 524 | F32: 537.609985 | G32: 14148400 | H32: 537.451233 | I32: 0.9997047079 | J32: 1 | K32: 528.35 | L32: 539.34 | M32: 523.85 | N32: 537.45 | O32: 14148400 | U32: 2016-11-23 | V32: 0.14 | W32: 93.970001 | X32: 201611 | Y32: 201511 | Z32: 2015-11-18 | AA32: 5 | AB32: 1 | AC32: 0.485 | AD32: 0.005161221612
A33: 18 | B33: 2020-11-18 | C33: 538.609985 | D33: 544.22998 | E33: 527.400024 | F33: 537.150024 | G33: 12773100 | H33: 536.991394 | I33: 0.9997046821 | J33: 1 | K33: 538.45 | L33: 544.07 | M33: 527.24 | N33: 536.99 | O33: 12773100 | U33: 2016-08-23 | V33: 0.115 | W33: 62.91 | X33: 201608 | Y33: 201508 | Z33: 2015-08-18 | AA33: 5 | AB33: 1 | AC33: 0.46 | AD33: 0.007312033063
A34: 19 | B34: 2020-11-17 | C34: 542.099976 | D34: 543.849976 | E34: 532.150024 | F34: 536.890015 | G34: 7800700 | H34: 536.731445 | I34: 0.9997046509 | J34: 1 | K34: 541.94 | L34: 543.69 | M34: 531.99 | N34: 536.73 | O34: 7800700 | U34: 2016-05-24 | V34: 0.115 | W34: 45.360001 | X34: 201605 | Y34: 201505 | Z34: 2015-05-19 | AA34: 5 | AB34: 1 | AC34: 0.443 | AD34: 0.009766313718
A35: 20 | B35: 2020-11-16 | C35: 526.900024 | D35: 545.97998 | E35: 526.23999 | F35: 540.609985 | G35: 10344400 | H35: 540.450317 | I35: 0.9997046521 | J35: 1 | K35: 526.74 | L35: 545.82 | M35: 526.08 | N35: 540.45 | O35: 10344400 | U35: 2016-02-29 | V35: 0.115 | W35: 31.360001 | X35: 201602 | Y35: 201502 | Z35: 2015-02-24 | AA35: 5 | AB35: 1 | AC35: 0.426 | AD35: 0.01358418324
A36: 21 | B36: 2020-11-13 | C36: 545.090027 | D36: 546.75 | E36: 522.369995 | F36: 531.880005 | G36: 8657800 | H36: 531.7229 | I36: 0.9997046232 | J36: 1 | K36: 544.93 | L36: 546.59 | M36: 522.22 | N36: 531.72 | O36: 8657800 | U36: 2015-11-18 | V36: 0.115 | W36: 31.030001 | X36: 201511 | Y36: 201411 | Z36: 2014-11-19 | AA36: 5 | AB36: 1 | AC36: 0.396 | AD36: 0.01276184297
A37: 22 | B37: 2020-11-12 | C37: 539.159973 | D37: 550.640015 | E37: 532.640015 | F37: 538.27002 | G37: 9145300 | H37: 538.111023 | I37: 0.9997046148 | J37: 1 | K37: 539 | L37: 550.48 | M37: 532.48 | N37: 538.11 | O37: 9145300 | U37: 2015-08-18 | V37: 0.098 | W37: 23.08 | X37: 201508 | Y37: 201408 | Z37: 2014-08-19 | AA37: 5 | AB37: 1 | AC37: 0.366 | AD37: 0.01585788562
A38: 23 | B38: 2020-11-11 | C38: 522.150024 | D38: 537.400024 | E38: 517.929993 | F38: 536.719971 | G38: 10118600 | H38: 536.561462 | I38: 0.9997046709 | J38: 1 | K38: 522 | L38: 537.24 | M38: 517.78 | N38: 536.56 | O38: 10118600 | U38: 2015-05-19 | V38: 0.098 | W38: 21.040001 | X38: 201505 | Y38: 201405 | Z38: 2014-05-20 | AA38: 5 | AB38: 1 | AC38: 0.353 | AD38: 0.01677756574
A39: 24 | B39: 2020-11-10 | C39: 544.26001 | D39: 544.26001 | E39: 505.130005 | F39: 510.799988 | G39: 16101700 | H39: 510.649139 | I39: 0.9997046809 | J39: 1 | K39: 544.1 | L39: 544.1 | M39: 504.98 | N39: 510.65 | O39: 16101700 | U39: 2015-02-24 | V39: 0.085 | W39: 22.309999 | X39: 201502 | Y39: 201402 | Z39: 2014-02-25 | AA39: 5 | AB39: 1 | AC39: 0.34 | AD39: 0.01523980346
A40: 25 | B40: 2020-11-09 | C40: 582.099976 | D40: 587.659973 | E40: 544.429993 | F40: 545.22998 | G40: 14574400 | H40: 545.06897 | I40: 0.9997046934 | J40: 1 | K40: 581.93 | L40: 587.49 | M40: 544.27 | N40: 545.07 | O40: 14574400 | U40: 2014-11-19 | V40: 0.085 | W40: 20.01 | X40: 201411 | Y40: 201311 | Z40: 2013-11-19 | AA40: 5 | AB40: 1 | AC40: 0.34 | AD40: 0.01699150425
A41: 26 | B41: 2020-11-06 | C41: 564.390015 | D41: 583.549988 | E41: 555.799988 | F41: 582.47998 | G41: 9583700 | H41: 582.307922 | I41: 0.9997046113 | J41: 1 | K41: 564.22 | L41: 583.38 | M41: 555.64 | N41: 582.31 | O41: 9583700 | U41: 2014-08-19 | V41: 0.085 | W41: 19.370001 | X41: 201408 | Y41: 201308 | Z41: 2013-08-20 | AA41: 5 | AB41: 1 | AC41: 0.34 | AD41: 0.01755291598
A42: 27 | B42: 2020-11-05 | C42: 566.5 | D42: 573.559998 | E42: 559.640015 | F42: 566.400024 | G42: 7975700 | H42: 566.232727 | I42: 0.999704631 | J42: 1 | K42: 566.33 | L42: 573.39 | M42: 559.47 | N42: 566.23 | O42: 7975700 | U42: 2014-05-20 | V42: 0.085 | W42: 18.24 | X42: 201405 | Y42: 201305 | Z42: 2013-05-21 | AA42: 5 | AB42: 1 | AC42: 0.33 | AD42: 0.01809210526
A43: 28 | B43: 2020-11-04 | C43: 535.570007 | D43: 553.099976 | E43: 533.47998 | F43: 551.77002 | G43: 10255700 | H43: 551.607056 | I43: 0.9997046523 | J43: 1 | K43: 535.41 | L43: 552.94 | M43: 533.32 | N43: 551.61 | O43: 10255700 | U43: 2014-02-25 | V43: 0.085 | W43: 18.74 | X43: 201402 | Y43: 201302 | Z43: 2013-02-26 | AA43: 5 | AB43: 1 | AC43: 0.32 | AD43: 0.01707577375
A44: 29 | B44: 2020-11-03 | C44: 508.339996 | D44: 524.200012 | E44: 504.109985 | F44: 520.780029 | G44: 6822500 | H44: 520.626221 | I44: 0.9997046584 | J44: 1 | K44: 508.19 | L44: 524.05 | M44: 503.96 | N44: 520.63 | O44: 6822500 | U44: 2013-11-19 | V44: 0.085 | W44: 15.44 | X44: 201311 | Y44: 201211 | Z44: 2012-11-20 | AA44: 5 | AB44: 1 | AC44: 0.31 | AD44: 0.02007772021
A45: 30 | B45: 2020-11-02 | C45: 506.309998 | D45: 513.469971 | E45: 495.799988 | F45: 503.230011 | G45: 7491300 | H45: 503.08139 | I45: 0.9997046659 | J45: 1 | K45: 506.16 | L45: 513.32 | M45: 495.65 | N45: 503.08 | O45: 7491300 | U45: 2013-08-20 | V45: 0.075 | W45: 14.95 | X45: 201308 | Y45: 201208 | Z45: 2012-11-20 | AA45: 4 | AB45: 0 | AC45: 0.3 | AD45: 0.02006688963
A46: 31 | B46: 2020-10-30 | C46: 514 | D46: 517.460022 | E46: 492 | F46: 501.359985 | G46: 10420500 | H46: 501.211914 | I46: 0.9997046613 | J46: 1 | K46: 513.85 | L46: 517.31 | M46: 491.85 | N46: 501.21 | O46: 10420500 | U46: 2013-05-21 | V46: 0.075 | W46: 14.92 | X46: 201305 | Y46: 201205 | Z46: 2012-11-20 | AA46: 3 | AB46: 0 | AC46: 0.225 | AD46: 0.01508042895
A47: 32 | B47: 2020-10-29 | C47: 513.539978 | D47: 527.710022 | E47: 510 | F47: 520.960022 | G47: 8002000 | H47: 520.806152 | I47: 0.9997046414 | J47: 1 | K47: 513.39 | L47: 527.55 | M47: 509.85 | N47: 520.81 | O47: 8002000 | U47: 2013-02-26 | V47: 0.075 | W47: 12.37 | X47: 201302 | Y47: 201202 | Z47: 2012-11-20 | AA47: 2 | AB47: 0 | AC47: 0.15 | AD47: 0.01212611156
A48: 33 | B48: 2020-10-28 | C48: 527.919983 | D48: 530.400024 | E48: 504.359985 | F48: 505.079987 | G48: 9413000 | H48: 504.930817 | I48: 0.9997046606 | J48: 1 | K48: 527.76 | L48: 530.24 | M48: 504.21 | N48: 504.93 | O48: 9413000 | U48: 2012-11-20 | V48: 0.075 | W48: 11.49 | X48: 201211 | Y48: 201111 | Z48: 2012-11-20 | AA48: 1 | AB48: 1 | AC48: 0.075 | AD48: 0.006527415144
A49: 34 | B49: 2020-10-27 | C49: 532.23999 | D49: 537.679993 | E49: 527.659973 | F49: 535.869995 | G49: 6263000 | H49: 535.711731 | I49: 0.9997046597 | J49: 1 | K49: 532.08 | L49: 537.52 | M49: 527.5 | N49: 535.71 | O49: 6263000
A50: 35 | B50: 2020-10-26 | C50: 537.080017 | D50: 547.710022 | E50: 521.539978 | F50: 525.650024 | G50: 8422400 | H50: 525.494751 | I50: 0.9997046076 | J50: 1 | K50: 536.92 | L50: 547.55 | M50: 521.39 | N50: 525.49 | O50: 8422400
A51: 36 | B51: 2020-10-23 | C51: 538 | D51: 543.72998 | E51: 531.650024 | F51: 543.609985 | G51: 5837100 | H51: 543.449463 | I51: 0.9997047111 | J51: 1 | K51: 537.84 | L51: 543.57 | M51: 531.49 | N51: 543.45 | O51: 5837100
A52: 37 | B52: 2020-10-22 | C52: 540.900024 | D52: 544.469971 | E52: 529.27002 | F52: 534.440002 | G52: 7262000 | H52: 534.282166 | I52: 0.9997046703 | J52: 1 | K52: 540.74 | L52: 544.31 | M52: 529.11 | N52: 534.28 | O52: 7262000
A53: 38 | B53: 2020-10-21 | C53: 545 | D53: 551.659973 | E53: 539.099976 | F53: 540.98999 | G53: 5489900 | H53: 540.8302 | I53: 0.9997046341 | J53: 1 | K53: 544.84 | L53: 551.5 | M53: 538.94 | N53: 540.83 | O53: 5489900
A54: 39 | B54: 2020-10-20 | C54: 543.340027 | D54: 551.98999 | E54: 540.280029 | F54: 545.820007 | G54: 5730300 | H54: 545.658813 | I54: 0.9997046755 | J54: 1 | K54: 543.18 | L54: 551.83 | M54: 540.12 | N54: 545.66 | O54: 5730300
A55: 40 | B55: 2020-10-19 | C55: 556.119995 | D55: 559.340027 | E55: 536.27002 | F55: 539.909973 | G55: 7451700 | H55: 539.750488 | I55: 0.9997046082 | J55: 1 | K55: 555.96 | L55: 559.17 | M55: 536.11 | N55: 539.75 | O55: 7451700
A56: 41 | B56: 2020-10-16 | C56: 561.469971 | D56: 564.859985 | E56: 551.700012 | F56: 552.460022 | G56: 6059800 | H56: 552.296875 | I56: 0.9997046899 | J56: 1 | K56: 561.3 | L56: 564.69 | M56: 551.54 | N56: 552.3 | O56: 6059800
A57: 42 | B57: 2020-10-15 | C57: 552.429993 | D57: 560.22998 | E57: 550.710022 | F57: 558.799988 | G57: 6680600 | H57: 558.634949 | I57: 0.9997046546 | J57: 1 | K57: 552.27 | L57: 560.06 | M57: 550.55 | N57: 558.63 | O57: 6680600
A58: 43 | B58: 2020-10-14 | C58: 571.619995 | D58: 573.710022 | E58: 558.400024 | F58: 563.809998 | G58: 6916200 | H58: 563.643494 | I58: 0.9997046807 | J58: 1 | K58: 571.45 | L58: 573.54 | M58: 558.24 | N58: 563.64 | O58: 6916200
A59: 44 | B59: 2020-10-13 | C59: 571.859985 | D59: 573.940002 | E59: 560.75 | F59: 569.929993 | G59: 8615100 | H59: 569.761658 | I59: 0.9997046392 | J59: 1 | K59: 571.69 | L59: 573.77 | M59: 560.58 | N59: 569.76 | O59: 8615100
A60: 45 | B60: 2020-10-12 | C60: 559.580017 | D60: 573.880005 | E60: 556.5 | F60: 569.039978 | G60: 10868600 | H60: 568.871887 | I60: 0.999704606 | J60: 1 | K60: 559.41 | L60: 573.71 | M60: 556.34 | N60: 568.87 | O60: 10868600
A61: 46 | B61: 2020-10-09 | C61: 550.679993 | D61: 552.969971 | E61: 546.429993 | F61: 550.51001 | G61: 8672300 | H61: 550.347412 | I61: 0.9997046412 | J61: 1 | K61: 550.52 | L61: 552.81 | M61: 546.27 | N61: 550.35 | O61: 8672300
A62: 47 | B62: 2020-10-08 | C62: 563 | D62: 563.380005 | E62: 550.320007 | F62: 553.549988 | G62: 9472500 | H62: 553.386475 | I62: 0.9997046102 | J62: 1 | K62: 562.83 | L62: 563.21 | M62: 550.16 | N62: 553.39 | O62: 9472500
A63: 48 | B63: 2020-10-07 | C63: 559.98999 | D63: 564.77002 | E63: 554.539978 | F63: 558.559998 | G63: 10452100 | H63: 558.39502 | I63: 0.9997046369 | J63: 1 | K63: 559.82 | L63: 564.6 | M63: 554.38 | N63: 558.4 | O63: 10452100
A64: 49 | B64: 2020-10-06 | C64: 553.200012 | D64: 565.679993 | E64: 546.599976 | F64: 549.460022 | G64: 19610500 | H64: 549.297729 | I64: 0.9997046318 | J64: 1 | K64: 553.04 | L64: 565.51 | M64: 546.44 | N64: 549.3 | O64: 19610500
A65: 50 | B65: 2020-10-05 | C65: 529.440002 | D65: 545.77002 | E65: 528.909973 | F65: 545.700012 | G65: 11995500 | H65: 545.538818 | I65: 0.9997046106 | J65: 1 | K65: 529.28 | L65: 545.61 | M65: 528.75 | N65: 545.54 | O65: 11995500
A66: 51 | B66: 2020-10-02 | C66: 529 | D66: 540.780029 | E66: 522.039978 | F66: 522.48999 | G66: 13812400 | H66: 522.335693 | I66: 0.9997046891 | J66: 1 | K66: 528.84 | L66: 540.62 | M66: 521.89 | N66: 522.34 | O66: 13812400
A67: 52 | B67: 2020-10-01 | C67: 550.320007 | D67: 550.51001 | E67: 538.429993 | F67: 544.580017 | G67: 13125100 | H67: 544.419189 | I67: 0.9997046752 | J67: 1 | K67: 550.16 | L67: 550.35 | M67: 538.27 | N67: 544.42 | O67: 13125100
A68: 53 | B68: 2020-09-30 | C68: 526.299988 | D68: 544.900024 | E68: 526.01001 | F68: 541.219971 | G68: 17206100 | H68: 541.06012 | I68: 0.9997046469 | J68: 1 | K68: 526.14 | L68: 544.74 | M68: 525.85 | N68: 541.06 | O68: 17206100
A69: 54 | B69: 2020-09-29 | C69: 517.5 | D69: 537.710022 | E69: 517.330017 | F69: 529.030029 | G69: 15536500 | H69: 528.873779 | I69: 0.9997046481 | J69: 1 | K69: 517.35 | L69: 537.55 | M69: 517.18 | N69: 528.87 | O69: 15536500
A70: 55 | B70: 2020-09-28 | C70: 521.609985 | D70: 522.070007 | E70: 510 | F70: 521.400024 | G70: 14345200 | H70: 521.246033 | I70: 0.9997046586 | J70: 1 | K70: 521.46 | L70: 521.92 | M70: 509.85 | N70: 521.25 | O70: 14345200
A71: 56 | B71: 2020-09-25 | C71: 497.899994 | D71: 515.340027 | E71: 489.829987 | F71: 514.950012 | G71: 14700400 | H71: 514.797913 | I71: 0.9997046335 | J71: 1 | K71: 497.75 | L71: 515.19 | M71: 489.69 | N71: 514.8 | O71: 14700400
A72: 57 | B72: 2020-09-24 | C72: 482.890015 | D72: 502.779999 | E72: 480.559998 | F72: 493.920013 | G72: 18281000 | H72: 493.774139 | I72: 0.9997046607 | J72: 1 | K72: 482.75 | L72: 502.63 | M72: 480.42 | N72: 493.77 | O72: 18281000
A73: 58 | B73: 2020-09-23 | C73: 503.019989 | D73: 509.079987 | E73: 483.170013 | F73: 484.950012 | G73: 16175300 | H73: 484.806793 | I73: 0.9997046727 | J73: 1 | K73: 502.87 | L73: 508.93 | M73: 483.03 | N73: 484.81 | O73: 16175300
A74: 59 | B74: 2020-09-22 | C74: 503 | D74: 505.920013 | E74: 486.220001 | F74: 505.51001 | G74: 16161300 | H74: 505.360718 | I74: 0.9997046705 | J74: 1 | K74: 502.85 | L74: 505.77 | M74: 486.08 | N74: 505.36 | O74: 16161300
A75: 60 | B75: 2020-09-21 | C75: 477 | D75: 500.899994 | E75: 476.179993 | F75: 500.690002 | G75: 18026100 | H75: 500.542114 | I75: 0.9997046316 | J75: 1 | K75: 476.86 | L75: 500.75 | M75: 476.04 | N75: 500.54 | O75: 18026100
A76: 61 | B76: 2020-09-18 | C76: 503.75 | D76: 505.299988 | E76: 479.549988 | F76: 487.570007 | G76: 17461500 | H76: 487.425995 | I76: 0.9997046332 | J76: 1 | K76: 503.6 | L76: 505.15 | M76: 479.41 | N76: 487.43 | O76: 17461500
A77: 62 | B77: 2020-09-17 | C77: 485.290009 | D77: 503.589996 | E77: 481.390015 | F77: 498.540009 | G77: 19812800 | H77: 498.392761 | I77: 0.9997046416 | J77: 1 | K77: 485.15 | L77: 503.44 | M77: 481.25 | N77: 498.39 | O77: 19812800
A78: 63 | B78: 2020-09-16 | C78: 518.289978 | D78: 523.710022 | E78: 500.549988 | F78: 500.579987 | G78: 13909600 | H78: 500.432159 | I78: 0.9997046866 | J78: 1 | K78: 518.14 | L78: 523.56 | M78: 500.4 | N78: 500.43 | O78: 13909600
A79: 64 | B79: 2020-09-15 | C79: 531.200012 | D79: 531.950012 | E79: 513.109985 | F79: 519.640015 | G79: 18188900 | H79: 519.486572 | I79: 0.9997047129 | J79: 1 | K79: 531.04 | L79: 531.79 | M79: 512.96 | N79: 519.49 | O79: 18188900
A80: 65 | B80: 2020-09-14 | C80: 523.23999 | D80: 532.599976 | E80: 505.25 | F80: 514.890015 | G80: 30043600 | H80: 514.737976 | I80: 0.9997047156 | J80: 1 | K80: 523.09 | L80: 532.44 | M80: 505.1 | N80: 514.74 | O80: 30043600
A81: 66 | B81: 2020-09-11 | C81: 499.420013 | D81: 506.100006 | E81: 475.829987 | F81: 486.579987 | G81: 15923200 | H81: 486.436279 | I81: =IF(F81=0,1,H81/F81) -> 0.999704657 | J81: =INDEX(OFFSET($T$15,0,0,$S$13+1,1),MATCH(B81,OFFSET($Q$15,0,0,$S$13+1,1),-1)) -> 1 | K81: =ROUND($I81*C81,2) -> 499.27 | L81: =ROUND($I81*D81,2) -> 505.95 | M81: =ROUND($I81*E81,2) -> 475.69 | N81: =ROUND($I81*F81,2) -> 486.44 | O81: =G81*J81 -> 15923200
A82: 67 | B82: 2020-09-10 | C82: 519.570007 | D82: 522.609985 | E82: 486.679993 | F82: 492.470001 | G82: 17467100 | H82: 492.324554 | I82: 0.9997046582 | J82: 1 | K82: 519.42 | L82: 522.46 | M82: 486.54 | N82: 492.32 | O82: 17467100
A83: 68 | B83: 2020-09-09 | C83: 496 | D83: 512.369995 | E83: 489.269989 | F83: 508.600006 | G83: 18405000 | H83: 508.449799 | I83: 0.9997046658 | J83: 1 | K83: 495.85 | L83: 512.22 | M83: 489.13 | N83: 508.45 | O83: 18405000
A84: 69 | B84: 2020-09-08 | C84: 469.380005 | D84: 502 | E84: 468.170013 | F84: 476.519989 | G84: 19893200 | H84: 476.379242 | I84: 0.9997046357 | J84: 1 | K84: 469.24 | L84: 501.85 | M84: 468.03 | N84: 476.38 | O84: 19893200
A85: 70 | B85: 2020-09-04 | C85: 511.350006 | D85: 527 | E85: 468.190002 | F85: 504.899994 | G85: 36592100 | H85: 504.750885 | I85: 0.9997046762 | J85: 1 | K85: 511.2 | L85: 526.84 | M85: 468.05 | N85: 504.75 | O85: 36592100
A86: 71 | B86: 2020-09-03 | C86: 553.150024 | D86: 555.380005 | E86: 515.150024 | F86: 520.619995 | G86: 23628200 | H86: 520.466248 | I86: 0.9997046848 | J86: 1 | K86: 552.99 | L86: 555.22 | M86: 515 | N86: 520.47 | O86: 23628200
A87: 72 | B87: 2020-09-02 | C87: 588.150024 | D87: 589.070007 | E87: 556 | F87: 573.859985 | G87: 21850300 | H87: 573.690491 | I87: 0.9997046422 | J87: 1 | K87: 587.98 | L87: 588.9 | M87: 555.84 | N87: 573.69 | O87: 21850300
A88: 73 | B88: 2020-09-01 | C88: 539.200012 | D88: 559.75 | E88: 537.460022 | F88: 552.840027 | G88: 12811800 | H88: 552.676758 | I88: 0.9997046723 | J88: 1 | K88: 539.04 | L88: 559.58 | M88: 537.3 | N88: 552.68 | O88: 12811800
A89: 74 | B89: 2020-08-31 | C89: 527.309998 | D89: 543 | E89: 521.51001 | F89: 534.97998 | G89: 12521000 | H89: 534.661987 | I89: 0.9994055983 | J89: 1 | K89: 527 | L89: 542.68 | M89: 521.2 | N89: 534.66 | O89: 12521000
A90: 75 | B90: 2020-08-28 | C90: 507 | D90: 525.919983 | E90: 505.700012 | F90: 525.909973 | G90: 13429000 | H90: 525.597412 | I90: 0.9994056758 | J90: 1 | K90: 506.7 | L90: 525.61 | M90: 505.4 | N90: 525.6 | O90: 13429000
A91: 76 | B91: 2020-08-27 | C91: 511.26001 | D91: 514 | E91: 502.660004 | F91: 505.130005 | G91: 7940100 | H91: 504.829773 | I91: 0.9994056342 | J91: 1 | K91: 510.96 | L91: 513.69 | M91: 502.36 | N91: 504.83 | O91: 7940100
A92: 77 | B92: 2020-08-26 | C92: 511.970001 | D92: 514.73999 | E92: 507.109985 | F92: 510.920013 | G92: 8031100 | H92: 510.616364 | I92: 0.9994056819 | J92: 1 | K92: 511.67 | L92: 514.43 | M92: 506.81 | N92: 510.62 | O92: 8031100
A93: 78 | B93: 2020-08-25 | C93: 505.230011 | D93: 510.450012 | E93: 502.950012 | F93: 510 | G93: 7226900 | H93: 509.696899 | I93: 0.9994056843 | J93: 1 | K93: 504.93 | L93: 510.15 | M93: 502.65 | N93: 509.7 | O93: 7226900
A94: 79 | B94: 2020-08-24 | C94: 515.349976 | D94: 516.5 | E94: 500.299988 | F94: 508.809998 | G94: 12264100 | H94: 508.507568 | I94: 0.9994056131 | J94: 1 | K94: 515.04 | L94: 516.19 | M94: 500 | N94: 508.51 | O94: 12264100
A95: 80 | B95: 2020-08-21 | C95: 488.070007 | D95: 512.349976 | E95: 487.809998 | F95: 507.339996 | G95: 24996700 | H95: 507.038483 | I95: 0.9994056983 | J95: 1 | K95: 487.78 | L95: 512.05 | M95: 487.52 | N95: 507.04 | O95: 24996700
A96: 81 | B96: 2020-08-20 | C96: 479 | D96: 495 | E96: 475.149994 | F96: 485.640015 | G96: 23034700 | H96: 485.351379 | I96: 0.9994056585 | J96: 1 | K96: 478.72 | L96: 494.71 | M96: 474.87 | N96: 485.35 | O96: 23034700
A97: 82 | B97: 2020-08-19 | C97: 491.859985 | D97: 492.600006 | E97: 483.920013 | F97: 485.540009 | G97: 15565600 | H97: 485.251404 | I97: 0.9994056 | J97: 1 | K97: 491.57 | L97: 492.31 | M97: 483.63 | N97: 485.25 | O97: 15565600
A98: 83 | B98: 2020-08-18 | C98: 498 | D98: 499.839996 | E98: 483.450012 | F98: 490.429993 | G98: 12586200 | H98: 490.138489 | I98: 0.9994056155 | J98: 1 | K98: 497.7 | L98: 499.54 | M98: 483.16 | N98: 490.14 | O98: 12586200
A99: 84 | B99: 2020-08-17 | C99: 474.049988 | D99: 496.390015 | E99: 472.690002 | F99: 493.480011 | G99: 15532500 | H99: 493.186737 | I99: 0.9994057024 | J99: 1 | K99: 473.77 | L99: 496.1 | M99: 472.41 | N99: 493.19 | O99: 15532500
A100: 85 | B100: 2020-08-14 | C100: 461.200012 | D100: 468.190002 | E100: 457.619995 | F100: 462.559998 | G100: 9160900 | H100: 462.285095 | I100: 0.9994056922 | J100: 1 | K100: 460.93 | L100: 467.91 | M100: 457.35 | N100: 462.29 | O100: 9160900
A101: 86 | B101: 2020-08-13 | C101: 461.839996 | D101: 468.869995 | E101: 454.230011 | F101: 457.720001 | G101: 9361500 | H101: 457.447968 | I101: 0.9994056781 | J101: 1 | K101: 461.57 | L101: 468.59 | M101: 453.96 | N101: 457.45 | O101: 9361500
A102: 87 | B102: 2020-08-12 | C102: 439.630005 | D102: 458.679993 | E102: 438.329987 | F102: 457.609985 | G102: 11623600 | H102: 457.338013 | I102: 0.9994056686 | J102: 1 | K102: 439.37 | L102: 458.41 | M102: 438.07 | N102: 457.34 | O102: 11623600
A103: 88 | B103: 2020-08-11 | C103: 442.950012 | D103: 445.470001 | E103: 431.829987 | F103: 434 | G103: 8862800 | H103: 433.742035 | I103: 0.9994056106 | J103: 1 | K103: 442.69 | L103: 445.21 | M103: 431.57 | N103: 433.74 | O103: 8862800
A104: 89 | B104: 2020-08-10 | C104: 453.369995 | D104: 456.329987 | E104: 434.26001 | F104: 446.600006 | G104: 10694900 | H104: 446.334564 | I104: 0.9994056382 | J104: 1 | K104: 453.1 | L104: 456.06 | M104: 434 | N104: 446.33 | O104: 10694900
A105: 90 | B105: 2020-08-07 | C105: 452.5 | D105: 460.190002 | E105: 441.5 | F105: 447.980011 | G105: 8555400 | H105: 447.713745 | I105: 0.9994056297 | J105: 1 | K105: 452.23 | L105: 459.92 | M105: 441.24 | N105: 447.71 | O105: 8555400
A106: 91 | B106: 2020-08-06 | C106: 453.98999 | D106: 454.320007 | E106: 447.149994 | F106: 453.420013 | G106: 6107900 | H106: 453.150513 | I106: 0.9994056284 | J106: 1 | K106: 453.72 | L106: 454.05 | M106: 446.88 | N106: 453.15 | O106: 6107900
A107: 92 | B107: 2020-08-05 | C107: 449.76001 | D107: 454.869995 | E107: 446.649994 | F107: 451.470001 | G107: 6262500 | H107: 451.20166 | I107: 0.9994056283 | J107: 1 | K107: 449.49 | L107: 454.6 | M107: 446.38 | N107: 451.2 | O107: 6262500
A108: 93 | B108: 2020-08-04 | C108: 442 | D108: 449.109985 | E108: 436.23999 | F108: 449.109985 | G108: 7758400 | H108: 448.843048 | I108: 0.9994056311 | J108: 1 | K108: 441.74 | L108: 448.84 | M108: 435.98 | N108: 448.84 | O108: 7758400
A109: 94 | B109: 2020-08-03 | C109: 429.299988 | D109: 443.950012 | E109: 428.609985 | F109: 440.410004 | G109: 10318000 | H109: 440.148254 | I109: 0.9994056675 | J109: 1 | K109: 429.04 | L109: 443.69 | M109: 428.36 | N109: 440.15 | O109: 10318000
A110: 95 | B110: 2020-07-31 | C110: 422.529999 | D110: 430.660004 | E110: 417.320007 | F110: 424.589996 | G110: 9657200 | H110: 424.337646 | I110: 0.9994056619 | J110: 1 | K110: 422.28 | L110: 430.4 | M110: 417.07 | N110: 424.34 | O110: 9657200
A111: 96 | B111: 2020-07-30 | C111: 415 | D111: 424.920013 | E111: 411.809998 | F111: 424.559998 | G111: 7722000 | H111: 424.307648 | I111: 0.9994056199 | J111: 1 | K111: 414.75 | L111: 424.67 | M111: 411.57 | N111: 424.31 | O111: 7722000
A112: 97 | B112: 2020-07-29 | C112: 415.630005 | D112: 420.649994 | E112: 413.880005 | F112: 418.619995 | G112: 7112700 | H112: 418.371185 | I112: 0.9994056423 | J112: 1 | K112: 415.38 | L112: 420.4 | M112: 413.63 | N112: 418.37 | O112: 7112700
A113: 98 | B113: 2020-07-28 | C113: 414.970001 | D113: 415.279999 | E113: 408.369995 | F113: 408.619995 | G113: 6790900 | H113: 408.377136 | I113: 0.9994056605 | J113: 1 | K113: 414.72 | L113: 415.03 | M113: 408.13 | N113: 408.38 | O113: 6790900
A114: 99 | B114: 2020-07-27 | C114: 409.290009 | D114: 417.670013 | E114: 408.709991 | F114: 416.859985 | G114: 7303300 | H114: 416.612213 | I114: 0.999405623 | J114: 1 | K114: 409.05 | L114: 417.42 | M114: 408.47 | N114: 416.61 | O114: 7303300
A115: 100 | B115: 2020-07-24 | C115: 395 | D115: 414.589996 | E115: 391.079987 | F115: 407.779999 | G115: 11832300 | H115: 407.537628 | I115: 0.9994056329 | J115: 1 | K115: 394.77 | L115: 414.34 | M115: 390.85 | N115: 407.54 | O115: 11832300
A116: 101 | B116: 2020-07-23 | C116: 418 | D116: 421.880005 | E116: 401.25 | F116: 405.190002 | G116: 10291500 | H116: 404.949188 | I116: 0.9994056764 | J116: 1 | K116: 417.75 | L116: 421.63 | M116: 401.01 | N116: 404.95 | O116: 10291500
A117: 102 | B117: 2020-07-22 | C117: 414.700012 | D117: 424.100006 | E117: 411.660004 | F117: 417.549988 | G117: 9182300 | H117: 417.301819 | I117: 0.9994056544 | J117: 1 | K117: 414.45 | L117: 423.85 | M117: 411.42 | N117: 417.3 | O117: 9182300
A118: 103 | B118: 2020-07-21 | C118: 420.519989 | D118: 422.399994 | E118: 411.470001 | F118: 413.140015 | G118: 6941700 | H118: 412.89447 | I118: 0.9994056615 | J118: 1 | K118: 420.27 | L118: 422.15 | M118: 411.23 | N118: 412.89 | O118: 6941700
A119: 104 | B119: 2020-07-20 | C119: 410.970001 | D119: 421.25 | E119: 406.269989 | F119: 420.429993 | G119: 7121300 | H119: 420.180084 | I119: 0.9994055871 | J119: 1 | K119: 410.73 | L119: 421 | M119: 406.03 | N119: 420.18 | O119: 7121300
A120: 105 | B120: 2020-07-17 | C120: 409.019989 | D120: 409.940002 | E120: 403.51001 | F120: 408.059998 | G120: 6657100 | H120: 407.817474 | I120: 0.9994056658 | J120: 1 | K120: 408.78 | L120: 409.7 | M120: 403.27 | N120: 407.82 | O120: 6657100
A121: 106 | B121: 2020-07-16 | C121: 400.600006 | D121: 408.269989 | E121: 395.820007 | F121: 405.390015 | G121: 8624100 | H121: 405.149078 | I121: 0.9994056662 | J121: 1 | K121: 400.36 | L121: 408.03 | M121: 395.58 | N121: 405.15 | O121: 8624100
A122: 107 | B122: 2020-07-15 | C122: 416.570007 | D122: 417.320007 | E122: 402.230011 | F122: 409.089996 | G122: 10099600 | H122: 408.846863 | I122: 0.9994056736 | J122: 1 | K122: 416.32 | L122: 417.07 | M122: 401.99 | N122: 408.85 | O122: 10099600
A123: 108 | B123: 2020-07-14 | C123: 403 | D123: 416.109985 | E123: 391.420013 | F123: 415.079987 | G123: 13566900 | H123: 414.833282 | I123: 0.9994056447 | J123: 1 | K123: 402.76 | L123: 415.86 | M123: 391.19 | N123: 414.83 | O123: 13566900
A124: 109 | B124: 2020-07-13 | C124: 423.799988 | D124: 431.690002 | E124: 401 | F124: 402.089996 | G124: 11426900 | H124: 401.851013 | I124: 0.999405648 | J124: 1 | K124: 423.55 | L124: 431.43 | M124: 400.76 | N124: 401.85 | O124: 11426900
A125: 110 | B125: 2020-07-10 | C125: 423.549988 | D125: 426.209991 | E125: 415.149994 | F125: 419.170013 | G125: 12441900 | H125: 418.920898 | I125: 0.9994056946 | J125: 1 | K125: 423.3 | L125: 425.96 | M125: 414.9 | N125: 418.92 | O125: 12441900
A126: 111 | B126: 2020-07-09 | C126: 415.209991 | D126: 422.799988 | E126: 409.339996 | F126: 420.359985 | G126: 12363700 | H126: 420.110138 | I126: 0.9994056356 | J126: 1 | K126: 414.96 | L126: 422.55 | M126: 409.1 | N126: 420.11 | O126: 12363700
A127: 112 | B127: 2020-07-08 | C127: 399.75 | D127: 409 | E127: 398.619995 | F127: 408.640015 | G127: 9137000 | H127: 408.397125 | I127: 0.9994056138 | J127: 1 | K127: 399.51 | L127: 408.76 | M127: 398.38 | N127: 408.4 | O127: 9137000
A128: 113 | B128: 2020-07-07 | C128: 397.850006 | D128: 402.799988 | E128: 394.029999 | F128: 394.869995 | G128: 8945000 | H128: 394.635315 | I128: 0.9994056778 | J128: 1 | K128: 397.61 | L128: 402.56 | M128: 393.8 | N128: 394.64 | O128: 8945000
A129: 114 | B129: 2020-07-06 | C129: 389.670013 | D129: 396.350006 | E129: 388.5 | F129: 393.570007 | G129: 7897300 | H129: 393.33609 | I129: 0.9994056534 | J129: 1 | K129: 389.44 | L129: 396.11 | M129: 388.27 | N129: 393.34 | O129: 7897300
A130: 115 | B130: 2020-07-02 | C130: 385.559998 | D130: 389.5 | E130: 383.130005 | F130: 384.48999 | G130: 9101400 | H130: 384.261475 | I130: 0.9994056672 | J130: 1 | K130: 385.33 | L130: 389.27 | M130: 382.9 | N130: 384.26 | O130: 9101400
A131: 116 | B131: 2020-07-01 | C131: 380.829987 | D131: 383.029999 | E131: 376.519989 | F131: 381.200012 | G131: 8166200 | H131: 380.97345 | I131: 0.9994056611 | J131: 1 | K131: 380.6 | L131: 382.8 | M131: 376.3 | N131: 380.97 | O131: 8166200
A132: 117 | B132: 2020-06-30 | C132: 372.559998 | D132: 381.049988 | E132: 370.660004 | F132: 379.910004 | G132: 9197300 | H132: 379.684204 | I132: 0.9994056487 | J132: 1 | K132: 372.34 | L132: 380.82 | M132: 370.44 | N132: 379.68 | O132: 9197300
A133: 118 | B133: 2020-06-29 | C133: 366.790009 | D133: 368.179993 | E133: 356 | F133: 368 | G133: 8556200 | H133: 367.781281 | I133: 0.9994056549 | J133: 1 | K133: 366.57 | L133: 367.96 | M133: 355.79 | N133: 367.78 | O133: 8556200
A134: 119 | B134: 2020-06-26 | C134: 380 | D134: 380 | E134: 365 | F134: 366.200012 | G134: 14802100 | H134: 365.982361 | I134: 0.9994056499 | J134: 1 | K134: 379.77 | L134: 379.77 | M134: 364.78 | N134: 365.98 | O134: 14802100
A135: 120 | B135: 2020-06-25 | C135: 374.230011 | D135: 380.200012 | E135: 367.290009 | F135: 379.600006 | G135: 9401800 | H135: 379.37439 | I135: 0.9994056481 | J135: 1 | K135: 374.01 | L135: 379.97 | M135: 367.07 | N135: 379.37 | O135: 9401800
A136: 121 | B136: 2020-06-24 | C136: 379.049988 | D136: 382.26001 | E136: 365.779999 | F136: 369.420013 | G136: 11234300 | H136: 369.200439 | I136: 0.9994056251 | J136: 1 | K136: 378.82 | L136: 382.03 | M136: 365.56 | N136: 369.2 | O136: 11234300
A137: 122 | B137: 2020-06-23 | C137: 382.040009 | D137: 385.700012 | E137: 376.299988 | F137: 378 | G137: 9377700 | H137: 377.77533 | I137: 0.9994056349 | J137: 1 | K137: 381.81 | L137: 385.47 | M137: 376.08 | N137: 377.78 | O137: 9377700
A138: 123 | B138: 2020-06-22 | C138: 372 | D138: 381.25 | E138: 370.929993 | F138: 381.070007 | G138: 9961700 | H138: 380.843506 | I138: 0.9994056184 | J138: 1 | K138: 371.78 | L138: 381.02 | M138: 370.71 | N138: 380.84 | O138: 9961700
A139: 124 | B139: 2020-06-19 | C139: 369.700012 | D139: 377.799988 | E139: 369.089996 | F139: 370.450012 | G139: 13104000 | H139: 370.229828 | I139: 0.999405631 | J139: 1 | K139: 369.48 | L139: 377.58 | M139: 368.87 | N139: 370.23 | O139: 13104000
A140: 125 | B140: 2020-06-18 | C140: 369.079987 | D140: 371.299988 | E140: 364.579987 | F140: 368.720001 | G140: 6360200 | H140: 368.500854 | I140: 0.9994056547 | J140: 1 | K140: 368.86 | L140: 371.08 | M140: 364.36 | N140: 368.5 | O140: 6360200
A141: 126 | B141: 2020-06-17 | C141: 364.549988 | D141: 371.959991 | E141: 362.809998 | F141: 369.440002 | G141: 10188300 | H141: 369.220428 | I141: 0.9994056572 | J141: 1 | K141: 364.33 | L141: 371.74 | M141: 362.59 | N141: 369.22 | O141: 10188300
A142: 127 | B142: 2020-06-16 | C142: 369 | D142: 370.670013 | E142: 353.549988 | F142: 362.73999 | G142: 13392900 | H142: 362.524414 | I142: 0.999405701 | J142: 1 | K142: 368.78 | L142: 370.45 | M142: 353.34 | N142: 362.52 | O142: 13392900
A143: 128 | B143: 2020-06-15 | C143: 352.609985 | D143: 367.290009 | E143: 349.75 | F143: 366.950012 | G143: 10000100 | H143: 366.731934 | I143: 0.9994057011 | J143: 1 | K143: 352.4 | L143: 367.07 | M143: 349.54 | N143: 366.73 | O143: 10000100
A144: 129 | B144: 2020-06-12 | C144: 366.5 | D144: 367.48999 | E144: 348.130005 | F144: 357.299988 | G144: 14252900 | H144: 357.087616 | I144: 0.9994056199 | J144: 1 | K144: 366.28 | L144: 367.27 | M144: 347.92 | N144: 357.09 | O144: 14252900
A145: 130 | B145: 2020-06-11 | C145: 366 | D145: 370.450012 | E145: 351.440002 | F145: 351.850006 | G145: 14591300 | H145: 351.6409 | I145: =IF(F145=0,1,H145/F145) -> 0.9994056956 | J145: =INDEX(OFFSET($T$15,0,0,$S$13+1,1),MATCH(B145,OFFSET($Q$15,0,0,$S$13+1,1),-1)) -> 1 | K145: =ROUND($I145*C145,2) -> 365.78 | L145: =ROUND($I145*D145,2) -> 370.23 | M145: =ROUND($I145*E145,2) -> 351.23 | N145: =ROUND($I145*F145,2) -> 351.64 | O145: =G145*J145 -> 14591300
A146: 131 | B146: 2020-06-10 | C146: 366.709991 | D146: 380 | E146: 366.140015 | F146: 374.670013 | G146: 15804500 | H146: 374.447327 | I146: 0.9994056477 | J146: 1 | K146: 366.49 | L146: 379.77 | M146: 365.92 | N146: 374.45 | O146: 15804500
A147: 132 | B147: 2020-06-09 | C147: 352 | D147: 364.390015 | E147: 350.049988 | F147: 361.839996 | G147: 11712200 | H147: 361.624939 | I147: 0.9994056572 | J147: 1 | K147: 351.79 | L147: 364.17 | M147: 349.84 | N147: 361.62 | O147: 11712200
A148: 133 | B148: 2020-06-08 | C148: 355.089996 | D148: 355.589996 | E148: 347.429993 | F148: 352.200012 | G148: 9693400 | H148: 351.990692 | I148: 0.9994056786 | J148: 1 | K148: 354.88 | L148: 355.38 | M148: 347.22 | N148: 351.99 | O148: 9693400
A149: 134 | B149: 2020-06-05 | C149: 351.779999 | D149: 359.880005 | E149: 348.320007 | F149: 356.799988 | G149: 12043700 | H149: 356.587921 | I149: 0.9994056418 | J149: 1 | K149: 351.57 | L149: 359.67 | M149: 348.11 | N149: 356.59 | O149: 12043700
A150: 135 | B150: 2020-06-04 | C150: 349.119995 | D150: 357.730011 | E150: 347.100006 | F150: 350.660004 | G150: 10607000 | H150: 350.451569 | I150: 0.9994055923 | J150: 1 | K150: 348.91 | L150: 357.52 | M150: 346.89 | N150: 350.45 | O150: 10607000
A151: 136 | B151: 2020-06-03 | C151: 352.890015 | D151: 354.649994 | E151: 348 | F151: 350.779999 | G151: 9136000 | H151: 350.411591 | I151: 0.9989497463 | J151: 1 | K151: 352.52 | L151: 354.28 | M151: 347.63 | N151: 350.41 | O151: 9136000
A152: 137 | B152: 2020-06-02 | C152: 351.850006 | D152: 353.48999 | E152: 346.320007 | F152: 353.01001 | G152: 9783000 | H152: 352.639252 | I152: 0.9989497238 | J152: 1 | K152: 351.48 | L152: 353.12 | M152: 345.96 | N152: 352.64 | O152: 9783000
A153: 138 | B153: 2020-06-01 | C153: 353.329987 | D153: 353.630005 | E153: 347.579987 | F153: 352.25 | G153: 9746900 | H153: 351.880066 | I153: 0.998949797 | J153: 1 | K153: 352.96 | L153: 353.26 | M153: 347.21 | N153: 351.88 | O153: 9746900
A154: 139 | B154: 2020-05-29 | C154: 342.179993 | D154: 355.019989 | E154: 339.399994 | F154: 355.019989 | G154: 18648000 | H154: 354.647156 | I154: 0.9989498253 | J154: 1 | K154: 341.82 | L154: 354.65 | M154: 339.04 | N154: 354.65 | O154: 18648000
A155: 140 | B155: 2020-05-28 | C155: 336.48999 | D155: 350.420013 | E155: 335.170013 | F155: 339.480011 | G155: 18372400 | H155: 339.123474 | I155: 0.9989497555 | J155: 1 | K155: 336.14 | L155: 350.05 | M155: 334.82 | N155: 339.12 | O155: 18372400
A156: 141 | B156: 2020-05-27 | C156: 345 | D156: 345.309998 | E156: 319.869995 | F156: 341.01001 | G156: 29397300 | H156: 340.651855 | I156: 0.9989497229 | J156: 1 | K156: 344.64 | L156: 344.95 | M156: 319.53 | N156: 340.65 | O156: 29397300
A157: 142 | B157: 2020-05-26 | C157: 366.269989 | D157: 367.269989 | E157: 346.880005 | F157: 348.709991 | G157: 19269500 | H157: 348.34375 | I157: 0.9989497261 | J157: 1 | K157: 365.89 | L157: 366.88 | M157: 346.52 | N157: 348.34 | O157: 19269500
A158: 143 | B158: 2020-05-22 | C158: 353.01001 | D158: 363.720001 | E158: 348.529999 | F158: 361.049988 | G158: 25969100 | H158: 360.670776 | I158: 0.9989496967 | J158: 1 | K158: 352.64 | L158: 363.34 | M158: 348.16 | N158: 360.67 | O158: 25969100
A159: 144 | B159: 2020-05-21 | C159: 362.059998 | D159: 362.100006 | E159: 349.5 | F159: 351.01001 | G159: 19026700 | H159: 350.641388 | I159: 0.9989498248 | J159: 1 | K159: 361.68 | L159: 361.72 | M159: 349.13 | N159: 350.64 | O159: 19026700
A160: 145 | B160: 2020-05-20 | C160: 359.640015 | D160: 361.720001 | E160: 355.549988 | F160: 358.799988 | G160: 14688400 | H160: 358.423157 | I160: 0.9989497463 | J160: 1 | K160: 359.26 | L160: 361.34 | M160: 355.18 | N160: 358.42 | O160: 14688400
A161: 146 | B161: 2020-05-19 | C161: 351.609985 | D161: 363.5 | E161: 350.51001 | F161: 352.220001 | G161: 17933000 | H161: 351.850098 | I161: 0.9989497956 | J161: 1 | K161: 351.24 | L161: 363.12 | M161: 350.14 | N161: 351.85 | O161: 17933000
A162: 147 | B162: 2020-05-18 | C162: 350.420013 | D162: 356.660004 | E162: 347.220001 | F162: 350.01001 | G162: 19410100 | H162: 349.642426 | I162: 0.99894979 | J162: 1 | K162: 350.05 | L162: 356.29 | M162: 346.86 | N162: 349.64 | O162: 19410100
A163: 148 | B163: 2020-05-15 | C163: 315.589996 | D163: 340.019989 | E163: 314.959991 | F163: 339.630005 | G163: 24691500 | H163: 339.273315 | I163: 0.9989497689 | J163: 1 | K163: 315.26 | L163: 339.66 | M163: 314.63 | N163: 339.27 | O163: 24691500
A164: 149 | B164: 2020-05-14 | C164: 313.670013 | D164: 321.440002 | E164: 307.5 | F164: 321.220001 | G164: 15057800 | H164: 320.88266 | I164: 0.9989498132 | J164: 1 | K164: 313.34 | L164: 321.1 | M164: 307.18 | N164: 320.88 | O164: 15057800
A165: 150 | B165: 2020-05-13 | C165: 316.700012 | D165: 323.140015 | E165: 303.790009 | F165: 311.200012 | G165: 15646300 | H165: 310.873199 | I165: 0.9989498297 | J165: 1 | K165: 316.37 | L165: 322.8 | M165: 303.47 | N165: 310.87 | O165: 15646300
A166: 151 | B166: 2020-05-12 | C166: 324.940002 | D166: 326.899994 | E166: 311.709991 | F166: 312.100006 | G166: 12326500 | H166: 311.772217 | I166: 0.9989497309 | J166: 1 | K166: 324.6 | L166: 326.56 | M166: 311.38 | N166: 311.77 | O166: 12326500
A167: 152 | B167: 2020-05-11 | C167: 312.299988 | D167: 324.5 | E167: 311.149994 | F167: 322.619995 | G167: 11726500 | H167: 322.281158 | I167: 0.9989497334 | J167: 1 | K167: 311.97 | L167: 324.16 | M167: 310.82 | N167: 322.28 | O167: 11726500
A168: 153 | B168: 2020-05-08 | C168: 307.75 | D168: 312.75 | E168: 306.390015 | F168: 312.5 | G168: 8497700 | H168: 312.171783 | I168: 0.9989497056 | J168: 1 | K168: 307.43 | L168: 312.42 | M168: 306.07 | N168: 312.17 | O168: 8497700
A169: 154 | B169: 2020-05-07 | C169: 303.380005 | D169: 307.410004 | E169: 301.320007 | F169: 304.869995 | G169: 9343300 | H169: 304.549805 | I169: 0.9989497491 | J169: 1 | K169: 303.06 | L169: 307.09 | M169: 301 | N169: 304.55 | O169: 9343300
A170: 155 | B170: 2020-05-06 | C170: 296.929993 | D170: 302 | E170: 295.410004 | F170: 297.790009 | G170: 8086600 | H170: 297.477234 | I170: 0.9989496793 | J170: 1 | K170: 296.62 | L170: 301.68 | M170: 295.1 | N170: 297.48 | O170: 8086600
A171: 156 | B171: 2020-05-05 | C171: 295.470001 | D171: 300.269989 | E171: 291.290009 | F171: 293.73999 | G171: 9222400 | H171: 293.431488 | I171: 0.9989497446 | J171: 1 | K171: 295.16 | L171: 299.95 | M171: 290.98 | N171: 293.43 | O171: 9222400
A172: 157 | B172: 2020-05-04 | C172: 280.880005 | D172: 291.839996 | E172: 280.880005 | F172: 291.290009 | G172: 7938900 | H172: 290.98407 | I172: 0.9989497099 | J172: 1 | K172: 280.58 | L172: 291.53 | M172: 280.58 | N172: 290.98 | O172: 7938900
A173: 158 | B173: 2020-05-01 | C173: 284.350006 | D173: 288.899994 | E173: 280.839996 | F173: 282.779999 | G173: 8552400 | H173: 282.483002 | I173: 0.9989497242 | J173: 1 | K173: 284.05 | L173: 288.6 | M173: 280.55 | N173: 282.48 | O173: 8552400
A174: 159 | B174: 2020-04-30 | C174: 296.290009 | D174: 298.459991 | E174: 291.720001 | F174: 292.279999 | G174: 9397900 | H174: 291.973053 | I174: 0.9989498221 | J174: 1 | K174: 295.98 | L174: 298.15 | M174: 291.41 | N174: 291.97 | O174: 9397900
A175: 160 | B175: 2020-04-29 | C175: 296.769989 | D175: 300.579987 | E175: 293.75 | F175: 298.459991 | G175: 9479000 | H175: 298.146545 | I175: 0.9989497889 | J175: 1 | K175: 296.46 | L175: 300.26 | M175: 293.44 | N175: 298.15 | O175: 9479000
A176: 161 | B176: 2020-04-28 | C176: 303 | D176: 304.200012 | E176: 291.140015 | F176: 291.359985 | G176: 11072600 | H176: 291.053955 | I176: 0.9989496499 | J176: 1 | K176: 302.68 | L176: 303.88 | M176: 290.83 | N176: 291.05 | O176: 11072600
A177: 162 | B177: 2020-04-27 | C177: 294.98999 | D177: 303.5 | E177: 294 | F177: 297.079987 | G177: 11984700 | H177: 296.767975 | I177: 0.9989497374 | J177: 1 | K177: 294.68 | L177: 303.18 | M177: 293.69 | N177: 296.77 | O177: 11984700
A178: 163 | B178: 2020-04-24 | C178: 283.600006 | D178: 289.670013 | E178: 280.600006 | F178: 289.589996 | G178: 8816100 | H178: 289.285889 | I178: 0.9989498705 | J178: 1 | K178: 283.3 | L178: 289.37 | M178: 280.31 | N178: 289.29 | O178: 8816100
A179: 164 | B179: 2020-04-23 | C179: 287.839996 | D179: 293.140015 | E179: 283 | F179: 284.01001 | G179: 10604000 | H179: 283.711731 | I179: 0.9989497588 | J179: 1 | K179: 287.54 | L179: 292.83 | M179: 282.7 | N179: 283.71 | O179: 10604000
A180: 165 | B180: 2020-04-22 | C180: 277.230011 | D180: 287.869995 | E180: 275.399994 | F180: 286.149994 | G180: 12118200 | H180: 285.849487 | I180: 0.998949827 | J180: 1 | K180: 276.94 | L180: 287.57 | M180: 275.11 | N180: 285.85 | O180: 12118200
A181: 166 | B181: 2020-04-21 | C181: 282.309998 | D181: 284.769989 | E181: 267.109985 | F181: 269.51001 | G181: 18379000 | H181: 269.22699 | I181: 0.998949872 | J181: 1 | K181: 282.01 | L181: 284.47 | M181: 266.83 | N181: 269.23 | O181: 18379000
A182: 167 | B182: 2020-04-20 | C182: 287.23999 | D182: 293.5 | E182: 285.269989 | F182: 287.049988 | G182: 11234700 | H182: 286.748535 | I182: 0.998949824 | J182: 1 | K182: 286.94 | L182: 293.19 | M182: 284.97 | N182: 286.75 | O182: 11234700
A183: 168 | B183: 2020-04-17 | C183: 298 | D183: 298.859985 | E183: 286.940002 | F183: 292.320007 | G183: 13478000 | H183: 292.013 | I183: 0.9989497571 | J183: 1 | K183: 297.69 | L183: 298.55 | M183: 286.64 | N183: 292.01 | O183: 13478000
A184: 169 | B184: 2020-04-16 | C184: 287.079987 | D184: 299 | E184: 286.549988 | F184: 294.700012 | G184: 18640500 | H184: 294.390503 | I184: 0.9989497489 | J184: 1 | K184: 286.78 | L184: 298.69 | M184: 286.25 | N184: 294.39 | O184: 18640500
A185: 170 | B185: 2020-04-15 | C185: 277.200012 | D185: 284.170013 | E185: 275.380005 | F185: 280.839996 | G185: 9153700 | H185: 280.545044 | I185: 0.9989497507 | J185: 1 | K185: 276.91 | L185: 283.87 | M185: 275.09 | N185: 280.55 | O185: 9153700
A186: 171 | B186: 2020-04-14 | C186: 275 | D186: 285.320007 | E186: 273.890015 | F186: 283.950012 | G186: 13273700 | H186: 283.651794 | I186: 0.9989497518 | J186: 1 | K186: 274.71 | L186: 285.02 | M186: 273.6 | N186: 283.65 | O186: 13273700
A187: 172 | B187: 2020-04-13 | C187: 260.549988 | D187: 270.200012 | E187: 257 | F187: 269.850006 | G187: 9960200 | H187: 269.566589 | I187: 0.9989497239 | J187: 1 | K187: 260.28 | L187: 269.92 | M187: 256.73 | N187: 269.57 | O187: 9960200
A188: 173 | B188: 2020-04-09 | C188: 272 | D188: 272.920013 | E188: 260.420013 | F188: 262.950012 | G188: 13156200 | H188: 262.673859 | I188: 0.998949789 | J188: 1 | K188: 271.71 | L188: 272.63 | M188: 260.15 | N188: 262.67 | O188: 13156200
A189: 174 | B189: 2020-04-08 | C189: 263.410004 | D189: 267.950012 | E189: 260.600006 | F189: 266.950012 | G189: 13561100 | H189: 266.669647 | I189: 0.9989497472 | J189: 1 | K189: 263.13 | L189: 267.67 | M189: 260.33 | N189: 266.67 | O189: 13561100
A190: 175 | B190: 2020-04-07 | C190: 277.299988 | D190: 278.25 | E190: 257.299988 | F190: 259.029999 | G190: 19613000 | H190: 258.757935 | I190: 0.9989496815 | J190: 1 | K190: 277.01 | L190: 277.96 | M190: 257.03 | N190: 258.76 | O190: 19613000
A191: 176 | B191: 2020-04-06 | C191: 255.240005 | D191: 269.880005 | E191: 252.929993 | F191: 268.399994 | G191: 18197100 | H191: 268.118073 | I191: 0.9989496237 | J191: 1 | K191: 254.97 | L191: 269.6 | M191: 252.66 | N191: 268.12 | O191: 18197100
A192: 177 | B192: 2020-04-03 | C192: 253.960007 | D192: 255.630005 | E192: 238.389999 | F192: 243.910004 | G192: 16580300 | H192: 243.653854 | I192: 0.9989498176 | J192: 1 | K192: 253.69 | L192: 255.36 | M192: 238.14 | N192: 243.65 | O192: 16580300
A193: 178 | B193: 2020-04-02 | C193: 244.240005 | D193: 256 | E193: 242.309998 | F193: 255.470001 | G193: 16894100 | H193: 255.201691 | I193: 0.9989497397 | J193: 1 | K193: 243.98 | L193: 255.73 | M193: 242.06 | N193: 255.2 | O193: 16894100
A194: 179 | B194: 2020-04-01 | C194: 255.649994 | D194: 261.529999 | E194: 241.279999 | F194: 243.070007 | G194: 16422800 | H194: 242.814728 | I194: 0.9989497717 | J194: 1 | K194: 255.38 | L194: 261.26 | M194: 241.03 | N194: 242.81 | O194: 16422800
A195: 180 | B195: 2020-03-31 | C195: 267.200012 | D195: 275.399994 | E195: 257.75 | F195: 263.600006 | G195: 23749000 | H195: 263.323181 | I195: 0.9989498293 | J195: 1 | K195: 266.92 | L195: 275.11 | M195: 257.48 | N195: 263.32 | O195: 23749000
A196: 181 | B196: 2020-03-30 | C196: 255.360001 | D196: 265.959991 | E196: 253.589996 | F196: 265.589996 | G196: 15056300 | H196: 265.311066 | I196: 0.9989497722 | J196: 1 | K196: 255.09 | L196: 265.68 | M196: 253.32 | N196: 265.31 | O196: 15056300
A197: 182 | B197: 2020-03-27 | C197: 250 | D197: 263.119995 | E197: 248.679993 | F197: 252.729996 | G197: 15970700 | H197: 252.464569 | I197: 0.9989497606 | J197: 1 | K197: 249.74 | L197: 262.84 | M197: 248.42 | N197: 252.46 | O197: 15970700
A198: 183 | B198: 2020-03-26 | C198: 253.940002 | D198: 262.220001 | E198: 250 | F198: 257.23999 | G198: 17402700 | H198: 256.969818 | I198: 0.9989497278 | J198: 1 | K198: 253.67 | L198: 261.94 | M198: 249.74 | N198: 256.97 | O198: 17402700
A199: 184 | B199: 2020-03-25 | C199: 253.800003 | D199: 261.820007 | E199: 243.660004 | F199: 245.619995 | G199: 19835800 | H199: 245.36203 | I199: 0.9989497394 | J199: 1 | K199: 253.53 | L199: 261.55 | M199: 243.4 | N199: 245.36 | O199: 19835800
A200: 185 | B200: 2020-03-24 | C200: 229 | D200: 252.660004 | E200: 228.050003 | F200: 249.179993 | G200: 27541100 | H200: 248.918304 | I200: 0.9989497993 | J200: 1 | K200: 228.76 | L200: 252.39 | M200: 227.81 | N200: 248.92 | O200: 27541100
... 5326 more rows

Sheet CalculationsAndCharts
A1: TrendPersistenceRate.xlsm
A2: =InputPriceData!A1 -> NVIDIA Corporation (NVDA) -NasdaqGS (Daily)
A4: User Charting Controls | E4: Click to Shift Chart One Bar:
A5: Data Control | C5: FALSE
A6: =InputPriceData!$B$10 -> 5511 | B6: Available Input Data Rows | E6: Earliest: | F6: =OFFSET(InputPriceData!B15,CalculationsAndCharts!A6,0,1,1) -> 1999-01-22
A7: =MAX(A33:A56896) -> 1250 | B7: Available Calculation Rows | E7: Latest: | F7: =OFFSET(InputPriceData!B15,1,0,1,1) -> 2020-12-14
A8: =MIN(AvailableInputRows-DataPanRows,A7) -> 1250 | B8: Logically Available for Calc / Plot | E8: $ Change: | F8: =G33-G34 -> 11.819947
A10: Historical Price Windowing Specifications | F10: Click to Shift
A11: 0 | B11: Input Data Offset (Pan) | F11: Points to Plot
A12: 180 | B12: Data Points to Plot (Zoom)
B13: First: | C13: =OFFSET(B32,A12,0,1,1) -> 2020-03-31
B14: ="Last: " & IF(OFFSET(InputPriceData!P15,1+A11,0,1,1)="","",TEXT(OFFSET(InputPriceData!P15,1+A11,0,1,1),"H:MM AM/PM")) -> Last: | C14: =B33 -> 2020-12-14
A15: User Controls
A16: 0 | B16: joff | D16: Calulated "semi Constants" | R16: 2
A17: 20 | B17: TPRPer | D17: ="ctrT, the sum of 1 to "& A17& " ==>" -> ctrT, the sum of 1 to 20 ==> | E17: =A17*(A17+1)/2 -> 210
A18: 5 | B18: SMAPer
A19: 1 | B19: ThrshFixed
A20: 10 | B20: MULT
A21: 0.01 | B21: _point | D21: Mult X _Point ==> | E21: =A20*A21 -> 0.1
A25: Help! I would like to plot data
A26: From | B26: 2019-01-03 | C26: =OFFSET(InputPriceData!$A$15,MATCH(B26,OFFSET(InputPriceData!B15,1,0,InputPriceData!$B$10,1),0),0,1,1)-C27 -> 354 | E26: 134
A27: To | B27: 2020-05-29 | C27: =OFFSET(InputPriceData!$A$15,MATCH(B27,OFFSET(InputPriceData!$B$15,1,0,InputPriceData!$B$10,1),0),0,1,1)-1 -> 138 | E27: =$A$12-$E$26+1 -> 47
H28: Value @ Cursor => | I28: =OFFSET(A32,$E$27,0,1,1)&"(RR)" -> 47(RR) | J28: =OFFSET($B$32,E27,0,1,1) -> 2020-10-08 | K28: =TEXT(OFFSET(D32,$E$27,0,1,1),"#,##0.00")&"(o)" -> 563.00(o) | L28: =TEXT(OFFSET(E32,$E$27,0,1,1),"#,##0.00")&"(h)" -> 563.38(h) | M28: =TEXT(OFFSET(F32,$E$27,0,1,1),"#,##0.00")&"(l)" -> 550.32(l) | N28: =TEXT(OFFSET(G32,$E$27,0,1,1),"#,##0.00")&"(c)" -> 553.55(c) | O28: =TEXT(OFFSET(C32,$E$27,0,1,1),"#,##0.00,,""M""")&"(v)" -> 9.47M(v)
E29: Cursor ==> | AY29: Work Area For Chart Cursors
A31: Rel Row | H31: ="SMA("&A18&") of Close" -> SMA(5) of Close | I31: SMA1 | J31: SMA2 | T31: ="TPR("&$A$16&") Smooth("&A18&")" -> TPR(0) Smooth(5) | AW31: Used To Color Vol Bars
B32: Date | C32: Volume | D32: Open | E32: High | F32: Low | G32: Close | I32: SMA at joff+1 | J32: SMA at joff+2 | K32: SMA Diff | L32: Up Trend | M32: Down Trend | N32: ctrP | O32: ctrM | P32: Raw TPR | Q32: Abs TPR | R32: ctrP Rate | S32: ctrM Rate | T32: =IF($R$16=1,Q32,P32) -> Raw TPR | U32: =R32 -> ctrP Rate | V32: =S32 -> ctrM Rate | AW32: Up Vol | AX32: Dn Vol | AY32: Volume Cursor | AZ32: =MAX(OFFSET(C33,0,0,A12,1)) -> 36592100 | BA32: OBVM Cursor | BC32: Price Chart Cursor | BE32: ComparePriceChart Cursor | BG32: Price Phasor Cursor | BI32: DMI Cursor | BK32: SMI Cursor
A33: 1 | B33: =IF($A33>$A$8,"",OFFSET(InputPriceData!$B$15,$A33+$A$11,0,1,1)) -> 2020-12-14 | C33: =IF($A33>$A$8,"",OFFSET(InputPriceData!$G$15,CalculationsAndCharts!$A33+$A$11,IF($C$5,8,0),1,1)) -> 6580666 | D33: =IF(A33>$A$8,"",OFFSET(InputPriceData!$C$15,CalculationsAndCharts!$A33+$A$11,IF($C$5,8,0),1,1)) -> 523.515015 | E33: =IF(A33>$A$8,"",OFFSET(InputPriceData!$D$15,CalculationsAndCharts!$A33+$A$11,IF($C$5,8,0),1,1)) -> 535.549988 | F33: =IF(A33>$A$8,"",OFFSET(InputPriceData!$E$15,CalculationsAndCharts!$A33+$A$11,IF($C$5,8,0),1,1)) -> 523.099976 | G33: =IF(A33>$A$8,"",OFFSET(InputPriceData!$F$15,CalculationsAndCharts!$A33+$A$11,IF($C$5,8,0),1,1)) -> 532.349976 | H33: =AVERAGE(OFFSET(G33,0,0,$A$18,1)) -> 524.6 | I33: =OFFSET(H33,$A$16+1,0,1,1) -> 526.9840088 | J33: =OFFSET(H33,$A$16+2,0,1,1) -> 531.3440064 | K33: =(I33-J33)/$E$21 -> -43.599976 | L33: =K33>$A$19 -> FALSE | M33: =K33<-$A$19 -> TRUE | N33: =COUNTIF(OFFSET(L33,0,0,$A$17,1),TRUE) -> 7 | O33: =COUNTIF(OFFSET(M33,0,0,$A$17,1),TRUE) -> 12 | P33: =(100*(N33-O33)/$E$17) -> -2.380952381 | Q33: =ABS(P33) -> 2.380952381 | R33: =(100*(N33)/$E$17) -> 3.333333333 | S33: =(100*(-O33)/$E$17) -> -5.714285714 | T33: =IF($R$16=1,Q33,P33) -> -2.380952381 | U33: =IF($R$16=3,R33,NA()) ->  | V33: =IF($R$16=3,S33,NA()) ->  | AW33: =IF(G33>=D33,C33,NA()) -> 6580666 | AX33: =IF(G33<D33,C33,NA()) ->  | AY33: =$E$27 -> 47 | AZ33: 0 | BA33: =$E$27 -> 47 | BB33: 62500000 | BC33: =$E$27 -> 47 | BD33: 232.430249 | BE33: =$E$27 -> 47 | BF33: 188.877 | BG33: =$E$27 -> 47 | BH33: =IF(#REF!=1,-180,NA()) ->  | BI33: =$E$27 -> 47 | BJ33: -10 | BK33: =$E$27 -> 47 | BL33: 0
A34: 2 | B34: =IF($A34>$A$8,"",OFFSET(InputPriceData!$B$15,$A34+$A$11,0,1,1)) -> 2020-12-11 | C34: =IF($A34>$A$8,"",OFFSET(InputPriceData!$G$15,CalculationsAndCharts!$A34+$A$11,IF($C$5,8,0),1,1)) -> 5228600 | D34: =IF(A34>$A$8,"",OFFSET(InputPriceData!$C$15,CalculationsAndCharts!$A34+$A$11,IF($C$5,8,0),1,1)) -> 518.690002 | E34: =IF(A34>$A$8,"",OFFSET(InputPriceData!$D$15,CalculationsAndCharts!$A34+$A$11,IF($C$5,8,0),1,1)) -> 520.799988 | F34: =IF(A34>$A$8,"",OFFSET(InputPriceData!$E$15,CalculationsAndCharts!$A34+$A$11,IF($C$5,8,0),1,1)) -> 512.919983 | G34: =IF(A34>$A$8,"",OFFSET(InputPriceData!$F$15,CalculationsAndCharts!$A34+$A$11,IF($C$5,8,0),1,1)) -> 520.530029 | H34: =AVERAGE(OFFSET(G34,0,0,$A$18,1)) -> 526.9840088 | I34: =OFFSET(H34,$A$16+1,0,1,1) -> 531.3440064 | J34: =OFFSET(H34,$A$16+2,0,1,1) -> 534.7340088 | K34: -33.900024 | L34: =K34>$A$19 -> FALSE | M34: =K34<-$A$19 -> TRUE | N34: =COUNTIF(OFFSET(L34,0,0,$A$17,1),TRUE) -> 7 | O34: =COUNTIF(OFFSET(M34,0,0,$A$17,1),TRUE) -> 12 | P34: =(100*(N34-O34)/$E$17) -> -2.380952381 | Q34: =ABS(P34) -> 2.380952381 | R34: =(100*(N34)/$E$17) -> 3.333333333 | S34: =(100*(-O34)/$E$17) -> -5.714285714 | T34: -2.380952381 | U34: =IF($R$16=3,R34,NA()) ->  | V34: =IF($R$16=3,S34,NA()) ->  | AW34: 5228600 | AY34: =$E$27 -> 47 | AZ34: =CEILING(AZ32,10^INT(LOG10(AZ32))/8) -> 37500000 | BA34: =$E$27 -> 47 | BB34: 125000000 | BC34: =$E$27 -> 47 | BD34: 603.7967572 | BE34: =$E$27 -> 47 | BF34: 230.34825 | BG34: =$E$27 -> 47 | BH34: =IF(#REF!=1,180,NA()) ->  | BI34: =$E$27 -> 47 | BJ34: 10 | BK34: =$E$27 -> 47 | BL34: 7
A35: 3 | B35: =IF(A35>$A$8,"",OFFSET(InputPriceData!B$15,$A35+$A$11,0,1,1)) -> 2020-12-10 | C35: =IF(A35>$A$8,"",OFFSET(InputPriceData!G$15,CalculationsAndCharts!$A35+$A$11,IF($C$5,8,0),1,1)) -> 5194100 | D35: =IF(A35>$A$8,"",OFFSET(InputPriceData!C$15,CalculationsAndCharts!$A35+$A$11,IF($C$5,8,0),1,1)) -> 514.76001 | E35: =IF(A35>$A$8,"",OFFSET(InputPriceData!D$15,CalculationsAndCharts!$A35+$A$11,IF($C$5,8,0),1,1)) -> 522.75 | F35: =IF(A35>$A$8,"",OFFSET(InputPriceData!E$15,CalculationsAndCharts!$A35+$A$11,IF($C$5,8,0),1,1)) -> 513.97998 | G35: =IF(A35>$A$8,"",OFFSET(InputPriceData!F$15,CalculationsAndCharts!$A35+$A$11,IF($C$5,8,0),1,1)) -> 518.890015 | H35: 531.3440064 | I35: 534.7340088 | J35: 539.6440186 | K35: -49.100098 | L35: FALSE | M35: TRUE | N35: 7 | O35: 12 | P35: -2.380952381 | Q35: 2.380952381 | R35: 3.333333333 | S35: -5.714285714 | T35: -2.380952381 | AW35: 5194100
A36: 4 | B36: =IF(A36>$A$8,"",OFFSET(InputPriceData!B$15,$A36+$A$11,0,1,1)) -> 2020-12-09 | C36: =IF(A36>$A$8,"",OFFSET(InputPriceData!G$15,CalculationsAndCharts!$A36+$A$11,IF($C$5,8,0),1,1)) -> 10032500 | D36: =IF(A36>$A$8,"",OFFSET(InputPriceData!C$15,CalculationsAndCharts!$A36+$A$11,IF($C$5,8,0),1,1)) -> 532.02002 | E36: =IF(A36>$A$8,"",OFFSET(InputPriceData!D$15,CalculationsAndCharts!$A36+$A$11,IF($C$5,8,0),1,1)) -> 536.559998 | F36: =IF(A36>$A$8,"",OFFSET(InputPriceData!E$15,CalculationsAndCharts!$A36+$A$11,IF($C$5,8,0),1,1)) -> 514.72998 | G36: =IF(A36>$A$8,"",OFFSET(InputPriceData!F$15,CalculationsAndCharts!$A36+$A$11,IF($C$5,8,0),1,1)) -> 517.22998 | H36: 534.7340088 | I36: 539.6440186 | J36: 539.9640138 | K36: -3.199952 | L36: FALSE | M36: TRUE | N36: 7 | O36: 12 | P36: -2.380952381 | Q36: 2.380952381 | R36: 3.333333333 | S36: -5.714285714 | T36: -2.380952381 | AX36: 10032500
A37: 5 | B37: =IF(A37>$A$8,"",OFFSET(InputPriceData!B$15,$A37+$A$11,0,1,1)) -> 2020-12-08 | C37: =IF(A37>$A$8,"",OFFSET(InputPriceData!G$15,CalculationsAndCharts!$A37+$A$11,IF($C$5,8,0),1,1)) -> 6798000 | D37: =IF(A37>$A$8,"",OFFSET(InputPriceData!C$15,CalculationsAndCharts!$A37+$A$11,IF($C$5,8,0),1,1)) -> 543.400024 | E37: =IF(A37>$A$8,"",OFFSET(InputPriceData!D$15,CalculationsAndCharts!$A37+$A$11,IF($C$5,8,0),1,1)) -> 543.950012 | F37: =IF(A37>$A$8,"",OFFSET(InputPriceData!E$15,CalculationsAndCharts!$A37+$A$11,IF($C$5,8,0),1,1)) -> 531.26001 | G37: =IF(A37>$A$8,"",OFFSET(InputPriceData!F$15,CalculationsAndCharts!$A37+$A$11,IF($C$5,8,0),1,1)) -> 534 | H37: 539.6440186 | I37: 539.9640138 | J37: 538.3220094 | K37: 16.420044 | L37: TRUE | M37: FALSE | N37: 8 | O37: 11 | P37: -1.428571429 | Q37: 1.428571429 | R37: 3.80952381 | S37: -5.238095238 | T37: -1.428571429 | AX37: 6798000
A38: 6 | B38: =IF(A38>$A$8,"",OFFSET(InputPriceData!B$15,$A38+$A$11,0,1,1)) -> 2020-12-07 | C38: =IF(A38>$A$8,"",OFFSET(InputPriceData!G$15,CalculationsAndCharts!$A38+$A$11,IF($C$5,8,0),1,1)) -> 5581100 | D38: =IF(A38>$A$8,"",OFFSET(InputPriceData!C$15,CalculationsAndCharts!$A38+$A$11,IF($C$5,8,0),1,1)) -> 544.049988 | E38: =IF(A38>$A$8,"",OFFSET(InputPriceData!D$15,CalculationsAndCharts!$A38+$A$11,IF($C$5,8,0),1,1)) -> 549.25 | F38: =IF(A38>$A$8,"",OFFSET(InputPriceData!E$15,CalculationsAndCharts!$A38+$A$11,IF($C$5,8,0),1,1)) -> 540 | G38: =IF(A38>$A$8,"",OFFSET(InputPriceData!F$15,CalculationsAndCharts!$A38+$A$11,IF($C$5,8,0),1,1)) -> 544.27002 | H38: 539.9640138 | I38: 538.3220094 | J38: 535.9460084 | K38: 23.76001 | L38: TRUE | M38: FALSE | N38: 8 | O38: 11 | P38: -1.428571429 | Q38: 1.428571429 | R38: 3.80952381 | S38: -5.238095238 | T38: -1.428571429 | AW38: 5581100
A39: 7 | B39: =IF(A39>$A$8,"",OFFSET(InputPriceData!B$15,$A39+$A$11,0,1,1)) -> 2020-12-04 | C39: =IF(A39>$A$8,"",OFFSET(InputPriceData!G$15,CalculationsAndCharts!$A39+$A$11,IF($C$5,8,0),1,1)) -> 5056100 | D39: =IF(A39>$A$8,"",OFFSET(InputPriceData!C$15,CalculationsAndCharts!$A39+$A$11,IF($C$5,8,0),1,1)) -> 537.940002 | E39: =IF(A39>$A$8,"",OFFSET(InputPriceData!D$15,CalculationsAndCharts!$A39+$A$11,IF($C$5,8,0),1,1)) -> 542.400024 | F39: =IF(A39>$A$8,"",OFFSET(InputPriceData!E$15,CalculationsAndCharts!$A39+$A$11,IF($C$5,8,0),1,1)) -> 535.549988 | G39: =IF(A39>$A$8,"",OFFSET(InputPriceData!F$15,CalculationsAndCharts!$A39+$A$11,IF($C$5,8,0),1,1)) -> 542.330017 | H39: 538.3220094 | I39: 535.9460084 | J39: 534.656006 | K39: 12.900024 | L39: TRUE | M39: FALSE | N39: 8 | O39: 11 | P39: -1.428571429 | Q39: 1.428571429 | R39: 3.80952381 | S39: -5.238095238 | T39: -1.428571429 | AW39: 5056100
A40: 8 | B40: =IF(A40>$A$8,"",OFFSET(InputPriceData!B$15,$A40+$A$11,0,1,1)) -> 2020-12-03 | C40: =IF(A40>$A$8,"",OFFSET(InputPriceData!G$15,CalculationsAndCharts!$A40+$A$11,IF($C$5,8,0),1,1)) -> 4988000 | D40: =IF(A40>$A$8,"",OFFSET(InputPriceData!C$15,CalculationsAndCharts!$A40+$A$11,IF($C$5,8,0),1,1)) -> 543.5 | E40: =IF(A40>$A$8,"",OFFSET(InputPriceData!D$15,CalculationsAndCharts!$A40+$A$11,IF($C$5,8,0),1,1)) -> 546.400024 | F40: =IF(A40>$A$8,"",OFFSET(InputPriceData!E$15,CalculationsAndCharts!$A40+$A$11,IF($C$5,8,0),1,1)) -> 533.159973 | G40: =IF(A40>$A$8,"",OFFSET(InputPriceData!F$15,CalculationsAndCharts!$A40+$A$11,IF($C$5,8,0),1,1)) -> 535.840027 | H40: 535.9460084 | I40: 534.656006 | J40: 529.9619998 | K40: 46.940062 | L40: TRUE | M40: FALSE | N40: 8 | O40: 11 | P40: -1.428571429 | Q40: 1.428571429 | R40: 3.80952381 | S40: -5.238095238 | T40: -1.428571429 | AX40: 4988000
A41: 9 | B41: =IF(A41>$A$8,"",OFFSET(InputPriceData!B$15,$A41+$A$11,0,1,1)) -> 2020-12-02 | C41: =IF(A41>$A$8,"",OFFSET(InputPriceData!G$15,CalculationsAndCharts!$A41+$A$11,IF($C$5,8,0),1,1)) -> 7084000 | D41: =IF(A41>$A$8,"",OFFSET(InputPriceData!C$15,CalculationsAndCharts!$A41+$A$11,IF($C$5,8,0),1,1)) -> 534.02002 | E41: =IF(A41>$A$8,"",OFFSET(InputPriceData!D$15,CalculationsAndCharts!$A41+$A$11,IF($C$5,8,0),1,1)) -> 546.940002 | F41: =IF(A41>$A$8,"",OFFSET(InputPriceData!E$15,CalculationsAndCharts!$A41+$A$11,IF($C$5,8,0),1,1)) -> 529.369995 | G41: =IF(A41>$A$8,"",OFFSET(InputPriceData!F$15,CalculationsAndCharts!$A41+$A$11,IF($C$5,8,0),1,1)) -> 541.780029 | H41: 534.656006 | I41: 529.9619998 | J41: 527.9619998 | K41: 20 | L41: TRUE | M41: FALSE | N41: 7 | O41: 12 | P41: -2.380952381 | Q41: 2.380952381 | R41: 3.333333333 | S41: -5.714285714 | T41: -2.380952381 | AW41: 7084000
A42: 10 | B42: =IF(A42>$A$8,"",OFFSET(InputPriceData!B$15,$A42+$A$11,0,1,1)) -> 2020-12-01 | C42: =IF(A42>$A$8,"",OFFSET(InputPriceData!G$15,CalculationsAndCharts!$A42+$A$11,IF($C$5,8,0),1,1)) -> 7439300 | D42: =IF(A42>$A$8,"",OFFSET(InputPriceData!C$15,CalculationsAndCharts!$A42+$A$11,IF($C$5,8,0),1,1)) -> 539.690002 | E42: =IF(A42>$A$8,"",OFFSET(InputPriceData!D$15,CalculationsAndCharts!$A42+$A$11,IF($C$5,8,0),1,1)) -> 541.150024 | F42: =IF(A42>$A$8,"",OFFSET(InputPriceData!E$15,CalculationsAndCharts!$A42+$A$11,IF($C$5,8,0),1,1)) -> 529.130005 | G42: =IF(A42>$A$8,"",OFFSET(InputPriceData!F$15,CalculationsAndCharts!$A42+$A$11,IF($C$5,8,0),1,1)) -> 535.599976 | H42: 529.9619998 | I42: 527.9619998 | J42: 525.4520022 | K42: 25.099976 | L42: TRUE | M42: FALSE | N42: 6 | O42: 13 | P42: -3.333333333 | Q42: 3.333333333 | R42: 2.857142857 | S42: -6.19047619 | T42: -3.333333333 | AX42: 7439300
A43: 11 | B43: =IF(A43>$A$8,"",OFFSET(InputPriceData!B$15,$A43+$A$11,0,1,1)) -> 2020-11-30 | C43: =IF(A43>$A$8,"",OFFSET(InputPriceData!G$15,CalculationsAndCharts!$A43+$A$11,IF($C$5,8,0),1,1)) -> 7173800 | D43: =IF(A43>$A$8,"",OFFSET(InputPriceData!C$15,CalculationsAndCharts!$A43+$A$11,IF($C$5,8,0),1,1)) -> 530.599976 | E43: =IF(A43>$A$8,"",OFFSET(InputPriceData!D$15,CalculationsAndCharts!$A43+$A$11,IF($C$5,8,0),1,1)) -> 536.5 | F43: =IF(A43>$A$8,"",OFFSET(InputPriceData!E$15,CalculationsAndCharts!$A43+$A$11,IF($C$5,8,0),1,1)) -> 518.890015 | G43: =IF(A43>$A$8,"",OFFSET(InputPriceData!F$15,CalculationsAndCharts!$A43+$A$11,IF($C$5,8,0),1,1)) -> 536.059998 | H43: 527.9619998 | I43: 525.4520022 | J43: 526.8839968 | K43: -14.319946 | L43: FALSE | M43: TRUE | N43: 5 | O43: 14 | P43: -4.285714286 | Q43: 4.285714286 | R43: 2.380952381 | S43: -6.666666667 | T43: -4.285714286 | AW43: 7173800
A44: 12 | B44: =IF(A44>$A$8,"",OFFSET(InputPriceData!B$15,$A44+$A$11,0,1,1)) -> 2020-11-27 | C44: =IF(A44>$A$8,"",OFFSET(InputPriceData!G$15,CalculationsAndCharts!$A44+$A$11,IF($C$5,8,0),1,1)) -> 4181900 | D44: =IF(A44>$A$8,"",OFFSET(InputPriceData!C$15,CalculationsAndCharts!$A44+$A$11,IF($C$5,8,0),1,1)) -> 535 | E44: =IF(A44>$A$8,"",OFFSET(InputPriceData!D$15,CalculationsAndCharts!$A44+$A$11,IF($C$5,8,0),1,1)) -> 536.299988 | F44: =IF(A44>$A$8,"",OFFSET(InputPriceData!E$15,CalculationsAndCharts!$A44+$A$11,IF($C$5,8,0),1,1)) -> 526.820007 | G44: =IF(A44>$A$8,"",OFFSET(InputPriceData!F$15,CalculationsAndCharts!$A44+$A$11,IF($C$5,8,0),1,1)) -> 530.450012 | H44: 525.4520022 | I44: 526.8839968 | J44: 528.4359986 | K44: -15.520018 | L44: FALSE | M44: TRUE | N44: 5 | O44: 14 | P44: -4.285714286 | Q44: 4.285714286 | R44: 2.380952381 | S44: -6.666666667 | T44: -4.285714286 | AX44: 4181900
A45: 13 | B45: =IF(A45>$A$8,"",OFFSET(InputPriceData!B$15,$A45+$A$11,0,1,1)) -> 2020-11-25 | C45: =IF(A45>$A$8,"",OFFSET(InputPriceData!G$15,CalculationsAndCharts!$A45+$A$11,IF($C$5,8,0),1,1)) -> 6497900 | D45: =IF(A45>$A$8,"",OFFSET(InputPriceData!C$15,CalculationsAndCharts!$A45+$A$11,IF($C$5,8,0),1,1)) -> 521.299988 | E45: =IF(A45>$A$8,"",OFFSET(InputPriceData!D$15,CalculationsAndCharts!$A45+$A$11,IF($C$5,8,0),1,1)) -> 530.780029 | F45: =IF(A45>$A$8,"",OFFSET(InputPriceData!E$15,CalculationsAndCharts!$A45+$A$11,IF($C$5,8,0),1,1)) -> 520.799988 | G45: =IF(A45>$A$8,"",OFFSET(InputPriceData!F$15,CalculationsAndCharts!$A45+$A$11,IF($C$5,8,0),1,1)) -> 529.390015 | H45: 526.8839968 | I45: 528.4359986 | J45: 532.152002 | K45: -37.160034 | L45: FALSE | M45: TRUE | N45: 5 | O45: 14 | P45: -4.285714286 | Q45: 4.285714286 | R45: 2.380952381 | S45: -6.666666667 | T45: -4.285714286 | AW45: 6497900
A46: 14 | B46: =IF(A46>$A$8,"",OFFSET(InputPriceData!B$15,$A46+$A$11,0,1,1)) -> 2020-11-24 | C46: =IF(A46>$A$8,"",OFFSET(InputPriceData!G$15,CalculationsAndCharts!$A46+$A$11,IF($C$5,8,0),1,1)) -> 8662500 | D46: =IF(A46>$A$8,"",OFFSET(InputPriceData!C$15,CalculationsAndCharts!$A46+$A$11,IF($C$5,8,0),1,1)) -> 525.700012 | E46: =IF(A46>$A$8,"",OFFSET(InputPriceData!D$15,CalculationsAndCharts!$A46+$A$11,IF($C$5,8,0),1,1)) -> 526.47998 | F46: =IF(A46>$A$8,"",OFFSET(InputPriceData!E$15,CalculationsAndCharts!$A46+$A$11,IF($C$5,8,0),1,1)) -> 515.400024 | G46: =IF(A46>$A$8,"",OFFSET(InputPriceData!F$15,CalculationsAndCharts!$A46+$A$11,IF($C$5,8,0),1,1)) -> 518.309998 | H46: 528.4359986 | I46: 532.152002 | J46: 535.1540038 | K46: -30.020018 | L46: FALSE | M46: TRUE | N46: 5 | O46: 14 | P46: -4.285714286 | Q46: 4.285714286 | R46: 2.380952381 | S46: -6.666666667 | T46: -4.285714286 | AX46: 8662500
A47: 15 | B47: =IF(A47>$A$8,"",OFFSET(InputPriceData!B$15,$A47+$A$11,0,1,1)) -> 2020-11-23 | C47: =IF(A47>$A$8,"",OFFSET(InputPriceData!G$15,CalculationsAndCharts!$A47+$A$11,IF($C$5,8,0),1,1)) -> 9033900 | D47: =IF(A47>$A$8,"",OFFSET(InputPriceData!C$15,CalculationsAndCharts!$A47+$A$11,IF($C$5,8,0),1,1)) -> 526.849976 | E47: =IF(A47>$A$8,"",OFFSET(InputPriceData!D$15,CalculationsAndCharts!$A47+$A$11,IF($C$5,8,0),1,1)) -> 535.299988 | F47: =IF(A47>$A$8,"",OFFSET(InputPriceData!E$15,CalculationsAndCharts!$A47+$A$11,IF($C$5,8,0),1,1)) -> 520.619995 | G47: =IF(A47>$A$8,"",OFFSET(InputPriceData!F$15,CalculationsAndCharts!$A47+$A$11,IF($C$5,8,0),1,1)) -> 525.599976 | H47: 532.152002 | I47: 535.1540038 | J47: 536.8280028 | K47: -16.73999 | L47: FALSE | M47: TRUE | N47: 5 | O47: 14 | P47: -4.285714286 | Q47: 4.285714286 | R47: 2.380952381 | S47: -6.666666667 | T47: -4.285714286 | AX47: 9033900
A48: 16 | B48: =IF(A48>$A$8,"",OFFSET(InputPriceData!B$15,$A48+$A$11,0,1,1)) -> 2020-11-20 | C48: =IF(A48>$A$8,"",OFFSET(InputPriceData!G$15,CalculationsAndCharts!$A48+$A$11,IF($C$5,8,0),1,1)) -> 8500500 | D48: =IF(A48>$A$8,"",OFFSET(InputPriceData!C$15,CalculationsAndCharts!$A48+$A$11,IF($C$5,8,0),1,1)) -> 538.159973 | E48: =IF(A48>$A$8,"",OFFSET(InputPriceData!D$15,CalculationsAndCharts!$A48+$A$11,IF($C$5,8,0),1,1)) -> 539.780029 | F48: =IF(A48>$A$8,"",OFFSET(InputPriceData!E$15,CalculationsAndCharts!$A48+$A$11,IF($C$5,8,0),1,1)) -> 522.599976 | G48: =IF(A48>$A$8,"",OFFSET(InputPriceData!F$15,CalculationsAndCharts!$A48+$A$11,IF($C$5,8,0),1,1)) -> 523.51001 | H48: 535.1540038 | I48: 536.8280028 | J48: 536.9600098 | K48: -1.32007 | L48: FALSE | M48: TRUE | N48: 5 | O48: 14 | P48: -4.285714286 | Q48: 4.285714286 | R48: 2.380952381 | S48: -6.666666667 | T48: -4.285714286 | AX48: 8500500
A49: 17 | B49: =IF(A49>$A$8,"",OFFSET(InputPriceData!B$15,$A49+$A$11,0,1,1)) -> 2020-11-19 | C49: =IF(A49>$A$8,"",OFFSET(InputPriceData!G$15,CalculationsAndCharts!$A49+$A$11,IF($C$5,8,0),1,1)) -> 14148400 | D49: =IF(A49>$A$8,"",OFFSET(InputPriceData!C$15,CalculationsAndCharts!$A49+$A$11,IF($C$5,8,0),1,1)) -> 528.51001 | E49: =IF(A49>$A$8,"",OFFSET(InputPriceData!D$15,CalculationsAndCharts!$A49+$A$11,IF($C$5,8,0),1,1)) -> 539.5 | F49: =IF(A49>$A$8,"",OFFSET(InputPriceData!E$15,CalculationsAndCharts!$A49+$A$11,IF($C$5,8,0),1,1)) -> 524 | G49: =IF(A49>$A$8,"",OFFSET(InputPriceData!F$15,CalculationsAndCharts!$A49+$A$11,IF($C$5,8,0),1,1)) -> 537.609985 | H49: 536.8280028 | I49: 536.9600098 | J49: 536.8739992 | K49: 0.860106 | L49: FALSE | M49: FALSE | N49: 5 | O49: 14 | P49: -4.285714286 | Q49: 4.285714286 | R49: 2.380952381 | S49: -6.666666667 | T49: -4.285714286 | AW49: 14148400
A50: 18 | B50: =IF(A50>$A$8,"",OFFSET(InputPriceData!B$15,$A50+$A$11,0,1,1)) -> 2020-11-18 | C50: =IF(A50>$A$8,"",OFFSET(InputPriceData!G$15,CalculationsAndCharts!$A50+$A$11,IF($C$5,8,0),1,1)) -> 12773100 | D50: =IF(A50>$A$8,"",OFFSET(InputPriceData!C$15,CalculationsAndCharts!$A50+$A$11,IF($C$5,8,0),1,1)) -> 538.609985 | E50: =IF(A50>$A$8,"",OFFSET(InputPriceData!D$15,CalculationsAndCharts!$A50+$A$11,IF($C$5,8,0),1,1)) -> 544.22998 | F50: =IF(A50>$A$8,"",OFFSET(InputPriceData!E$15,CalculationsAndCharts!$A50+$A$11,IF($C$5,8,0),1,1)) -> 527.400024 | G50: =IF(A50>$A$8,"",OFFSET(InputPriceData!F$15,CalculationsAndCharts!$A50+$A$11,IF($C$5,8,0),1,1)) -> 537.150024 | H50: 536.9600098 | I50: 536.8739992 | J50: 531.6559938 | K50: 52.180054 | L50: TRUE | M50: FALSE | N50: 5 | O50: 15 | P50: -4.761904762 | Q50: 4.761904762 | R50: 2.380952381 | S50: -7.142857143 | T50: -4.761904762 | AX50: 12773100
A51: 19 | B51: =IF(A51>$A$8,"",OFFSET(InputPriceData!B$15,$A51+$A$11,0,1,1)) -> 2020-11-17 | C51: =IF(A51>$A$8,"",OFFSET(InputPriceData!G$15,CalculationsAndCharts!$A51+$A$11,IF($C$5,8,0),1,1)) -> 7800700 | D51: =IF(A51>$A$8,"",OFFSET(InputPriceData!C$15,CalculationsAndCharts!$A51+$A$11,IF($C$5,8,0),1,1)) -> 542.099976 | E51: =IF(A51>$A$8,"",OFFSET(InputPriceData!D$15,CalculationsAndCharts!$A51+$A$11,IF($C$5,8,0),1,1)) -> 543.849976 | F51: =IF(A51>$A$8,"",OFFSET(InputPriceData!E$15,CalculationsAndCharts!$A51+$A$11,IF($C$5,8,0),1,1)) -> 532.150024 | G51: =IF(A51>$A$8,"",OFFSET(InputPriceData!F$15,CalculationsAndCharts!$A51+$A$11,IF($C$5,8,0),1,1)) -> 536.890015 | H51: 536.8739992 | I51: 531.6559938 | J51: 532.5799928 | K51: -9.23999 | L51: FALSE | M51: TRUE | N51: 4 | O51: 16 | P51: -5.714285714 | Q51: 5.714285714 | R51: 1.904761905 | S51: -7.619047619 | T51: -5.714285714 | AX51: 7800700
A52: 20 | B52: =IF(A52>$A$8,"",OFFSET(InputPriceData!B$15,$A52+$A$11,0,1,1)) -> 2020-11-16 | C52: =IF(A52>$A$8,"",OFFSET(InputPriceData!G$15,CalculationsAndCharts!$A52+$A$11,IF($C$5,8,0),1,1)) -> 10344400 | D52: =IF(A52>$A$8,"",OFFSET(InputPriceData!C$15,CalculationsAndCharts!$A52+$A$11,IF($C$5,8,0),1,1)) -> 526.900024 | E52: =IF(A52>$A$8,"",OFFSET(InputPriceData!D$15,CalculationsAndCharts!$A52+$A$11,IF($C$5,8,0),1,1)) -> 545.97998 | F52: =IF(A52>$A$8,"",OFFSET(InputPriceData!E$15,CalculationsAndCharts!$A52+$A$11,IF($C$5,8,0),1,1)) -> 526.23999 | G52: =IF(A52>$A$8,"",OFFSET(InputPriceData!F$15,CalculationsAndCharts!$A52+$A$11,IF($C$5,8,0),1,1)) -> 540.609985 | H52: 531.6559938 | I52: 532.5799928 | J52: 542.6999878 | K52: -101.19995 | L52: FALSE | M52: TRUE | N52: 4 | O52: 16 | P52: -5.714285714 | Q52: 5.714285714 | R52: 1.904761905 | S52: -7.619047619 | T52: -5.714285714 | AW52: 10344400
A53: 21 | B53: =IF(A53>$A$8,"",OFFSET(InputPriceData!B$15,$A53+$A$11,0,1,1)) -> 2020-11-13 | C53: =IF(A53>$A$8,"",OFFSET(InputPriceData!G$15,CalculationsAndCharts!$A53+$A$11,IF($C$5,8,0),1,1)) -> 8657800 | D53: =IF(A53>$A$8,"",OFFSET(InputPriceData!C$15,CalculationsAndCharts!$A53+$A$11,IF($C$5,8,0),1,1)) -> 545.090027 | E53: =IF(A53>$A$8,"",OFFSET(InputPriceData!D$15,CalculationsAndCharts!$A53+$A$11,IF($C$5,8,0),1,1)) -> 546.75 | F53: =IF(A53>$A$8,"",OFFSET(InputPriceData!E$15,CalculationsAndCharts!$A53+$A$11,IF($C$5,8,0),1,1)) -> 522.369995 | G53: =IF(A53>$A$8,"",OFFSET(InputPriceData!F$15,CalculationsAndCharts!$A53+$A$11,IF($C$5,8,0),1,1)) -> 531.880005 | H53: 532.5799928 | I53: 542.6999878 | J53: 548.3259886 | K53: -56.260008 | L53: FALSE | M53: TRUE | N53: 5 | O53: 15 | P53: -4.761904762 | Q53: 4.761904762 | R53: 2.380952381 | S53: -7.142857143 | T53: -4.761904762 | AX53: 8657800
A54: 22 | B54: =IF(A54>$A$8,"",OFFSET(InputPriceData!B$15,$A54+$A$11,0,1,1)) -> 2020-11-12 | C54: =IF(A54>$A$8,"",OFFSET(InputPriceData!G$15,CalculationsAndCharts!$A54+$A$11,IF($C$5,8,0),1,1)) -> 9145300 | D54: =IF(A54>$A$8,"",OFFSET(InputPriceData!C$15,CalculationsAndCharts!$A54+$A$11,IF($C$5,8,0),1,1)) -> 539.159973 | E54: =IF(A54>$A$8,"",OFFSET(InputPriceData!D$15,CalculationsAndCharts!$A54+$A$11,IF($C$5,8,0),1,1)) -> 550.640015 | F54: =IF(A54>$A$8,"",OFFSET(InputPriceData!E$15,CalculationsAndCharts!$A54+$A$11,IF($C$5,8,0),1,1)) -> 532.640015 | G54: =IF(A54>$A$8,"",OFFSET(InputPriceData!F$15,CalculationsAndCharts!$A54+$A$11,IF($C$5,8,0),1,1)) -> 538.27002 | H54: 542.6999878 | I54: 548.3259886 | J54: 551.3359984 | K54: -30.100098 | L54: FALSE | M54: TRUE | N54: 6 | O54: 14 | P54: -3.80952381 | Q54: 3.80952381 | R54: 2.857142857 | S54: -6.666666667 | T54: -3.80952381 | AX54: 9145300
A55: 23 | B55: =IF(A55>$A$8,"",OFFSET(InputPriceData!B$15,$A55+$A$11,0,1,1)) -> 2020-11-11 | C55: =IF(A55>$A$8,"",OFFSET(InputPriceData!G$15,CalculationsAndCharts!$A55+$A$11,IF($C$5,8,0),1,1)) -> 10118600 | D55: =IF(A55>$A$8,"",OFFSET(InputPriceData!C$15,CalculationsAndCharts!$A55+$A$11,IF($C$5,8,0),1,1)) -> 522.150024 | E55: =IF(A55>$A$8,"",OFFSET(InputPriceData!D$15,CalculationsAndCharts!$A55+$A$11,IF($C$5,8,0),1,1)) -> 537.400024 | F55: =IF(A55>$A$8,"",OFFSET(InputPriceData!E$15,CalculationsAndCharts!$A55+$A$11,IF($C$5,8,0),1,1)) -> 517.929993 | G55: =IF(A55>$A$8,"",OFFSET(InputPriceData!F$15,CalculationsAndCharts!$A55+$A$11,IF($C$5,8,0),1,1)) -> 536.719971 | H55: 548.3259886 | I55: 551.3359984 | J55: 553.3320066 | K55: -19.960082 | L55: FALSE | M55: TRUE | N55: 7 | O55: 13 | P55: -2.857142857 | Q55: 2.857142857 | R55: 3.333333333 | S55: -6.19047619 | T55: -2.857142857 | AW55: 10118600
A56: 24 | B56: =IF(A56>$A$8,"",OFFSET(InputPriceData!B$15,$A56+$A$11,0,1,1)) -> 2020-11-10 | C56: =IF(A56>$A$8,"",OFFSET(InputPriceData!G$15,CalculationsAndCharts!$A56+$A$11,IF($C$5,8,0),1,1)) -> 16101700 | D56: =IF(A56>$A$8,"",OFFSET(InputPriceData!C$15,CalculationsAndCharts!$A56+$A$11,IF($C$5,8,0),1,1)) -> 544.26001 | E56: =IF(A56>$A$8,"",OFFSET(InputPriceData!D$15,CalculationsAndCharts!$A56+$A$11,IF($C$5,8,0),1,1)) -> 544.26001 | F56: =IF(A56>$A$8,"",OFFSET(InputPriceData!E$15,CalculationsAndCharts!$A56+$A$11,IF($C$5,8,0),1,1)) -> 505.130005 | G56: =IF(A56>$A$8,"",OFFSET(InputPriceData!F$15,CalculationsAndCharts!$A56+$A$11,IF($C$5,8,0),1,1)) -> 510.799988 | H56: 551.3359984 | I56: 553.3320066 | J56: 544.9320128 | K56: 83.999938 | L56: TRUE | M56: FALSE | N56: 8 | O56: 12 | P56: -1.904761905 | Q56: 1.904761905 | R56: 3.80952381 | S56: -5.714285714 | T56: -1.904761905 | AX56: 16101700
A57: 25 | B57: =IF(A57>$A$8,"",OFFSET(InputPriceData!B$15,$A57+$A$11,0,1,1)) -> 2020-11-09 | C57: =IF(A57>$A$8,"",OFFSET(InputPriceData!G$15,CalculationsAndCharts!$A57+$A$11,IF($C$5,8,0),1,1)) -> 14574400 | D57: =IF(A57>$A$8,"",OFFSET(InputPriceData!C$15,CalculationsAndCharts!$A57+$A$11,IF($C$5,8,0),1,1)) -> 582.099976 | E57: =IF(A57>$A$8,"",OFFSET(InputPriceData!D$15,CalculationsAndCharts!$A57+$A$11,IF($C$5,8,0),1,1)) -> 587.659973 | F57: =IF(A57>$A$8,"",OFFSET(InputPriceData!E$15,CalculationsAndCharts!$A57+$A$11,IF($C$5,8,0),1,1)) -> 544.429993 | G57: =IF(A57>$A$8,"",OFFSET(InputPriceData!F$15,CalculationsAndCharts!$A57+$A$11,IF($C$5,8,0),1,1)) -> 545.22998 | H57: 553.3320066 | I57: 544.9320128 | J57: 528.7080138 | K57: 162.23999 | L57: TRUE | M57: FALSE | N57: 8 | O57: 12 | P57: -1.904761905 | Q57: 1.904761905 | R57: 3.80952381 | S57: -5.714285714 | T57: -1.904761905 | AX57: 14574400
A58: 26 | B58: =IF(A58>$A$8,"",OFFSET(InputPriceData!B$15,$A58+$A$11,0,1,1)) -> 2020-11-06 | C58: =IF(A58>$A$8,"",OFFSET(InputPriceData!G$15,CalculationsAndCharts!$A58+$A$11,IF($C$5,8,0),1,1)) -> 9583700 | D58: =IF(A58>$A$8,"",OFFSET(InputPriceData!C$15,CalculationsAndCharts!$A58+$A$11,IF($C$5,8,0),1,1)) -> 564.390015 | E58: =IF(A58>$A$8,"",OFFSET(InputPriceData!D$15,CalculationsAndCharts!$A58+$A$11,IF($C$5,8,0),1,1)) -> 583.549988 | F58: =IF(A58>$A$8,"",OFFSET(InputPriceData!E$15,CalculationsAndCharts!$A58+$A$11,IF($C$5,8,0),1,1)) -> 555.799988 | G58: =IF(A58>$A$8,"",OFFSET(InputPriceData!F$15,CalculationsAndCharts!$A58+$A$11,IF($C$5,8,0),1,1)) -> 582.47998 | H58: 544.9320128 | I58: 528.7080138 | J58: 519.6200134 | K58: 90.880004 | L58: TRUE | M58: FALSE | N58: 8 | O58: 12 | P58: -1.904761905 | Q58: 1.904761905 | R58: 3.80952381 | S58: -5.714285714 | T58: -1.904761905 | AW58: 9583700
A59: 27 | B59: =IF(A59>$A$8,"",OFFSET(InputPriceData!B$15,$A59+$A$11,0,1,1)) -> 2020-11-05 | C59: =IF(A59>$A$8,"",OFFSET(InputPriceData!G$15,CalculationsAndCharts!$A59+$A$11,IF($C$5,8,0),1,1)) -> 7975700 | D59: =IF(A59>$A$8,"",OFFSET(InputPriceData!C$15,CalculationsAndCharts!$A59+$A$11,IF($C$5,8,0),1,1)) -> 566.5 | E59: =IF(A59>$A$8,"",OFFSET(InputPriceData!D$15,CalculationsAndCharts!$A59+$A$11,IF($C$5,8,0),1,1)) -> 573.559998 | F59: =IF(A59>$A$8,"",OFFSET(InputPriceData!E$15,CalculationsAndCharts!$A59+$A$11,IF($C$5,8,0),1,1)) -> 559.640015 | G59: =IF(A59>$A$8,"",OFFSET(InputPriceData!F$15,CalculationsAndCharts!$A59+$A$11,IF($C$5,8,0),1,1)) -> 566.400024 | H59: 528.7080138 | I59: 519.6200134 | J59: 510.2820068 | K59: 93.380066 | L59: TRUE | M59: FALSE | N59: 8 | O59: 12 | P59: -1.904761905 | Q59: 1.904761905 | R59: 3.80952381 | S59: -5.714285714 | T59: -1.904761905 | AX59: 7975700
A60: 28 | B60: =IF(A60>$A$8,"",OFFSET(InputPriceData!B$15,$A60+$A$11,0,1,1)) -> 2020-11-04 | C60: =IF(A60>$A$8,"",OFFSET(InputPriceData!G$15,CalculationsAndCharts!$A60+$A$11,IF($C$5,8,0),1,1)) -> 10255700 | D60: =IF(A60>$A$8,"",OFFSET(InputPriceData!C$15,CalculationsAndCharts!$A60+$A$11,IF($C$5,8,0),1,1)) -> 535.570007 | E60: =IF(A60>$A$8,"",OFFSET(InputPriceData!D$15,CalculationsAndCharts!$A60+$A$11,IF($C$5,8,0),1,1)) -> 553.099976 | F60: =IF(A60>$A$8,"",OFFSET(InputPriceData!E$15,CalculationsAndCharts!$A60+$A$11,IF($C$5,8,0),1,1)) -> 533.47998 | G60: =IF(A60>$A$8,"",OFFSET(InputPriceData!F$15,CalculationsAndCharts!$A60+$A$11,IF($C$5,8,0),1,1)) -> 551.77002 | H60: 519.6200134 | I60: 510.2820068 | J60: 513.3 | K60: -30.179932 | L60: FALSE | M60: TRUE | N60: 8 | O60: 12 | P60: -1.904761905 | Q60: 1.904761905 | R60: 3.80952381 | S60: -5.714285714 | T60: -1.904761905 | AW60: 10255700
A61: 29 | B61: =IF(A61>$A$8,"",OFFSET(InputPriceData!B$15,$A61+$A$11,0,1,1)) -> 2020-11-03 | C61: =IF(A61>$A$8,"",OFFSET(InputPriceData!G$15,CalculationsAndCharts!$A61+$A$11,IF($C$5,8,0),1,1)) -> 6822500 | D61: =IF(A61>$A$8,"",OFFSET(InputPriceData!C$15,CalculationsAndCharts!$A61+$A$11,IF($C$5,8,0),1,1)) -> 508.339996 | E61: =IF(A61>$A$8,"",OFFSET(InputPriceData!D$15,CalculationsAndCharts!$A61+$A$11,IF($C$5,8,0),1,1)) -> 524.200012 | F61: =IF(A61>$A$8,"",OFFSET(InputPriceData!E$15,CalculationsAndCharts!$A61+$A$11,IF($C$5,8,0),1,1)) -> 504.109985 | G61: =IF(A61>$A$8,"",OFFSET(InputPriceData!F$15,CalculationsAndCharts!$A61+$A$11,IF($C$5,8,0),1,1)) -> 520.780029 | H61: 510.2820068 | I61: 513.3 | J61: 517.7840026 | K61: -44.840026 | L61: FALSE | M61: TRUE | N61: 9 | O61: 11 | P61: -0.9523809524 | Q61: 0.9523809524 | R61: 4.285714286 | S61: -5.238095238 | T61: -0.9523809524 | AW61: 6822500
A62: 30 | B62: =IF(A62>$A$8,"",OFFSET(InputPriceData!B$15,$A62+$A$11,0,1,1)) -> 2020-11-02 | C62: =IF(A62>$A$8,"",OFFSET(InputPriceData!G$15,CalculationsAndCharts!$A62+$A$11,IF($C$5,8,0),1,1)) -> 7491300 | D62: =IF(A62>$A$8,"",OFFSET(InputPriceData!C$15,CalculationsAndCharts!$A62+$A$11,IF($C$5,8,0),1,1)) -> 506.309998 | E62: =IF(A62>$A$8,"",OFFSET(InputPriceData!D$15,CalculationsAndCharts!$A62+$A$11,IF($C$5,8,0),1,1)) -> 513.469971 | F62: =IF(A62>$A$8,"",OFFSET(InputPriceData!E$15,CalculationsAndCharts!$A62+$A$11,IF($C$5,8,0),1,1)) -> 495.799988 | G62: =IF(A62>$A$8,"",OFFSET(InputPriceData!F$15,CalculationsAndCharts!$A62+$A$11,IF($C$5,8,0),1,1)) -> 503.230011 | H62: 513.3 | I62: 517.7840026 | J62: 526.2340026 | K62: -84.5 | L62: FALSE | M62: TRUE | N62: 10 | O62: 10 | P62: 0 | Q62: 0 | R62: 4.761904762 | S62: -4.761904762 | T62: 0 | AX62: 7491300
A63: 31 | B63: =IF(A63>$A$8,"",OFFSET(InputPriceData!B$15,$A63+$A$11,0,1,1)) -> 2020-10-30 | C63: =IF(A63>$A$8,"",OFFSET(InputPriceData!G$15,CalculationsAndCharts!$A63+$A$11,IF($C$5,8,0),1,1)) -> 10420500 | D63: =IF(A63>$A$8,"",OFFSET(InputPriceData!C$15,CalculationsAndCharts!$A63+$A$11,IF($C$5,8,0),1,1)) -> 514 | E63: =IF(A63>$A$8,"",OFFSET(InputPriceData!D$15,CalculationsAndCharts!$A63+$A$11,IF($C$5,8,0),1,1)) -> 517.460022 | F63: =IF(A63>$A$8,"",OFFSET(InputPriceData!E$15,CalculationsAndCharts!$A63+$A$11,IF($C$5,8,0),1,1)) -> 492 | G63: =IF(A63>$A$8,"",OFFSET(InputPriceData!F$15,CalculationsAndCharts!$A63+$A$11,IF($C$5,8,0),1,1)) -> 501.359985 | H63: 517.7840026 | I63: 526.2340026 | J63: 528.9299986 | K63: -26.95996 | L63: FALSE | M63: TRUE | N63: 11 | O63: 9 | P63: 0.9523809524 | Q63: 0.9523809524 | R63: 5.238095238 | S63: -4.285714286 | T63: 0.9523809524 | AX63: 10420500
A64: 32 | B64: =IF(A64>$A$8,"",OFFSET(InputPriceData!B$15,$A64+$A$11,0,1,1)) -> 2020-10-29 | C64: =IF(A64>$A$8,"",OFFSET(InputPriceData!G$15,CalculationsAndCharts!$A64+$A$11,IF($C$5,8,0),1,1)) -> 8002000 | D64: =IF(A64>$A$8,"",OFFSET(InputPriceData!C$15,CalculationsAndCharts!$A64+$A$11,IF($C$5,8,0),1,1)) -> 513.539978 | E64: =IF(A64>$A$8,"",OFFSET(InputPriceData!D$15,CalculationsAndCharts!$A64+$A$11,IF($C$5,8,0),1,1)) -> 527.710022 | F64: =IF(A64>$A$8,"",OFFSET(InputPriceData!E$15,CalculationsAndCharts!$A64+$A$11,IF($C$5,8,0),1,1)) -> 510 | G64: =IF(A64>$A$8,"",OFFSET(InputPriceData!F$15,CalculationsAndCharts!$A64+$A$11,IF($C$5,8,0),1,1)) -> 520.960022 | H64: 526.2340026 | I64: 528.9299986 | J64: 536.1119992 | K64: -71.820006 | L64: FALSE | M64: TRUE | N64: 12 | O64: 8 | P64: 1.904761905 | Q64: 1.904761905 | R64: 5.714285714 | S64: -3.80952381 | T64: 1.904761905 | AW64: 8002000
A65: 33 | B65: =IF(A65>$A$8,"",OFFSET(InputPriceData!B$15,$A65+$A$11,0,1,1)) -> 2020-10-28 | C65: =IF(A65>$A$8,"",OFFSET(InputPriceData!G$15,CalculationsAndCharts!$A65+$A$11,IF($C$5,8,0),1,1)) -> 9413000 | D65: =IF(A65>$A$8,"",OFFSET(InputPriceData!C$15,CalculationsAndCharts!$A65+$A$11,IF($C$5,8,0),1,1)) -> 527.919983 | E65: =IF(A65>$A$8,"",OFFSET(InputPriceData!D$15,CalculationsAndCharts!$A65+$A$11,IF($C$5,8,0),1,1)) -> 530.400024 | F65: =IF(A65>$A$8,"",OFFSET(InputPriceData!E$15,CalculationsAndCharts!$A65+$A$11,IF($C$5,8,0),1,1)) -> 504.359985 | G65: =IF(A65>$A$8,"",OFFSET(InputPriceData!F$15,CalculationsAndCharts!$A65+$A$11,IF($C$5,8,0),1,1)) -> 505.079987 | H65: 528.9299986 | I65: 536.1119992 | J65: 538.1020016 | K65: -19.900024 | L65: FALSE | M65: TRUE | N65: 13 | O65: 7 | P65: 2.857142857 | Q65: 2.857142857 | R65: 6.19047619 | S65: -3.333333333 | T65: 2.857142857 | AX65: 9413000
A66: 34 | B66: =IF(A66>$A$8,"",OFFSET(InputPriceData!B$15,$A66+$A$11,0,1,1)) -> 2020-10-27 | C66: =IF(A66>$A$8,"",OFFSET(InputPriceData!G$15,CalculationsAndCharts!$A66+$A$11,IF($C$5,8,0),1,1)) -> 6263000 | D66: =IF(A66>$A$8,"",OFFSET(InputPriceData!C$15,CalculationsAndCharts!$A66+$A$11,IF($C$5,8,0),1,1)) -> 532.23999 | E66: =IF(A66>$A$8,"",OFFSET(InputPriceData!D$15,CalculationsAndCharts!$A66+$A$11,IF($C$5,8,0),1,1)) -> 537.679993 | F66: =IF(A66>$A$8,"",OFFSET(InputPriceData!E$15,CalculationsAndCharts!$A66+$A$11,IF($C$5,8,0),1,1)) -> 527.659973 | G66: =IF(A66>$A$8,"",OFFSET(InputPriceData!F$15,CalculationsAndCharts!$A66+$A$11,IF($C$5,8,0),1,1)) -> 535.869995 | H66: 536.1119992 | I66: 538.1020016 | J66: 540.9539914 | K66: -28.519898 | L66: FALSE | M66: TRUE | N66: 14 | O66: 6 | P66: 3.80952381 | Q66: 3.80952381 | R66: 6.666666667 | S66: -2.857142857 | T66: 3.80952381 | AW66: 6263000
A67: 35 | B67: =IF(A67>$A$8,"",OFFSET(InputPriceData!B$15,$A67+$A$11,0,1,1)) -> 2020-10-26 | C67: =IF(A67>$A$8,"",OFFSET(InputPriceData!G$15,CalculationsAndCharts!$A67+$A$11,IF($C$5,8,0),1,1)) -> 8422400 | D67: =IF(A67>$A$8,"",OFFSET(InputPriceData!C$15,CalculationsAndCharts!$A67+$A$11,IF($C$5,8,0),1,1)) -> 537.080017 | E67: =IF(A67>$A$8,"",OFFSET(InputPriceData!D$15,CalculationsAndCharts!$A67+$A$11,IF($C$5,8,0),1,1)) -> 547.710022 | F67: =IF(A67>$A$8,"",OFFSET(InputPriceData!E$15,CalculationsAndCharts!$A67+$A$11,IF($C$5,8,0),1,1)) -> 521.539978 | G67: =IF(A67>$A$8,"",OFFSET(InputPriceData!F$15,CalculationsAndCharts!$A67+$A$11,IF($C$5,8,0),1,1)) -> 525.650024 | H67: 538.1020016 | I67: 540.9539914 | J67: 542.7239988 | K67: -17.700074 | L67: FALSE | M67: TRUE | N67: 15 | O67: 5 | P67: 4.761904762 | Q67: 4.761904762 | R67: 7.142857143 | S67: -2.380952381 | T67: 4.761904762 | AX67: 8422400
A68: 36 | B68: =IF(A68>$A$8,"",OFFSET(InputPriceData!B$15,$A68+$A$11,0,1,1)) -> 2020-10-23 | C68: =IF(A68>$A$8,"",OFFSET(InputPriceData!G$15,CalculationsAndCharts!$A68+$A$11,IF($C$5,8,0),1,1)) -> 5837100 | D68: =IF(A68>$A$8,"",OFFSET(InputPriceData!C$15,CalculationsAndCharts!$A68+$A$11,IF($C$5,8,0),1,1)) -> 538 | E68: =IF(A68>$A$8,"",OFFSET(InputPriceData!D$15,CalculationsAndCharts!$A68+$A$11,IF($C$5,8,0),1,1)) -> 543.72998 | F68: =IF(A68>$A$8,"",OFFSET(InputPriceData!E$15,CalculationsAndCharts!$A68+$A$11,IF($C$5,8,0),1,1)) -> 531.650024 | G68: =IF(A68>$A$8,"",OFFSET(InputPriceData!F$15,CalculationsAndCharts!$A68+$A$11,IF($C$5,8,0),1,1)) -> 543.609985 | H68: 540.9539914 | I68: 542.7239988 | J68: 547.595996 | K68: -48.719972 | L68: FALSE | M68: TRUE | N68: 16 | O68: 4 | P68: 5.714285714 | Q68: 5.714285714 | R68: 7.619047619 | S68: -1.904761905 | T68: 5.714285714 | AW68: 5837100
A69: 37 | B69: =IF(A69>$A$8,"",OFFSET(InputPriceData!B$15,$A69+$A$11,0,1,1)) -> 2020-10-22 | C69: =IF(A69>$A$8,"",OFFSET(InputPriceData!G$15,CalculationsAndCharts!$A69+$A$11,IF($C$5,8,0),1,1)) -> 7262000 | D69: =IF(A69>$A$8,"",OFFSET(InputPriceData!C$15,CalculationsAndCharts!$A69+$A$11,IF($C$5,8,0),1,1)) -> 540.900024 | E69: =IF(A69>$A$8,"",OFFSET(InputPriceData!D$15,CalculationsAndCharts!$A69+$A$11,IF($C$5,8,0),1,1)) -> 544.469971 | F69: =IF(A69>$A$8,"",OFFSET(InputPriceData!E$15,CalculationsAndCharts!$A69+$A$11,IF($C$5,8,0),1,1)) -> 529.27002 | G69: =IF(A69>$A$8,"",OFFSET(InputPriceData!F$15,CalculationsAndCharts!$A69+$A$11,IF($C$5,8,0),1,1)) -> 534.440002 | H69: 542.7239988 | I69: 547.595996 | J69: 552.1599976 | K69: -45.640016 | L69: FALSE | M69: TRUE | N69: 16 | O69: 4 | P69: 5.714285714 | Q69: 5.714285714 | R69: 7.619047619 | S69: -1.904761905 | T69: 5.714285714 | AX69: 7262000
A70: 38 | B70: =IF(A70>$A$8,"",OFFSET(InputPriceData!B$15,$A70+$A$11,0,1,1)) -> 2020-10-21 | C70: =IF(A70>$A$8,"",OFFSET(InputPriceData!G$15,CalculationsAndCharts!$A70+$A$11,IF($C$5,8,0),1,1)) -> 5489900 | D70: =IF(A70>$A$8,"",OFFSET(InputPriceData!C$15,CalculationsAndCharts!$A70+$A$11,IF($C$5,8,0),1,1)) -> 545 | E70: =IF(A70>$A$8,"",OFFSET(InputPriceData!D$15,CalculationsAndCharts!$A70+$A$11,IF($C$5,8,0),1,1)) -> 551.659973 | F70: =IF(A70>$A$8,"",OFFSET(InputPriceData!E$15,CalculationsAndCharts!$A70+$A$11,IF($C$5,8,0),1,1)) -> 539.099976 | G70: =IF(A70>$A$8,"",OFFSET(InputPriceData!F$15,CalculationsAndCharts!$A70+$A$11,IF($C$5,8,0),1,1)) -> 540.98999 | H70: 547.595996 | I70: 552.1599976 | J70: 556.9819948 | K70: -48.219972 | L70: FALSE | M70: TRUE | N70: 16 | O70: 4 | P70: 5.714285714 | Q70: 5.714285714 | R70: 7.619047619 | S70: -1.904761905 | T70: 5.714285714 | AX70: 5489900
A71: 39 | B71: =IF(A71>$A$8,"",OFFSET(InputPriceData!B$15,$A71+$A$11,0,1,1)) -> 2020-10-20 | C71: =IF(A71>$A$8,"",OFFSET(InputPriceData!G$15,CalculationsAndCharts!$A71+$A$11,IF($C$5,8,0),1,1)) -> 5730300 | D71: =IF(A71>$A$8,"",OFFSET(InputPriceData!C$15,CalculationsAndCharts!$A71+$A$11,IF($C$5,8,0),1,1)) -> 543.340027 | E71: =IF(A71>$A$8,"",OFFSET(InputPriceData!D$15,CalculationsAndCharts!$A71+$A$11,IF($C$5,8,0),1,1)) -> 551.98999 | F71: =IF(A71>$A$8,"",OFFSET(InputPriceData!E$15,CalculationsAndCharts!$A71+$A$11,IF($C$5,8,0),1,1)) -> 540.280029 | G71: =IF(A71>$A$8,"",OFFSET(InputPriceData!F$15,CalculationsAndCharts!$A71+$A$11,IF($C$5,8,0),1,1)) -> 545.820007 | H71: 552.1599976 | I71: 556.9819948 | J71: 562.8079958 | K71: -58.26001 | L71: FALSE | M71: TRUE | N71: 16 | O71: 4 | P71: 5.714285714 | Q71: 5.714285714 | R71: 7.619047619 | S71: -1.904761905 | T71: 5.714285714 | AW71: 5730300
A72: 40 | B72: =IF(A72>$A$8,"",OFFSET(InputPriceData!B$15,$A72+$A$11,0,1,1)) -> 2020-10-19 | C72: =IF(A72>$A$8,"",OFFSET(InputPriceData!G$15,CalculationsAndCharts!$A72+$A$11,IF($C$5,8,0),1,1)) -> 7451700 | D72: =IF(A72>$A$8,"",OFFSET(InputPriceData!C$15,CalculationsAndCharts!$A72+$A$11,IF($C$5,8,0),1,1)) -> 556.119995 | E72: =IF(A72>$A$8,"",OFFSET(InputPriceData!D$15,CalculationsAndCharts!$A72+$A$11,IF($C$5,8,0),1,1)) -> 559.340027 | F72: =IF(A72>$A$8,"",OFFSET(InputPriceData!E$15,CalculationsAndCharts!$A72+$A$11,IF($C$5,8,0),1,1)) -> 536.27002 | G72: =IF(A72>$A$8,"",OFFSET(InputPriceData!F$15,CalculationsAndCharts!$A72+$A$11,IF($C$5,8,0),1,1)) -> 539.909973 | H72: 556.9819948 | I72: 562.8079958 | J72: 562.4179934 | K72: 3.900024 | L72: TRUE | M72: FALSE | N72: 16 | O72: 4 | P72: 5.714285714 | Q72: 5.714285714 | R72: 7.619047619 | S72: -1.904761905 | T72: 5.714285714 | AX72: 7451700
A73: 41 | B73: =IF(A73>$A$8,"",OFFSET(InputPriceData!B$15,$A73+$A$11,0,1,1)) -> 2020-10-16 | C73: =IF(A73>$A$8,"",OFFSET(InputPriceData!G$15,CalculationsAndCharts!$A73+$A$11,IF($C$5,8,0),1,1)) -> 6059800 | D73: =IF(A73>$A$8,"",OFFSET(InputPriceData!C$15,CalculationsAndCharts!$A73+$A$11,IF($C$5,8,0),1,1)) -> 561.469971 | E73: =IF(A73>$A$8,"",OFFSET(InputPriceData!D$15,CalculationsAndCharts!$A73+$A$11,IF($C$5,8,0),1,1)) -> 564.859985 | F73: =IF(A73>$A$8,"",OFFSET(InputPriceData!E$15,CalculationsAndCharts!$A73+$A$11,IF($C$5,8,0),1,1)) -> 551.700012 | G73: =IF(A73>$A$8,"",OFFSET(InputPriceData!F$15,CalculationsAndCharts!$A73+$A$11,IF($C$5,8,0),1,1)) -> 552.460022 | H73: 562.8079958 | I73: 562.4179934 | J73: 561.3679934 | K73: 10.5 | L73: TRUE | M73: FALSE | N73: 16 | O73: 4 | P73: 5.714285714 | Q73: 5.714285714 | R73: 7.619047619 | S73: -1.904761905 | T73: 5.714285714 | AX73: 6059800
A74: 42 | B74: =IF(A74>$A$8,"",OFFSET(InputPriceData!B$15,$A74+$A$11,0,1,1)) -> 2020-10-15 | C74: =IF(A74>$A$8,"",OFFSET(InputPriceData!G$15,CalculationsAndCharts!$A74+$A$11,IF($C$5,8,0),1,1)) -> 6680600 | D74: =IF(A74>$A$8,"",OFFSET(InputPriceData!C$15,CalculationsAndCharts!$A74+$A$11,IF($C$5,8,0),1,1)) -> 552.429993 | E74: =IF(A74>$A$8,"",OFFSET(InputPriceData!D$15,CalculationsAndCharts!$A74+$A$11,IF($C$5,8,0),1,1)) -> 560.22998 | F74: =IF(A74>$A$8,"",OFFSET(InputPriceData!E$15,CalculationsAndCharts!$A74+$A$11,IF($C$5,8,0),1,1)) -> 550.710022 | G74: =IF(A74>$A$8,"",OFFSET(InputPriceData!F$15,CalculationsAndCharts!$A74+$A$11,IF($C$5,8,0),1,1)) -> 558.799988 | H74: 562.4179934 | I74: 561.3679934 | J74: 560.3179934 | K74: 10.5 | L74: TRUE | M74: FALSE | N74: 16 | O74: 4 | P74: 5.714285714 | Q74: 5.714285714 | R74: 7.619047619 | S74: -1.904761905 | T74: 5.714285714 | AW74: 6680600
A75: 43 | B75: =IF(A75>$A$8,"",OFFSET(InputPriceData!B$15,$A75+$A$11,0,1,1)) -> 2020-10-14 | C75: =IF(A75>$A$8,"",OFFSET(InputPriceData!G$15,CalculationsAndCharts!$A75+$A$11,IF($C$5,8,0),1,1)) -> 6916200 | D75: =IF(A75>$A$8,"",OFFSET(InputPriceData!C$15,CalculationsAndCharts!$A75+$A$11,IF($C$5,8,0),1,1)) -> 571.619995 | E75: =IF(A75>$A$8,"",OFFSET(InputPriceData!D$15,CalculationsAndCharts!$A75+$A$11,IF($C$5,8,0),1,1)) -> 573.710022 | F75: =IF(A75>$A$8,"",OFFSET(InputPriceData!E$15,CalculationsAndCharts!$A75+$A$11,IF($C$5,8,0),1,1)) -> 558.400024 | G75: =IF(A75>$A$8,"",OFFSET(InputPriceData!F$15,CalculationsAndCharts!$A75+$A$11,IF($C$5,8,0),1,1)) -> 563.809998 | H75: 561.3679934 | I75: 560.3179934 | J75: 556.2239992 | K75: 40.939942 | L75: TRUE | M75: FALSE | N75: 15 | O75: 5 | P75: 4.761904762 | Q75: 4.761904762 | R75: 7.142857143 | S75: -2.380952381 | T75: 4.761904762 | AX75: 6916200
A76: 44 | B76: =IF(A76>$A$8,"",OFFSET(InputPriceData!B$15,$A76+$A$11,0,1,1)) -> 2020-10-13 | C76: =IF(A76>$A$8,"",OFFSET(InputPriceData!G$15,CalculationsAndCharts!$A76+$A$11,IF($C$5,8,0),1,1)) -> 8615100 | D76: =IF(A76>$A$8,"",OFFSET(InputPriceData!C$15,CalculationsAndCharts!$A76+$A$11,IF($C$5,8,0),1,1)) -> 571.859985 | E76: =IF(A76>$A$8,"",OFFSET(InputPriceData!D$15,CalculationsAndCharts!$A76+$A$11,IF($C$5,8,0),1,1)) -> 573.940002 | F76: =IF(A76>$A$8,"",OFFSET(InputPriceData!E$15,CalculationsAndCharts!$A76+$A$11,IF($C$5,8,0),1,1)) -> 560.75 | G76: =IF(A76>$A$8,"",OFFSET(InputPriceData!F$15,CalculationsAndCharts!$A76+$A$11,IF($C$5,8,0),1,1)) -> 569.929993 | H76: 560.3179934 | I76: 556.2239992 | J76: 551.556006 | K76: 46.679932 | L76: TRUE | M76: FALSE | N76: 15 | O76: 5 | P76: 4.761904762 | Q76: 4.761904762 | R76: 7.142857143 | S76: -2.380952381 | T76: 4.761904762 | AX76: 8615100
A77: 45 | B77: =IF(A77>$A$8,"",OFFSET(InputPriceData!B$15,$A77+$A$11,0,1,1)) -> 2020-10-12 | C77: =IF(A77>$A$8,"",OFFSET(InputPriceData!G$15,CalculationsAndCharts!$A77+$A$11,IF($C$5,8,0),1,1)) -> 10868600 | D77: =IF(A77>$A$8,"",OFFSET(InputPriceData!C$15,CalculationsAndCharts!$A77+$A$11,IF($C$5,8,0),1,1)) -> 559.580017 | E77: =IF(A77>$A$8,"",OFFSET(InputPriceData!D$15,CalculationsAndCharts!$A77+$A$11,IF($C$5,8,0),1,1)) -> 573.880005 | F77: =IF(A77>$A$8,"",OFFSET(InputPriceData!E$15,CalculationsAndCharts!$A77+$A$11,IF($C$5,8,0),1,1)) -> 556.5 | G77: =IF(A77>$A$8,"",OFFSET(InputPriceData!F$15,CalculationsAndCharts!$A77+$A$11,IF($C$5,8,0),1,1)) -> 569.039978 | H77: 556.2239992 | I77: 551.556006 | J77: 545.952002 | K77: 56.04004 | L77: TRUE | M77: FALSE | N77: 15 | O77: 5 | P77: 4.761904762 | Q77: 4.761904762 | R77: 7.142857143 | S77: -2.380952381 | T77: 4.761904762 | AW77: 10868600
A78: 46 | B78: =IF(A78>$A$8,"",OFFSET(InputPriceData!B$15,$A78+$A$11,0,1,1)) -> 2020-10-09 | C78: =IF(A78>$A$8,"",OFFSET(InputPriceData!G$15,CalculationsAndCharts!$A78+$A$11,IF($C$5,8,0),1,1)) -> 8672300 | D78: =IF(A78>$A$8,"",OFFSET(InputPriceData!C$15,CalculationsAndCharts!$A78+$A$11,IF($C$5,8,0),1,1)) -> 550.679993 | E78: =IF(A78>$A$8,"",OFFSET(InputPriceData!D$15,CalculationsAndCharts!$A78+$A$11,IF($C$5,8,0),1,1)) -> 552.969971 | F78: =IF(A78>$A$8,"",OFFSET(InputPriceData!E$15,CalculationsAndCharts!$A78+$A$11,IF($C$5,8,0),1,1)) -> 546.429993 | G78: =IF(A78>$A$8,"",OFFSET(InputPriceData!F$15,CalculationsAndCharts!$A78+$A$11,IF($C$5,8,0),1,1)) -> 550.51001 | H78: 551.556006 | I78: 545.952002 | J78: 544.1580078 | K78: 17.939942 | L78: TRUE | M78: FALSE | N78: 14 | O78: 6 | P78: 3.80952381 | Q78: 3.80952381 | R78: 6.666666667 | S78: -2.857142857 | T78: 3.80952381 | AX78: 8672300
A79: 47 | B79: =IF(A79>$A$8,"",OFFSET(InputPriceData!B$15,$A79+$A$11,0,1,1)) -> 2020-10-08 | C79: =IF(A79>$A$8,"",OFFSET(InputPriceData!G$15,CalculationsAndCharts!$A79+$A$11,IF($C$5,8,0),1,1)) -> 9472500 | D79: =IF(A79>$A$8,"",OFFSET(InputPriceData!C$15,CalculationsAndCharts!$A79+$A$11,IF($C$5,8,0),1,1)) -> 563 | E79: =IF(A79>$A$8,"",OFFSET(InputPriceData!D$15,CalculationsAndCharts!$A79+$A$11,IF($C$5,8,0),1,1)) -> 563.380005 | F79: =IF(A79>$A$8,"",OFFSET(InputPriceData!E$15,CalculationsAndCharts!$A79+$A$11,IF($C$5,8,0),1,1)) -> 550.320007 | G79: =IF(A79>$A$8,"",OFFSET(InputPriceData!F$15,CalculationsAndCharts!$A79+$A$11,IF($C$5,8,0),1,1)) -> 553.549988 | H79: 545.952002 | I79: 544.1580078 | J79: 540.6900024 | K79: 34.680054 | L79: TRUE | M79: FALSE | N79: 13 | O79: 7 | P79: 2.857142857 | Q79: 2.857142857 | R79: 6.19047619 | S79: -3.333333333 | T79: 2.857142857 | AX79: 9472500
A80: 48 | B80: =IF(A80>$A$8,"",OFFSET(InputPriceData!B$15,$A80+$A$11,0,1,1)) -> 2020-10-07 | C80: =IF(A80>$A$8,"",OFFSET(InputPriceData!G$15,CalculationsAndCharts!$A80+$A$11,IF($C$5,8,0),1,1)) -> 10452100 | D80: =IF(A80>$A$8,"",OFFSET(InputPriceData!C$15,CalculationsAndCharts!$A80+$A$11,IF($C$5,8,0),1,1)) -> 559.98999 | E80: =IF(A80>$A$8,"",OFFSET(InputPriceData!D$15,CalculationsAndCharts!$A80+$A$11,IF($C$5,8,0),1,1)) -> 564.77002 | F80: =IF(A80>$A$8,"",OFFSET(InputPriceData!E$15,CalculationsAndCharts!$A80+$A$11,IF($C$5,8,0),1,1)) -> 554.539978 | G80: =IF(A80>$A$8,"",OFFSET(InputPriceData!F$15,CalculationsAndCharts!$A80+$A$11,IF($C$5,8,0),1,1)) -> 558.559998 | H80: 544.1580078 | I80: 540.6900024 | J80: 536.6040038 | K80: 40.859986 | L80: TRUE | M80: FALSE | N80: 12 | O80: 8 | P80: 1.904761905 | Q80: 1.904761905 | R80: 5.714285714 | S80: -3.80952381 | T80: 1.904761905 | AX80: 10452100
A81: 49 | B81: =IF(A81>$A$8,"",OFFSET(InputPriceData!B$15,$A81+$A$11,0,1,1)) -> 2020-10-06 | C81: =IF(A81>$A$8,"",OFFSET(InputPriceData!G$15,CalculationsAndCharts!$A81+$A$11,IF($C$5,8,0),1,1)) -> 19610500 | D81: =IF(A81>$A$8,"",OFFSET(InputPriceData!C$15,CalculationsAndCharts!$A81+$A$11,IF($C$5,8,0),1,1)) -> 553.200012 | E81: =IF(A81>$A$8,"",OFFSET(InputPriceData!D$15,CalculationsAndCharts!$A81+$A$11,IF($C$5,8,0),1,1)) -> 565.679993 | F81: =IF(A81>$A$8,"",OFFSET(InputPriceData!E$15,CalculationsAndCharts!$A81+$A$11,IF($C$5,8,0),1,1)) -> 546.599976 | G81: =IF(A81>$A$8,"",OFFSET(InputPriceData!F$15,CalculationsAndCharts!$A81+$A$11,IF($C$5,8,0),1,1)) -> 549.460022 | H81: 540.6900024 | I81: 536.6040038 | J81: 531.7440062 | K81: 48.599976 | L81: TRUE | M81: FALSE | N81: 11 | O81: 9 | P81: 0.9523809524 | Q81: 0.9523809524 | R81: 5.238095238 | S81: -4.285714286 | T81: 0.9523809524 | AX81: 19610500
A82: 50 | B82: =IF(A82>$A$8,"",OFFSET(InputPriceData!B$15,$A82+$A$11,0,1,1)) -> 2020-10-05 | C82: =IF(A82>$A$8,"",OFFSET(InputPriceData!G$15,CalculationsAndCharts!$A82+$A$11,IF($C$5,8,0),1,1)) -> 11995500 | D82: =IF(A82>$A$8,"",OFFSET(InputPriceData!C$15,CalculationsAndCharts!$A82+$A$11,IF($C$5,8,0),1,1)) -> 529.440002 | E82: =IF(A82>$A$8,"",OFFSET(InputPriceData!D$15,CalculationsAndCharts!$A82+$A$11,IF($C$5,8,0),1,1)) -> 545.77002 | F82: =IF(A82>$A$8,"",OFFSET(InputPriceData!E$15,CalculationsAndCharts!$A82+$A$11,IF($C$5,8,0),1,1)) -> 528.909973 | G82: =IF(A82>$A$8,"",OFFSET(InputPriceData!F$15,CalculationsAndCharts!$A82+$A$11,IF($C$5,8,0),1,1)) -> 545.700012 | H82: 536.6040038 | I82: 531.7440062 | J82: 530.2360106 | K82: 15.079956 | L82: TRUE | M82: FALSE | N82: 10 | O82: 10 | P82: 0 | Q82: 0 | R82: 4.761904762 | S82: -4.761904762 | T82: 0 | AW82: 11995500
A83: 51 | B83: =IF(A83>$A$8,"",OFFSET(InputPriceData!B$15,$A83+$A$11,0,1,1)) -> 2020-10-02 | C83: =IF(A83>$A$8,"",OFFSET(InputPriceData!G$15,CalculationsAndCharts!$A83+$A$11,IF($C$5,8,0),1,1)) -> 13812400 | D83: =IF(A83>$A$8,"",OFFSET(InputPriceData!C$15,CalculationsAndCharts!$A83+$A$11,IF($C$5,8,0),1,1)) -> 529 | E83: =IF(A83>$A$8,"",OFFSET(InputPriceData!D$15,CalculationsAndCharts!$A83+$A$11,IF($C$5,8,0),1,1)) -> 540.780029 | F83: =IF(A83>$A$8,"",OFFSET(InputPriceData!E$15,CalculationsAndCharts!$A83+$A$11,IF($C$5,8,0),1,1)) -> 522.039978 | G83: =IF(A83>$A$8,"",OFFSET(InputPriceData!F$15,CalculationsAndCharts!$A83+$A$11,IF($C$5,8,0),1,1)) -> 522.48999 | H83: 531.7440062 | I83: 530.2360106 | J83: 520.1040098 | K83: 101.320008 | L83: TRUE | M83: FALSE | N83: 10 | O83: 10 | P83: 0 | Q83: 0 | R83: 4.761904762 | S83: -4.761904762 | T83: 0 | AX83: 13812400
A84: 52 | B84: =IF(A84>$A$8,"",OFFSET(InputPriceData!B$15,$A84+$A$11,0,1,1)) -> 2020-10-01 | C84: =IF(A84>$A$8,"",OFFSET(InputPriceData!G$15,CalculationsAndCharts!$A84+$A$11,IF($C$5,8,0),1,1)) -> 13125100 | D84: =IF(A84>$A$8,"",OFFSET(InputPriceData!C$15,CalculationsAndCharts!$A84+$A$11,IF($C$5,8,0),1,1)) -> 550.320007 | E84: =IF(A84>$A$8,"",OFFSET(InputPriceData!D$15,CalculationsAndCharts!$A84+$A$11,IF($C$5,8,0),1,1)) -> 550.51001 | F84: =IF(A84>$A$8,"",OFFSET(InputPriceData!E$15,CalculationsAndCharts!$A84+$A$11,IF($C$5,8,0),1,1)) -> 538.429993 | G84: =IF(A84>$A$8,"",OFFSET(InputPriceData!F$15,CalculationsAndCharts!$A84+$A$11,IF($C$5,8,0),1,1)) -> 544.580017 | H84: 530.2360106 | I84: 520.1040098 | J84: 508.850018 | K84: 112.539918 | L84: TRUE | M84: FALSE | N84: 10 | O84: 10 | P84: 0 | Q84: 0 | R84: 4.761904762 | S84: -4.761904762 | T84: 0 | AX84: 13125100
A85: 53 | B85: =IF(A85>$A$8,"",OFFSET(InputPriceData!B$15,$A85+$A$11,0,1,1)) -> 2020-09-30 | C85: =IF(A85>$A$8,"",OFFSET(InputPriceData!G$15,CalculationsAndCharts!$A85+$A$11,IF($C$5,8,0),1,1)) -> 17206100 | D85: =IF(A85>$A$8,"",OFFSET(InputPriceData!C$15,CalculationsAndCharts!$A85+$A$11,IF($C$5,8,0),1,1)) -> 526.299988 | E85: =IF(A85>$A$8,"",OFFSET(InputPriceData!D$15,CalculationsAndCharts!$A85+$A$11,IF($C$5,8,0),1,1)) -> 544.900024 | F85: =IF(A85>$A$8,"",OFFSET(InputPriceData!E$15,CalculationsAndCharts!$A85+$A$11,IF($C$5,8,0),1,1)) -> 526.01001 | G85: =IF(A85>$A$8,"",OFFSET(InputPriceData!F$15,CalculationsAndCharts!$A85+$A$11,IF($C$5,8,0),1,1)) -> 541.219971 | H85: 520.1040098 | I85: 508.850018 | J85: 504.1460142 | K85: 47.040038 | L85: TRUE | M85: FALSE | N85: 10 | O85: 10 | P85: 0 | Q85: 0 | R85: 4.761904762 | S85: -4.761904762 | T85: 0 | AW85: 17206100
A86: 54 | B86: =IF(A86>$A$8,"",OFFSET(InputPriceData!B$15,$A86+$A$11,0,1,1)) -> 2020-09-29 | C86: =IF(A86>$A$8,"",OFFSET(InputPriceData!G$15,CalculationsAndCharts!$A86+$A$11,IF($C$5,8,0),1,1)) -> 15536500 | D86: =IF(A86>$A$8,"",OFFSET(InputPriceData!C$15,CalculationsAndCharts!$A86+$A$11,IF($C$5,8,0),1,1)) -> 517.5 | E86: =IF(A86>$A$8,"",OFFSET(InputPriceData!D$15,CalculationsAndCharts!$A86+$A$11,IF($C$5,8,0),1,1)) -> 537.710022 | F86: =IF(A86>$A$8,"",OFFSET(InputPriceData!E$15,CalculationsAndCharts!$A86+$A$11,IF($C$5,8,0),1,1)) -> 517.330017 | G86: =IF(A86>$A$8,"",OFFSET(InputPriceData!F$15,CalculationsAndCharts!$A86+$A$11,IF($C$5,8,0),1,1)) -> 529.030029 | H86: 508.850018 | I86: 504.1460142 | J86: 500.0040098 | K86: 41.420044 | L86: TRUE | M86: FALSE | N86: 10 | O86: 10 | P86: 0 | Q86: 0 | R86: 4.761904762 | S86: -4.761904762 | T86: 0 | AW86: 15536500
A87: 55 | B87: =IF(A87>$A$8,"",OFFSET(InputPriceData!B$15,$A87+$A$11,0,1,1)) -> 2020-09-28 | C87: =IF(A87>$A$8,"",OFFSET(InputPriceData!G$15,CalculationsAndCharts!$A87+$A$11,IF($C$5,8,0),1,1)) -> 14345200 | D87: =IF(A87>$A$8,"",OFFSET(InputPriceData!C$15,CalculationsAndCharts!$A87+$A$11,IF($C$5,8,0),1,1)) -> 521.609985 | E87: =IF(A87>$A$8,"",OFFSET(InputPriceData!D$15,CalculationsAndCharts!$A87+$A$11,IF($C$5,8,0),1,1)) -> 522.070007 | F87: =IF(A87>$A$8,"",OFFSET(InputPriceData!E$15,CalculationsAndCharts!$A87+$A$11,IF($C$5,8,0),1,1)) -> 510 | G87: =IF(A87>$A$8,"",OFFSET(InputPriceData!F$15,CalculationsAndCharts!$A87+$A$11,IF($C$5,8,0),1,1)) -> 521.400024 | H87: 504.1460142 | I87: 500.0040098 | J87: 494.5280088 | K87: 54.76001 | L87: TRUE | M87: FALSE | N87: 10 | O87: 10 | P87: 0 | Q87: 0 | R87: 4.761904762 | S87: -4.761904762 | T87: 0 | AX87: 14345200
A88: 56 | B88: =IF(A88>$A$8,"",OFFSET(InputPriceData!B$15,$A88+$A$11,0,1,1)) -> 2020-09-25 | C88: =IF(A88>$A$8,"",OFFSET(InputPriceData!G$15,CalculationsAndCharts!$A88+$A$11,IF($C$5,8,0),1,1)) -> 14700400 | D88: =IF(A88>$A$8,"",OFFSET(InputPriceData!C$15,CalculationsAndCharts!$A88+$A$11,IF($C$5,8,0),1,1)) -> 497.899994 | E88: =IF(A88>$A$8,"",OFFSET(InputPriceData!D$15,CalculationsAndCharts!$A88+$A$11,IF($C$5,8,0),1,1)) -> 515.340027 | F88: =IF(A88>$A$8,"",OFFSET(InputPriceData!E$15,CalculationsAndCharts!$A88+$A$11,IF($C$5,8,0),1,1)) -> 489.829987 | G88: =IF(A88>$A$8,"",OFFSET(InputPriceData!F$15,CalculationsAndCharts!$A88+$A$11,IF($C$5,8,0),1,1)) -> 514.950012 | H88: 500.0040098 | I88: 494.5280088 | J88: 495.452008 | K88: -9.239992 | L88: FALSE | M88: TRUE | N88: 10 | O88: 10 | P88: 0 | Q88: 0 | R88: 4.761904762 | S88: -4.761904762 | T88: 0 | AW88: 14700400
A89: 57 | B89: =IF(A89>$A$8,"",OFFSET(InputPriceData!B$15,$A89+$A$11,0,1,1)) -> 2020-09-24 | C89: =IF(A89>$A$8,"",OFFSET(InputPriceData!G$15,CalculationsAndCharts!$A89+$A$11,IF($C$5,8,0),1,1)) -> 18281000 | D89: =IF(A89>$A$8,"",OFFSET(InputPriceData!C$15,CalculationsAndCharts!$A89+$A$11,IF($C$5,8,0),1,1)) -> 482.890015 | E89: =IF(A89>$A$8,"",OFFSET(InputPriceData!D$15,CalculationsAndCharts!$A89+$A$11,IF($C$5,8,0),1,1)) -> 502.779999 | F89: =IF(A89>$A$8,"",OFFSET(InputPriceData!E$15,CalculationsAndCharts!$A89+$A$11,IF($C$5,8,0),1,1)) -> 480.559998 | G89: =IF(A89>$A$8,"",OFFSET(InputPriceData!F$15,CalculationsAndCharts!$A89+$A$11,IF($C$5,8,0),1,1)) -> 493.920013 | H89: 494.5280088 | I89: 495.452008 | J89: 498.578003 | K89: -31.25995 | L89: FALSE | M89: TRUE | N89: 11 | O89: 9 | P89: 0.9523809524 | Q89: 0.9523809524 | R89: 5.238095238 | S89: -4.285714286 | T89: 0.9523809524 | AW89: 18281000
A90: 58 | B90: =IF(A90>$A$8,"",OFFSET(InputPriceData!B$15,$A90+$A$11,0,1,1)) -> 2020-09-23 | C90: =IF(A90>$A$8,"",OFFSET(InputPriceData!G$15,CalculationsAndCharts!$A90+$A$11,IF($C$5,8,0),1,1)) -> 16175300 | D90: =IF(A90>$A$8,"",OFFSET(InputPriceData!C$15,CalculationsAndCharts!$A90+$A$11,IF($C$5,8,0),1,1)) -> 503.019989 | E90: =IF(A90>$A$8,"",OFFSET(InputPriceData!D$15,CalculationsAndCharts!$A90+$A$11,IF($C$5,8,0),1,1)) -> 509.079987 | F90: =IF(A90>$A$8,"",OFFSET(InputPriceData!E$15,CalculationsAndCharts!$A90+$A$11,IF($C$5,8,0),1,1)) -> 483.170013 | G90: =IF(A90>$A$8,"",OFFSET(InputPriceData!F$15,CalculationsAndCharts!$A90+$A$11,IF($C$5,8,0),1,1)) -> 484.950012 | H90: 495.452008 | I90: 498.578003 | J90: 501.404004 | K90: -28.26001 | L90: FALSE | M90: TRUE | N90: 12 | O90: 8 | P90: 1.904761905 | Q90: 1.904761905 | R90: 5.714285714 | S90: -3.80952381 | T90: 1.904761905 | AX90: 16175300
A91: 59 | B91: =IF(A91>$A$8,"",OFFSET(InputPriceData!B$15,$A91+$A$11,0,1,1)) -> 2020-09-22 | C91: =IF(A91>$A$8,"",OFFSET(InputPriceData!G$15,CalculationsAndCharts!$A91+$A$11,IF($C$5,8,0),1,1)) -> 16161300 | D91: =IF(A91>$A$8,"",OFFSET(InputPriceData!C$15,CalculationsAndCharts!$A91+$A$11,IF($C$5,8,0),1,1)) -> 503 | E91: =IF(A91>$A$8,"",OFFSET(InputPriceData!D$15,CalculationsAndCharts!$A91+$A$11,IF($C$5,8,0),1,1)) -> 505.920013 | F91: =IF(A91>$A$8,"",OFFSET(InputPriceData!E$15,CalculationsAndCharts!$A91+$A$11,IF($C$5,8,0),1,1)) -> 486.220001 | G91: =IF(A91>$A$8,"",OFFSET(InputPriceData!F$15,CalculationsAndCharts!$A91+$A$11,IF($C$5,8,0),1,1)) -> 505.51001 | H91: 498.578003 | I91: 501.404004 | J91: 504.2440066 | K91: -28.400026 | L91: FALSE | M91: TRUE | N91: 13 | O91: 7 | P91: 2.857142857 | Q91: 2.857142857 | R91: 6.19047619 | S91: -3.333333333 | T91: 2.857142857 | AW91: 16161300
A92: 60 | B92: =IF(A92>$A$8,"",OFFSET(InputPriceData!B$15,$A92+$A$11,0,1,1)) -> 2020-09-21 | C92: =IF(A92>$A$8,"",OFFSET(InputPriceData!G$15,CalculationsAndCharts!$A92+$A$11,IF($C$5,8,0),1,1)) -> 18026100 | D92: =IF(A92>$A$8,"",OFFSET(InputPriceData!C$15,CalculationsAndCharts!$A92+$A$11,IF($C$5,8,0),1,1)) -> 477 | E92: =IF(A92>$A$8,"",OFFSET(InputPriceData!D$15,CalculationsAndCharts!$A92+$A$11,IF($C$5,8,0),1,1)) -> 500.899994 | F92: =IF(A92>$A$8,"",OFFSET(InputPriceData!E$15,CalculationsAndCharts!$A92+$A$11,IF($C$5,8,0),1,1)) -> 476.179993 | G92: =IF(A92>$A$8,"",OFFSET(InputPriceData!F$15,CalculationsAndCharts!$A92+$A$11,IF($C$5,8,0),1,1)) -> 500.690002 | H92: 501.404004 | I92: 504.2440066 | J92: 504.0460026 | K92: 1.98004 | L92: TRUE | M92: FALSE | N92: 14 | O92: 6 | P92: 3.80952381 | Q92: 3.80952381 | R92: 6.666666667 | S92: -2.857142857 | T92: 3.80952381 | AW92: 18026100
A93: 61 | B93: =IF(A93>$A$8,"",OFFSET(InputPriceData!B$15,$A93+$A$11,0,1,1)) -> 2020-09-18 | C93: =IF(A93>$A$8,"",OFFSET(InputPriceData!G$15,CalculationsAndCharts!$A93+$A$11,IF($C$5,8,0),1,1)) -> 17461500 | D93: =IF(A93>$A$8,"",OFFSET(InputPriceData!C$15,CalculationsAndCharts!$A93+$A$11,IF($C$5,8,0),1,1)) -> 503.75 | E93: =IF(A93>$A$8,"",OFFSET(InputPriceData!D$15,CalculationsAndCharts!$A93+$A$11,IF($C$5,8,0),1,1)) -> 505.299988 | F93: =IF(A93>$A$8,"",OFFSET(InputPriceData!E$15,CalculationsAndCharts!$A93+$A$11,IF($C$5,8,0),1,1)) -> 479.549988 | G93: =IF(A93>$A$8,"",OFFSET(InputPriceData!F$15,CalculationsAndCharts!$A93+$A$11,IF($C$5,8,0),1,1)) -> 487.570007 | H93: 504.2440066 | I93: 504.0460026 | J93: 502.832001 | K93: 12.140016 | L93: TRUE | M93: FALSE | N93: 14 | O93: 6 | P93: 3.80952381 | Q93: 3.80952381 | R93: 6.666666667 | S93: -2.857142857 | T93: 3.80952381 | AX93: 17461500
A94: 62 | B94: =IF(A94>$A$8,"",OFFSET(InputPriceData!B$15,$A94+$A$11,0,1,1)) -> 2020-09-17 | C94: =IF(A94>$A$8,"",OFFSET(InputPriceData!G$15,CalculationsAndCharts!$A94+$A$11,IF($C$5,8,0),1,1)) -> 19812800 | D94: =IF(A94>$A$8,"",OFFSET(InputPriceData!C$15,CalculationsAndCharts!$A94+$A$11,IF($C$5,8,0),1,1)) -> 485.290009 | E94: =IF(A94>$A$8,"",OFFSET(InputPriceData!D$15,CalculationsAndCharts!$A94+$A$11,IF($C$5,8,0),1,1)) -> 503.589996 | F94: =IF(A94>$A$8,"",OFFSET(InputPriceData!E$15,CalculationsAndCharts!$A94+$A$11,IF($C$5,8,0),1,1)) -> 481.390015 | G94: =IF(A94>$A$8,"",OFFSET(InputPriceData!F$15,CalculationsAndCharts!$A94+$A$11,IF($C$5,8,0),1,1)) -> 498.540009 | H94: 504.0460026 | I94: 502.832001 | J94: 504.4360048 | K94: -16.040038 | L94: FALSE | M94: TRUE | N94: 14 | O94: 6 | P94: 3.80952381 | Q94: 3.80952381 | R94: 6.666666667 | S94: -2.857142857 | T94: 3.80952381 | AW94: 19812800
A95: 63 | B95: =IF(A95>$A$8,"",OFFSET(InputPriceData!B$15,$A95+$A$11,0,1,1)) -> 2020-09-16 | C95: =IF(A95>$A$8,"",OFFSET(InputPriceData!G$15,CalculationsAndCharts!$A95+$A$11,IF($C$5,8,0),1,1)) -> 13909600 | D95: =IF(A95>$A$8,"",OFFSET(InputPriceData!C$15,CalculationsAndCharts!$A95+$A$11,IF($C$5,8,0),1,1)) -> 518.289978 | E95: =IF(A95>$A$8,"",OFFSET(InputPriceData!D$15,CalculationsAndCharts!$A95+$A$11,IF($C$5,8,0),1,1)) -> 523.710022 | F95: =IF(A95>$A$8,"",OFFSET(InputPriceData!E$15,CalculationsAndCharts!$A95+$A$11,IF($C$5,8,0),1,1)) -> 500.549988 | G95: =IF(A95>$A$8,"",OFFSET(InputPriceData!F$15,CalculationsAndCharts!$A95+$A$11,IF($C$5,8,0),1,1)) -> 500.579987 | H95: 502.832001 | I95: 504.4360048 | J95: 495.8119996 | K95: 86.240052 | L95: TRUE | M95: FALSE | N95: 15 | O95: 5 | P95: 4.761904762 | Q95: 4.761904762 | R95: 7.142857143 | S95: -2.380952381 | T95: 4.761904762 | AX95: 13909600
A96: 64 | B96: =IF(A96>$A$8,"",OFFSET(InputPriceData!B$15,$A96+$A$11,0,1,1)) -> 2020-09-15 | C96: =IF(A96>$A$8,"",OFFSET(InputPriceData!G$15,CalculationsAndCharts!$A96+$A$11,IF($C$5,8,0),1,1)) -> 18188900 | D96: =IF(A96>$A$8,"",OFFSET(InputPriceData!C$15,CalculationsAndCharts!$A96+$A$11,IF($C$5,8,0),1,1)) -> 531.200012 | E96: =IF(A96>$A$8,"",OFFSET(InputPriceData!D$15,CalculationsAndCharts!$A96+$A$11,IF($C$5,8,0),1,1)) -> 531.950012 | F96: =IF(A96>$A$8,"",OFFSET(InputPriceData!E$15,CalculationsAndCharts!$A96+$A$11,IF($C$5,8,0),1,1)) -> 513.109985 | G96: =IF(A96>$A$8,"",OFFSET(InputPriceData!F$15,CalculationsAndCharts!$A96+$A$11,IF($C$5,8,0),1,1)) -> 519.640015 | H96: 504.4360048 | I96: 495.8119996 | J96: 493.8139954 | K96: 19.980042 | L96: TRUE | M96: FALSE | N96: 15 | O96: 5 | P96: 4.761904762 | Q96: 4.761904762 | R96: 7.142857143 | S96: -2.380952381 | T96: 4.761904762 | AX96: 18188900
A97: 65 | B97: =IF(A97>$A$8,"",OFFSET(InputPriceData!B$15,$A97+$A$11,0,1,1)) -> 2020-09-14 | C97: =IF(A97>$A$8,"",OFFSET(InputPriceData!G$15,CalculationsAndCharts!$A97+$A$11,IF($C$5,8,0),1,1)) -> 30043600 | D97: =IF(A97>$A$8,"",OFFSET(InputPriceData!C$15,CalculationsAndCharts!$A97+$A$11,IF($C$5,8,0),1,1)) -> 523.23999 | E97: =IF(A97>$A$8,"",OFFSET(InputPriceData!D$15,CalculationsAndCharts!$A97+$A$11,IF($C$5,8,0),1,1)) -> 532.599976 | F97: =IF(A97>$A$8,"",OFFSET(InputPriceData!E$15,CalculationsAndCharts!$A97+$A$11,IF($C$5,8,0),1,1)) -> 505.25 | G97: =IF(A97>$A$8,"",OFFSET(InputPriceData!F$15,CalculationsAndCharts!$A97+$A$11,IF($C$5,8,0),1,1)) -> 514.890015 | H97: 495.8119996 | I97: 493.8139954 | J97: 500.621997 | K97: =(I97-J97)/$E$21 -> -68.080016 | L97: FALSE | M97: TRUE | N97: 15 | O97: 5 | P97: 4.761904762 | Q97: 4.761904762 | R97: 7.142857143 | S97: -2.380952381 | T97: =IF($R$16=1,Q97,P97) -> 4.761904762 | AW97: =IF(G97>=D97,C97,NA()) ->  | AX97: =IF(G97<D97,C97,NA()) -> 30043600
A98: 66 | B98: =IF(A98>$A$8,"",OFFSET(InputPriceData!B$15,$A98+$A$11,0,1,1)) -> 2020-09-11 | C98: =IF(A98>$A$8,"",OFFSET(InputPriceData!G$15,CalculationsAndCharts!$A98+$A$11,IF($C$5,8,0),1,1)) -> 15923200 | D98: =IF(A98>$A$8,"",OFFSET(InputPriceData!C$15,CalculationsAndCharts!$A98+$A$11,IF($C$5,8,0),1,1)) -> 499.420013 | E98: =IF(A98>$A$8,"",OFFSET(InputPriceData!D$15,CalculationsAndCharts!$A98+$A$11,IF($C$5,8,0),1,1)) -> 506.100006 | F98: =IF(A98>$A$8,"",OFFSET(InputPriceData!E$15,CalculationsAndCharts!$A98+$A$11,IF($C$5,8,0),1,1)) -> 475.829987 | G98: =IF(A98>$A$8,"",OFFSET(InputPriceData!F$15,CalculationsAndCharts!$A98+$A$11,IF($C$5,8,0),1,1)) -> 486.579987 | H98: =AVERAGE(OFFSET(G98,0,0,$A$18,1)) -> 493.8139954 | I98: =OFFSET(H98,$A$16+1,0,1,1) -> 500.621997 | J98: =OFFSET(H98,$A$16+2,0,1,1) -> 516.8999938 | K98: -162.779968 | L98: =K98>$A$19 -> FALSE | M98: =K98<-$A$19 -> TRUE | N98: =COUNTIF(OFFSET(L98,0,0,$A$17,1),TRUE) -> 16 | O98: =COUNTIF(OFFSET(M98,0,0,$A$17,1),TRUE) -> 4 | P98: =(100*(N98-O98)/$E$17) -> 5.714285714 | Q98: =ABS(P98) -> 5.714285714 | R98: =(100*(N98)/$E$17) -> 7.619047619 | S98: =(100*(-O98)/$E$17) -> -1.904761905 | T98: 5.714285714 | U98: =IF($R$16=3,R98,NA()) ->  | V98: =IF($R$16=3,S98,NA()) ->  | AX98: 15923200
A99: 67 | B99: =IF(A99>$A$8,"",OFFSET(InputPriceData!B$15,$A99+$A$11,0,1,1)) -> 2020-09-10 | C99: =IF(A99>$A$8,"",OFFSET(InputPriceData!G$15,CalculationsAndCharts!$A99+$A$11,IF($C$5,8,0),1,1)) -> 17467100 | D99: =IF(A99>$A$8,"",OFFSET(InputPriceData!C$15,CalculationsAndCharts!$A99+$A$11,IF($C$5,8,0),1,1)) -> 519.570007 | E99: =IF(A99>$A$8,"",OFFSET(InputPriceData!D$15,CalculationsAndCharts!$A99+$A$11,IF($C$5,8,0),1,1)) -> 522.609985 | F99: =IF(A99>$A$8,"",OFFSET(InputPriceData!E$15,CalculationsAndCharts!$A99+$A$11,IF($C$5,8,0),1,1)) -> 486.679993 | G99: =IF(A99>$A$8,"",OFFSET(InputPriceData!F$15,CalculationsAndCharts!$A99+$A$11,IF($C$5,8,0),1,1)) -> 492.470001 | H99: 500.621997 | I99: 516.8999938 | J99: 525.747998 | K99: -88.480042 | L99: FALSE | M99: TRUE | N99: 17 | O99: 3 | P99: 6.666666667 | Q99: 6.666666667 | R99: 8.095238095 | S99: -1.428571429 | T99: 6.666666667 | AX99: 17467100
A100: 68 | B100: =IF(A100>$A$8,"",OFFSET(InputPriceData!B$15,$A100+$A$11,0,1,1)) -> 2020-09-09 | C100: =IF(A100>$A$8,"",OFFSET(InputPriceData!G$15,CalculationsAndCharts!$A100+$A$11,IF($C$5,8,0),1,1)) -> 18405000 | D100: =IF(A100>$A$8,"",OFFSET(InputPriceData!C$15,CalculationsAndCharts!$A100+$A$11,IF($C$5,8,0),1,1)) -> 496 | E100: =IF(A100>$A$8,"",OFFSET(InputPriceData!D$15,CalculationsAndCharts!$A100+$A$11,IF($C$5,8,0),1,1)) -> 512.369995 | F100: =IF(A100>$A$8,"",OFFSET(InputPriceData!E$15,CalculationsAndCharts!$A100+$A$11,IF($C$5,8,0),1,1)) -> 489.269989 | G100: =IF(A100>$A$8,"",OFFSET(InputPriceData!F$15,CalculationsAndCharts!$A100+$A$11,IF($C$5,8,0),1,1)) -> 508.600006 | H100: 516.8999938 | I100: 525.747998 | J100: 537.4399962 | K100: -116.919982 | L100: FALSE | M100: TRUE | N100: 17 | O100: 3 | P100: 6.666666667 | Q100: 6.666666667 | R100: 8.095238095 | S100: -1.428571429 | T100: 6.666666667 | AW100: 18405000
A101: 69 | B101: =IF(A101>$A$8,"",OFFSET(InputPriceData!B$15,$A101+$A$11,0,1,1)) -> 2020-09-08 | C101: =IF(A101>$A$8,"",OFFSET(InputPriceData!G$15,CalculationsAndCharts!$A101+$A$11,IF($C$5,8,0),1,1)) -> 19893200 | D101: =IF(A101>$A$8,"",OFFSET(InputPriceData!C$15,CalculationsAndCharts!$A101+$A$11,IF($C$5,8,0),1,1)) -> 469.380005 | E101: =IF(A101>$A$8,"",OFFSET(InputPriceData!D$15,CalculationsAndCharts!$A101+$A$11,IF($C$5,8,0),1,1)) -> 502 | F101: =IF(A101>$A$8,"",OFFSET(InputPriceData!E$15,CalculationsAndCharts!$A101+$A$11,IF($C$5,8,0),1,1)) -> 468.170013 | G101: =IF(A101>$A$8,"",OFFSET(InputPriceData!F$15,CalculationsAndCharts!$A101+$A$11,IF($C$5,8,0),1,1)) -> 476.519989 | H101: 525.747998 | I101: 537.4399962 | J101: 541.641992 | K101: -42.019958 | L101: FALSE | M101: TRUE | N101: 18 | O101: 2 | P101: 7.619047619 | Q101: 7.619047619 | R101: 8.571428571 | S101: -0.9523809524 | T101: 7.619047619 | AW101: 19893200
A102: 70 | B102: =IF(A102>$A$8,"",OFFSET(InputPriceData!B$15,$A102+$A$11,0,1,1)) -> 2020-09-04 | C102: =IF(A102>$A$8,"",OFFSET(InputPriceData!G$15,CalculationsAndCharts!$A102+$A$11,IF($C$5,8,0),1,1)) -> 36592100 | D102: =IF(A102>$A$8,"",OFFSET(InputPriceData!C$15,CalculationsAndCharts!$A102+$A$11,IF($C$5,8,0),1,1)) -> 511.350006 | E102: =IF(A102>$A$8,"",OFFSET(InputPriceData!D$15,CalculationsAndCharts!$A102+$A$11,IF($C$5,8,0),1,1)) -> 527 | F102: =IF(A102>$A$8,"",OFFSET(InputPriceData!E$15,CalculationsAndCharts!$A102+$A$11,IF($C$5,8,0),1,1)) -> 468.190002 | G102: =IF(A102>$A$8,"",OFFSET(InputPriceData!F$15,CalculationsAndCharts!$A102+$A$11,IF($C$5,8,0),1,1)) -> 504.899994 | H102: 537.4399962 | I102: 541.641992 | J102: 538.543994 | K102: 30.97998 | L102: TRUE | M102: FALSE | N102: 19 | O102: 1 | P102: 8.571428571 | Q102: 8.571428571 | R102: 9.047619048 | S102: -0.4761904762 | T102: 8.571428571 | AX102: 36592100
A103: 71 | B103: =IF(A103>$A$8,"",OFFSET(InputPriceData!B$15,$A103+$A$11,0,1,1)) -> 2020-09-03 | C103: =IF(A103>$A$8,"",OFFSET(InputPriceData!G$15,CalculationsAndCharts!$A103+$A$11,IF($C$5,8,0),1,1)) -> 23628200 | D103: =IF(A103>$A$8,"",OFFSET(InputPriceData!C$15,CalculationsAndCharts!$A103+$A$11,IF($C$5,8,0),1,1)) -> 553.150024 | E103: =IF(A103>$A$8,"",OFFSET(InputPriceData!D$15,CalculationsAndCharts!$A103+$A$11,IF($C$5,8,0),1,1)) -> 555.380005 | F103: =IF(A103>$A$8,"",OFFSET(InputPriceData!E$15,CalculationsAndCharts!$A103+$A$11,IF($C$5,8,0),1,1)) -> 515.150024 | G103: =IF(A103>$A$8,"",OFFSET(InputPriceData!F$15,CalculationsAndCharts!$A103+$A$11,IF($C$5,8,0),1,1)) -> 520.619995 | H103: 541.641992 | I103: 538.543994 | J103: 525.9559996 | K103: 125.879944 | L103: TRUE | M103: FALSE | N103: 19 | O103: 1 | P103: 8.571428571 | Q103: 8.571428571 | R103: 9.047619048 | S103: -0.4761904762 | T103: 8.571428571 | AX103: 23628200
A104: 72 | B104: =IF(A104>$A$8,"",OFFSET(InputPriceData!B$15,$A104+$A$11,0,1,1)) -> 2020-09-02 | C104: =IF(A104>$A$8,"",OFFSET(InputPriceData!G$15,CalculationsAndCharts!$A104+$A$11,IF($C$5,8,0),1,1)) -> 21850300 | D104: =IF(A104>$A$8,"",OFFSET(InputPriceData!C$15,CalculationsAndCharts!$A104+$A$11,IF($C$5,8,0),1,1)) -> 588.150024 | E104: =IF(A104>$A$8,"",OFFSET(InputPriceData!D$15,CalculationsAndCharts!$A104+$A$11,IF($C$5,8,0),1,1)) -> 589.070007 | F104: =IF(A104>$A$8,"",OFFSET(InputPriceData!E$15,CalculationsAndCharts!$A104+$A$11,IF($C$5,8,0),1,1)) -> 556 | G104: =IF(A104>$A$8,"",OFFSET(InputPriceData!F$15,CalculationsAndCharts!$A104+$A$11,IF($C$5,8,0),1,1)) -> 573.859985 | H104: 538.543994 | I104: 525.9559996 | J104: 517.3879942 | K104: 85.680054 | L104: TRUE | M104: FALSE | N104: 19 | O104: 1 | P104: 8.571428571 | Q104: 8.571428571 | R104: 9.047619048 | S104: -0.4761904762 | T104: 8.571428571 | AX104: 21850300
A105: 73 | B105: =IF(A105>$A$8,"",OFFSET(InputPriceData!B$15,$A105+$A$11,0,1,1)) -> 2020-09-01 | C105: =IF(A105>$A$8,"",OFFSET(InputPriceData!G$15,CalculationsAndCharts!$A105+$A$11,IF($C$5,8,0),1,1)) -> 12811800 | D105: =IF(A105>$A$8,"",OFFSET(InputPriceData!C$15,CalculationsAndCharts!$A105+$A$11,IF($C$5,8,0),1,1)) -> 539.200012 | E105: =IF(A105>$A$8,"",OFFSET(InputPriceData!D$15,CalculationsAndCharts!$A105+$A$11,IF($C$5,8,0),1,1)) -> 559.75 | F105: =IF(A105>$A$8,"",OFFSET(InputPriceData!E$15,CalculationsAndCharts!$A105+$A$11,IF($C$5,8,0),1,1)) -> 537.460022 | G105: =IF(A105>$A$8,"",OFFSET(InputPriceData!F$15,CalculationsAndCharts!$A105+$A$11,IF($C$5,8,0),1,1)) -> 552.840027 | H105: 525.9559996 | I105: 517.3879942 | J105: 512.1539978 | K105: 52.339964 | L105: TRUE | M105: FALSE | N105: 19 | O105: 1 | P105: 8.571428571 | Q105: 8.571428571 | R105: 9.047619048 | S105: -0.4761904762 | T105: 8.571428571 | AW105: 12811800
A106: 74 | B106: =IF(A106>$A$8,"",OFFSET(InputPriceData!B$15,$A106+$A$11,0,1,1)) -> 2020-08-31 | C106: =IF(A106>$A$8,"",OFFSET(InputPriceData!G$15,CalculationsAndCharts!$A106+$A$11,IF($C$5,8,0),1,1)) -> 12521000 | D106: =IF(A106>$A$8,"",OFFSET(InputPriceData!C$15,CalculationsAndCharts!$A106+$A$11,IF($C$5,8,0),1,1)) -> 527.309998 | E106: =IF(A106>$A$8,"",OFFSET(InputPriceData!D$15,CalculationsAndCharts!$A106+$A$11,IF($C$5,8,0),1,1)) -> 543 | F106: =IF(A106>$A$8,"",OFFSET(InputPriceData!E$15,CalculationsAndCharts!$A106+$A$11,IF($C$5,8,0),1,1)) -> 521.51001 | G106: =IF(A106>$A$8,"",OFFSET(InputPriceData!F$15,CalculationsAndCharts!$A106+$A$11,IF($C$5,8,0),1,1)) -> 534.97998 | H106: 517.3879942 | I106: 512.1539978 | J106: 508.4400024 | K106: 37.139954 | L106: TRUE | M106: FALSE | N106: 19 | O106: 1 | P106: 8.571428571 | Q106: 8.571428571 | R106: 9.047619048 | S106: -0.4761904762 | T106: 8.571428571 | AW106: 12521000
A107: 75 | B107: =IF(A107>$A$8,"",OFFSET(InputPriceData!B$15,$A107+$A$11,0,1,1)) -> 2020-08-28 | C107: =IF(A107>$A$8,"",OFFSET(InputPriceData!G$15,CalculationsAndCharts!$A107+$A$11,IF($C$5,8,0),1,1)) -> 13429000 | D107: =IF(A107>$A$8,"",OFFSET(InputPriceData!C$15,CalculationsAndCharts!$A107+$A$11,IF($C$5,8,0),1,1)) -> 507 | E107: =IF(A107>$A$8,"",OFFSET(InputPriceData!D$15,CalculationsAndCharts!$A107+$A$11,IF($C$5,8,0),1,1)) -> 525.919983 | F107: =IF(A107>$A$8,"",OFFSET(InputPriceData!E$15,CalculationsAndCharts!$A107+$A$11,IF($C$5,8,0),1,1)) -> 505.700012 | G107: =IF(A107>$A$8,"",OFFSET(InputPriceData!F$15,CalculationsAndCharts!$A107+$A$11,IF($C$5,8,0),1,1)) -> 525.909973 | H107: 512.1539978 | I107: 508.4400024 | J107: 504.5420044 | K107: 38.97998 | L107: TRUE | M107: FALSE | N107: 19 | O107: 1 | P107: 8.571428571 | Q107: 8.571428571 | R107: 9.047619048 | S107: -0.4761904762 | T107: 8.571428571 | AW107: 13429000
A108: 76 | B108: =IF(A108>$A$8,"",OFFSET(InputPriceData!B$15,$A108+$A$11,0,1,1)) -> 2020-08-27 | C108: =IF(A108>$A$8,"",OFFSET(InputPriceData!G$15,CalculationsAndCharts!$A108+$A$11,IF($C$5,8,0),1,1)) -> 7940100 | D108: =IF(A108>$A$8,"",OFFSET(InputPriceData!C$15,CalculationsAndCharts!$A108+$A$11,IF($C$5,8,0),1,1)) -> 511.26001 | E108: =IF(A108>$A$8,"",OFFSET(InputPriceData!D$15,CalculationsAndCharts!$A108+$A$11,IF($C$5,8,0),1,1)) -> 514 | F108: =IF(A108>$A$8,"",OFFSET(InputPriceData!E$15,CalculationsAndCharts!$A108+$A$11,IF($C$5,8,0),1,1)) -> 502.660004 | G108: =IF(A108>$A$8,"",OFFSET(InputPriceData!F$15,CalculationsAndCharts!$A108+$A$11,IF($C$5,8,0),1,1)) -> 505.130005 | H108: 508.4400024 | I108: 504.5420044 | J108: 499.4660036 | K108: 50.760008 | L108: TRUE | M108: FALSE | N108: 19 | O108: 1 | P108: 8.571428571 | Q108: 8.571428571 | R108: 9.047619048 | S108: -0.4761904762 | T108: 8.571428571 | AX108: 7940100
A109: 77 | B109: =IF(A109>$A$8,"",OFFSET(InputPriceData!B$15,$A109+$A$11,0,1,1)) -> 2020-08-26 | C109: =IF(A109>$A$8,"",OFFSET(InputPriceData!G$15,CalculationsAndCharts!$A109+$A$11,IF($C$5,8,0),1,1)) -> 8031100 | D109: =IF(A109>$A$8,"",OFFSET(InputPriceData!C$15,CalculationsAndCharts!$A109+$A$11,IF($C$5,8,0),1,1)) -> 511.970001 | E109: =IF(A109>$A$8,"",OFFSET(InputPriceData!D$15,CalculationsAndCharts!$A109+$A$11,IF($C$5,8,0),1,1)) -> 514.73999 | F109: =IF(A109>$A$8,"",OFFSET(InputPriceData!E$15,CalculationsAndCharts!$A109+$A$11,IF($C$5,8,0),1,1)) -> 507.109985 | G109: =IF(A109>$A$8,"",OFFSET(InputPriceData!F$15,CalculationsAndCharts!$A109+$A$11,IF($C$5,8,0),1,1)) -> 510.920013 | H109: 504.5420044 | I109: 499.4660036 | J109: 495.5520022 | K109: 39.140014 | L109: TRUE | M109: FALSE | N109: 19 | O109: 1 | P109: 8.571428571 | Q109: 8.571428571 | R109: 9.047619048 | S109: -0.4761904762 | T109: 8.571428571 | AX109: 8031100
A110: 78 | B110: =IF(A110>$A$8,"",OFFSET(InputPriceData!B$15,$A110+$A$11,0,1,1)) -> 2020-08-25 | C110: =IF(A110>$A$8,"",OFFSET(InputPriceData!G$15,CalculationsAndCharts!$A110+$A$11,IF($C$5,8,0),1,1)) -> 7226900 | D110: =IF(A110>$A$8,"",OFFSET(InputPriceData!C$15,CalculationsAndCharts!$A110+$A$11,IF($C$5,8,0),1,1)) -> 505.230011 | E110: =IF(A110>$A$8,"",OFFSET(InputPriceData!D$15,CalculationsAndCharts!$A110+$A$11,IF($C$5,8,0),1,1)) -> 510.450012 | F110: =IF(A110>$A$8,"",OFFSET(InputPriceData!E$15,CalculationsAndCharts!$A110+$A$11,IF($C$5,8,0),1,1)) -> 502.950012 | G110: =IF(A110>$A$8,"",OFFSET(InputPriceData!F$15,CalculationsAndCharts!$A110+$A$11,IF($C$5,8,0),1,1)) -> 510 | H110: 499.4660036 | I110: 495.5520022 | J110: 492.4860048 | K110: 30.659974 | L110: TRUE | M110: FALSE | N110: 18 | O110: 2 | P110: 7.619047619 | Q110: 7.619047619 | R110: 8.571428571 | S110: -0.9523809524 | T110: 7.619047619 | AW110: 7226900
A111: 79 | B111: =IF(A111>$A$8,"",OFFSET(InputPriceData!B$15,$A111+$A$11,0,1,1)) -> 2020-08-24 | C111: =IF(A111>$A$8,"",OFFSET(InputPriceData!G$15,CalculationsAndCharts!$A111+$A$11,IF($C$5,8,0),1,1)) -> 12264100 | D111: =IF(A111>$A$8,"",OFFSET(InputPriceData!C$15,CalculationsAndCharts!$A111+$A$11,IF($C$5,8,0),1,1)) -> 515.349976 | E111: =IF(A111>$A$8,"",OFFSET(InputPriceData!D$15,CalculationsAndCharts!$A111+$A$11,IF($C$5,8,0),1,1)) -> 516.5 | F111: =IF(A111>$A$8,"",OFFSET(InputPriceData!E$15,CalculationsAndCharts!$A111+$A$11,IF($C$5,8,0),1,1)) -> 500.299988 | G111: =IF(A111>$A$8,"",OFFSET(InputPriceData!F$15,CalculationsAndCharts!$A111+$A$11,IF($C$5,8,0),1,1)) -> 508.809998 | H111: 495.5520022 | I111: 492.4860048 | J111: 483.5300052 | K111: 89.559996 | L111: TRUE | M111: FALSE | N111: 17 | O111: 3 | P111: 6.666666667 | Q111: 6.666666667 | R111: 8.095238095 | S111: -1.428571429 | T111: 6.666666667 | AX111: 12264100
A112: 80 | B112: =IF(A112>$A$8,"",OFFSET(InputPriceData!B$15,$A112+$A$11,0,1,1)) -> 2020-08-21 | C112: =IF(A112>$A$8,"",OFFSET(InputPriceData!G$15,CalculationsAndCharts!$A112+$A$11,IF($C$5,8,0),1,1)) -> 24996700 | D112: =IF(A112>$A$8,"",OFFSET(InputPriceData!C$15,CalculationsAndCharts!$A112+$A$11,IF($C$5,8,0),1,1)) -> 488.070007 | E112: =IF(A112>$A$8,"",OFFSET(InputPriceData!D$15,CalculationsAndCharts!$A112+$A$11,IF($C$5,8,0),1,1)) -> 512.349976 | F112: =IF(A112>$A$8,"",OFFSET(InputPriceData!E$15,CalculationsAndCharts!$A112+$A$11,IF($C$5,8,0),1,1)) -> 487.809998 | G112: =IF(A112>$A$8,"",OFFSET(InputPriceData!F$15,CalculationsAndCharts!$A112+$A$11,IF($C$5,8,0),1,1)) -> 507.339996 | H112: 492.4860048 | I112: 483.5300052 | J112: 477.9460024 | K112: 55.840028 | L112: TRUE | M112: FALSE | N112: 16 | O112: 3 | P112: 6.19047619 | Q112: 6.19047619 | R112: 7.619047619 | S112: -1.428571429 | T112: 6.19047619 | AW112: 24996700
A113: 81 | B113: =IF(A113>$A$8,"",OFFSET(InputPriceData!B$15,$A113+$A$11,0,1,1)) -> 2020-08-20 | C113: =IF(A113>$A$8,"",OFFSET(InputPriceData!G$15,CalculationsAndCharts!$A113+$A$11,IF($C$5,8,0),1,1)) -> 23034700 | D113: =IF(A113>$A$8,"",OFFSET(InputPriceData!C$15,CalculationsAndCharts!$A113+$A$11,IF($C$5,8,0),1,1)) -> 479 | E113: =IF(A113>$A$8,"",OFFSET(InputPriceData!D$15,CalculationsAndCharts!$A113+$A$11,IF($C$5,8,0),1,1)) -> 495 | F113: =IF(A113>$A$8,"",OFFSET(InputPriceData!E$15,CalculationsAndCharts!$A113+$A$11,IF($C$5,8,0),1,1)) -> 475.149994 | G113: =IF(A113>$A$8,"",OFFSET(InputPriceData!F$15,CalculationsAndCharts!$A113+$A$11,IF($C$5,8,0),1,1)) -> 485.640015 | H113: 483.5300052 | I113: 477.9460024 | J113: 472.3599976 | K113: 55.860048 | L113: TRUE | M113: FALSE | N113: 15 | O113: 3 | P113: 5.714285714 | Q113: 5.714285714 | R113: 7.142857143 | S113: -1.428571429 | T113: 5.714285714 | AW113: 23034700
A114: 82 | B114: =IF(A114>$A$8,"",OFFSET(InputPriceData!B$15,$A114+$A$11,0,1,1)) -> 2020-08-19 | C114: =IF(A114>$A$8,"",OFFSET(InputPriceData!G$15,CalculationsAndCharts!$A114+$A$11,IF($C$5,8,0),1,1)) -> 15565600 | D114: =IF(A114>$A$8,"",OFFSET(InputPriceData!C$15,CalculationsAndCharts!$A114+$A$11,IF($C$5,8,0),1,1)) -> 491.859985 | E114: =IF(A114>$A$8,"",OFFSET(InputPriceData!D$15,CalculationsAndCharts!$A114+$A$11,IF($C$5,8,0),1,1)) -> 492.600006 | F114: =IF(A114>$A$8,"",OFFSET(InputPriceData!E$15,CalculationsAndCharts!$A114+$A$11,IF($C$5,8,0),1,1)) -> 483.920013 | G114: =IF(A114>$A$8,"",OFFSET(InputPriceData!F$15,CalculationsAndCharts!$A114+$A$11,IF($C$5,8,0),1,1)) -> 485.540009 | H114: 477.9460024 | I114: 472.3599976 | J114: 461.073999 | K114: 112.859986 | L114: TRUE | M114: FALSE | N114: 15 | O114: 3 | P114: 5.714285714 | Q114: 5.714285714 | R114: 7.142857143 | S114: -1.428571429 | T114: 5.714285714 | AX114: 15565600
A115: 83 | B115: =IF(A115>$A$8,"",OFFSET(InputPriceData!B$15,$A115+$A$11,0,1,1)) -> 2020-08-18 | C115: =IF(A115>$A$8,"",OFFSET(InputPriceData!G$15,CalculationsAndCharts!$A115+$A$11,IF($C$5,8,0),1,1)) -> 12586200 | D115: =IF(A115>$A$8,"",OFFSET(InputPriceData!C$15,CalculationsAndCharts!$A115+$A$11,IF($C$5,8,0),1,1)) -> 498 | E115: =IF(A115>$A$8,"",OFFSET(InputPriceData!D$15,CalculationsAndCharts!$A115+$A$11,IF($C$5,8,0),1,1)) -> 499.839996 | F115: =IF(A115>$A$8,"",OFFSET(InputPriceData!E$15,CalculationsAndCharts!$A115+$A$11,IF($C$5,8,0),1,1)) -> 483.450012 | G115: =IF(A115>$A$8,"",OFFSET(InputPriceData!F$15,CalculationsAndCharts!$A115+$A$11,IF($C$5,8,0),1,1)) -> 490.429993 | H115: 472.3599976 | I115: 461.073999 | J115: 451.697998 | K115: 93.76001 | L115: TRUE | M115: FALSE | N115: 14 | O115: 4 | P115: 4.761904762 | Q115: 4.761904762 | R115: 6.666666667 | S115: -1.904761905 | T115: 4.761904762 | AX115: 12586200
A116: 84 | B116: =IF(A116>$A$8,"",OFFSET(InputPriceData!B$15,$A116+$A$11,0,1,1)) -> 2020-08-17 | C116: =IF(A116>$A$8,"",OFFSET(InputPriceData!G$15,CalculationsAndCharts!$A116+$A$11,IF($C$5,8,0),1,1)) -> 15532500 | D116: =IF(A116>$A$8,"",OFFSET(InputPriceData!C$15,CalculationsAndCharts!$A116+$A$11,IF($C$5,8,0),1,1)) -> 474.049988 | E116: =IF(A116>$A$8,"",OFFSET(InputPriceData!D$15,CalculationsAndCharts!$A116+$A$11,IF($C$5,8,0),1,1)) -> 496.390015 | F116: =IF(A116>$A$8,"",OFFSET(InputPriceData!E$15,CalculationsAndCharts!$A116+$A$11,IF($C$5,8,0),1,1)) -> 472.690002 | G116: =IF(A116>$A$8,"",OFFSET(InputPriceData!F$15,CalculationsAndCharts!$A116+$A$11,IF($C$5,8,0),1,1)) -> 493.480011 | H116: 461.073999 | I116: 451.697998 | J116: 448.7820006 | K116: 29.159974 | L116: TRUE | M116: FALSE | N116: 14 | O116: 4 | P116: 4.761904762 | Q116: 4.761904762 | R116: 6.666666667 | S116: -1.904761905 | T116: 4.761904762 | AW116: 15532500
A117: 85 | B117: =IF(A117>$A$8,"",OFFSET(InputPriceData!B$15,$A117+$A$11,0,1,1)) -> 2020-08-14 | C117: =IF(A117>$A$8,"",OFFSET(InputPriceData!G$15,CalculationsAndCharts!$A117+$A$11,IF($C$5,8,0),1,1)) -> 9160900 | D117: =IF(A117>$A$8,"",OFFSET(InputPriceData!C$15,CalculationsAndCharts!$A117+$A$11,IF($C$5,8,0),1,1)) -> 461.200012 | E117: =IF(A117>$A$8,"",OFFSET(InputPriceData!D$15,CalculationsAndCharts!$A117+$A$11,IF($C$5,8,0),1,1)) -> 468.190002 | F117: =IF(A117>$A$8,"",OFFSET(InputPriceData!E$15,CalculationsAndCharts!$A117+$A$11,IF($C$5,8,0),1,1)) -> 457.619995 | G117: =IF(A117>$A$8,"",OFFSET(InputPriceData!F$15,CalculationsAndCharts!$A117+$A$11,IF($C$5,8,0),1,1)) -> 462.559998 | H117: 451.697998 | I117: 448.7820006 | J117: 447.922003 | K117: 8.599976 | L117: TRUE | M117: FALSE | N117: 13 | O117: 5 | P117: 3.80952381 | Q117: 3.80952381 | R117: 6.19047619 | S117: -2.380952381 | T117: 3.80952381 | AW117: 9160900
A118: 86 | B118: =IF(A118>$A$8,"",OFFSET(InputPriceData!B$15,$A118+$A$11,0,1,1)) -> 2020-08-13 | C118: =IF(A118>$A$8,"",OFFSET(InputPriceData!G$15,CalculationsAndCharts!$A118+$A$11,IF($C$5,8,0),1,1)) -> 9361500 | D118: =IF(A118>$A$8,"",OFFSET(InputPriceData!C$15,CalculationsAndCharts!$A118+$A$11,IF($C$5,8,0),1,1)) -> 461.839996 | E118: =IF(A118>$A$8,"",OFFSET(InputPriceData!D$15,CalculationsAndCharts!$A118+$A$11,IF($C$5,8,0),1,1)) -> 468.869995 | F118: =IF(A118>$A$8,"",OFFSET(InputPriceData!E$15,CalculationsAndCharts!$A118+$A$11,IF($C$5,8,0),1,1)) -> 454.230011 | G118: =IF(A118>$A$8,"",OFFSET(InputPriceData!F$15,CalculationsAndCharts!$A118+$A$11,IF($C$5,8,0),1,1)) -> 457.720001 | H118: 448.7820006 | I118: 447.922003 | J118: 446.6940062 | K118: 12.279968 | L118: TRUE | M118: FALSE | N118: 12 | O118: 6 | P118: 2.857142857 | Q118: 2.857142857 | R118: 5.714285714 | S118: -2.857142857 | T118: 2.857142857 | AX118: 9361500
A119: 87 | B119: =IF(A119>$A$8,"",OFFSET(InputPriceData!B$15,$A119+$A$11,0,1,1)) -> 2020-08-12 | C119: =IF(A119>$A$8,"",OFFSET(InputPriceData!G$15,CalculationsAndCharts!$A119+$A$11,IF($C$5,8,0),1,1)) -> 11623600 | D119: =IF(A119>$A$8,"",OFFSET(InputPriceData!C$15,CalculationsAndCharts!$A119+$A$11,IF($C$5,8,0),1,1)) -> 439.630005 | E119: =IF(A119>$A$8,"",OFFSET(InputPriceData!D$15,CalculationsAndCharts!$A119+$A$11,IF($C$5,8,0),1,1)) -> 458.679993 | F119: =IF(A119>$A$8,"",OFFSET(InputPriceData!E$15,CalculationsAndCharts!$A119+$A$11,IF($C$5,8,0),1,1)) -> 438.329987 | G119: =IF(A119>$A$8,"",OFFSET(InputPriceData!F$15,CalculationsAndCharts!$A119+$A$11,IF($C$5,8,0),1,1)) -> 457.609985 | H119: 447.922003 | I119: 446.6940062 | J119: 449.7160032 | K119: -30.21997 | L119: FALSE | M119: TRUE | N119: 11 | O119: 6 | P119: 2.380952381 | Q119: 2.380952381 | R119: 5.238095238 | S119: -2.857142857 | T119: 2.380952381 | AW119: 11623600
A120: 88 | B120: =IF(A120>$A$8,"",OFFSET(InputPriceData!B$15,$A120+$A$11,0,1,1)) -> 2020-08-11 | C120: =IF(A120>$A$8,"",OFFSET(InputPriceData!G$15,CalculationsAndCharts!$A120+$A$11,IF($C$5,8,0),1,1)) -> 8862800 | D120: =IF(A120>$A$8,"",OFFSET(InputPriceData!C$15,CalculationsAndCharts!$A120+$A$11,IF($C$5,8,0),1,1)) -> 442.950012 | E120: =IF(A120>$A$8,"",OFFSET(InputPriceData!D$15,CalculationsAndCharts!$A120+$A$11,IF($C$5,8,0),1,1)) -> 445.470001 | F120: =IF(A120>$A$8,"",OFFSET(InputPriceData!E$15,CalculationsAndCharts!$A120+$A$11,IF($C$5,8,0),1,1)) -> 431.829987 | G120: =IF(A120>$A$8,"",OFFSET(InputPriceData!F$15,CalculationsAndCharts!$A120+$A$11,IF($C$5,8,0),1,1)) -> 434 | H120: 446.6940062 | I120: 449.7160032 | J120: 448.4780028 | K120: 12.380004 | L120: TRUE | M120: FALSE | N120: 12 | O120: 5 | P120: 3.333333333 | Q120: 3.333333333 | R120: 5.714285714 | S120: -2.380952381 | T120: 3.333333333 | AX120: 8862800
A121: 89 | B121: =IF(A121>$A$8,"",OFFSET(InputPriceData!B$15,$A121+$A$11,0,1,1)) -> 2020-08-10 | C121: =IF(A121>$A$8,"",OFFSET(InputPriceData!G$15,CalculationsAndCharts!$A121+$A$11,IF($C$5,8,0),1,1)) -> 10694900 | D121: =IF(A121>$A$8,"",OFFSET(InputPriceData!C$15,CalculationsAndCharts!$A121+$A$11,IF($C$5,8,0),1,1)) -> 453.369995 | E121: =IF(A121>$A$8,"",OFFSET(InputPriceData!D$15,CalculationsAndCharts!$A121+$A$11,IF($C$5,8,0),1,1)) -> 456.329987 | F121: =IF(A121>$A$8,"",OFFSET(InputPriceData!E$15,CalculationsAndCharts!$A121+$A$11,IF($C$5,8,0),1,1)) -> 434.26001 | G121: =IF(A121>$A$8,"",OFFSET(InputPriceData!F$15,CalculationsAndCharts!$A121+$A$11,IF($C$5,8,0),1,1)) -> 446.600006 | H121: 449.7160032 | I121: 448.4780028 | J121: 443.7999998 | K121: 46.78003 | L121: TRUE | M121: FALSE | N121: 12 | O121: 5 | P121: 3.333333333 | Q121: 3.333333333 | R121: 5.714285714 | S121: -2.380952381 | T121: 3.333333333 | AX121: 10694900
A122: 90 | B122: =IF(A122>$A$8,"",OFFSET(InputPriceData!B$15,$A122+$A$11,0,1,1)) -> 2020-08-07 | C122: =IF(A122>$A$8,"",OFFSET(InputPriceData!G$15,CalculationsAndCharts!$A122+$A$11,IF($C$5,8,0),1,1)) -> 8555400 | D122: =IF(A122>$A$8,"",OFFSET(InputPriceData!C$15,CalculationsAndCharts!$A122+$A$11,IF($C$5,8,0),1,1)) -> 452.5 | E122: =IF(A122>$A$8,"",OFFSET(InputPriceData!D$15,CalculationsAndCharts!$A122+$A$11,IF($C$5,8,0),1,1)) -> 460.190002 | F122: =IF(A122>$A$8,"",OFFSET(InputPriceData!E$15,CalculationsAndCharts!$A122+$A$11,IF($C$5,8,0),1,1)) -> 441.5 | G122: =IF(A122>$A$8,"",OFFSET(InputPriceData!F$15,CalculationsAndCharts!$A122+$A$11,IF($C$5,8,0),1,1)) -> 447.980011 | H122: 448.4780028 | I122: 443.7999998 | J122: 438.0279968 | K122: 57.72003 | L122: TRUE | M122: FALSE | N122: 12 | O122: 5 | P122: 3.333333333 | Q122: 3.333333333 | R122: 5.714285714 | S122: -2.380952381 | T122: 3.333333333 | AX122: 8555400
A123: 91 | B123: =IF(A123>$A$8,"",OFFSET(InputPriceData!B$15,$A123+$A$11,0,1,1)) -> 2020-08-06 | C123: =IF(A123>$A$8,"",OFFSET(InputPriceData!G$15,CalculationsAndCharts!$A123+$A$11,IF($C$5,8,0),1,1)) -> 6107900 | D123: =IF(A123>$A$8,"",OFFSET(InputPriceData!C$15,CalculationsAndCharts!$A123+$A$11,IF($C$5,8,0),1,1)) -> 453.98999 | E123: =IF(A123>$A$8,"",OFFSET(InputPriceData!D$15,CalculationsAndCharts!$A123+$A$11,IF($C$5,8,0),1,1)) -> 454.320007 | F123: =IF(A123>$A$8,"",OFFSET(InputPriceData!E$15,CalculationsAndCharts!$A123+$A$11,IF($C$5,8,0),1,1)) -> 447.149994 | G123: =IF(A123>$A$8,"",OFFSET(InputPriceData!F$15,CalculationsAndCharts!$A123+$A$11,IF($C$5,8,0),1,1)) -> 453.420013 | H123: 443.7999998 | I123: 438.0279968 | J123: 431.4579956 | K123: 65.700012 | L123: TRUE | M123: FALSE | N123: 12 | O123: 5 | P123: 3.333333333 | Q123: 3.333333333 | R123: 5.714285714 | S123: -2.380952381 | T123: 3.333333333 | AX123: 6107900
A124: 92 | B124: =IF(A124>$A$8,"",OFFSET(InputPriceData!B$15,$A124+$A$11,0,1,1)) -> 2020-08-05 | C124: =IF(A124>$A$8,"",OFFSET(InputPriceData!G$15,CalculationsAndCharts!$A124+$A$11,IF($C$5,8,0),1,1)) -> 6262500 | D124: =IF(A124>$A$8,"",OFFSET(InputPriceData!C$15,CalculationsAndCharts!$A124+$A$11,IF($C$5,8,0),1,1)) -> 449.76001 | E124: =IF(A124>$A$8,"",OFFSET(InputPriceData!D$15,CalculationsAndCharts!$A124+$A$11,IF($C$5,8,0),1,1)) -> 454.869995 | F124: =IF(A124>$A$8,"",OFFSET(InputPriceData!E$15,CalculationsAndCharts!$A124+$A$11,IF($C$5,8,0),1,1)) -> 446.649994 | G124: =IF(A124>$A$8,"",OFFSET(InputPriceData!F$15,CalculationsAndCharts!$A124+$A$11,IF($C$5,8,0),1,1)) -> 451.470001 | H124: 438.0279968 | I124: 431.4579956 | J124: 423.3599976 | K124: 80.97998 | L124: TRUE | M124: FALSE | N124: 12 | O124: 5 | P124: 3.333333333 | Q124: 3.333333333 | R124: 5.714285714 | S124: -2.380952381 | T124: 3.333333333 | AW124: 6262500
A125: 93 | B125: =IF(A125>$A$8,"",OFFSET(InputPriceData!B$15,$A125+$A$11,0,1,1)) -> 2020-08-04 | C125: =IF(A125>$A$8,"",OFFSET(InputPriceData!G$15,CalculationsAndCharts!$A125+$A$11,IF($C$5,8,0),1,1)) -> 7758400 | D125: =IF(A125>$A$8,"",OFFSET(InputPriceData!C$15,CalculationsAndCharts!$A125+$A$11,IF($C$5,8,0),1,1)) -> 442 | E125: =IF(A125>$A$8,"",OFFSET(InputPriceData!D$15,CalculationsAndCharts!$A125+$A$11,IF($C$5,8,0),1,1)) -> 449.109985 | F125: =IF(A125>$A$8,"",OFFSET(InputPriceData!E$15,CalculationsAndCharts!$A125+$A$11,IF($C$5,8,0),1,1)) -> 436.23999 | G125: =IF(A125>$A$8,"",OFFSET(InputPriceData!F$15,CalculationsAndCharts!$A125+$A$11,IF($C$5,8,0),1,1)) -> 449.109985 | H125: 431.4579956 | I125: 423.3599976 | J125: 418.6499938 | K125: 47.100038 | L125: TRUE | M125: FALSE | N125: 12 | O125: 5 | P125: 3.333333333 | Q125: 3.333333333 | R125: 5.714285714 | S125: -2.380952381 | T125: 3.333333333 | AW125: 7758400
A126: 94 | B126: =IF(A126>$A$8,"",OFFSET(InputPriceData!B$15,$A126+$A$11,0,1,1)) -> 2020-08-03 | C126: =IF(A126>$A$8,"",OFFSET(InputPriceData!G$15,CalculationsAndCharts!$A126+$A$11,IF($C$5,8,0),1,1)) -> 10318000 | D126: =IF(A126>$A$8,"",OFFSET(InputPriceData!C$15,CalculationsAndCharts!$A126+$A$11,IF($C$5,8,0),1,1)) -> 429.299988 | E126: =IF(A126>$A$8,"",OFFSET(InputPriceData!D$15,CalculationsAndCharts!$A126+$A$11,IF($C$5,8,0),1,1)) -> 443.950012 | F126: =IF(A126>$A$8,"",OFFSET(InputPriceData!E$15,CalculationsAndCharts!$A126+$A$11,IF($C$5,8,0),1,1)) -> 428.609985 | G126: =IF(A126>$A$8,"",OFFSET(InputPriceData!F$15,CalculationsAndCharts!$A126+$A$11,IF($C$5,8,0),1,1)) -> 440.410004 | H126: 423.3599976 | I126: 418.6499938 | J126: 415.2879944 | K126: 33.619994 | L126: TRUE | M126: FALSE | N126: 12 | O126: 5 | P126: 3.333333333 | Q126: 3.333333333 | R126: 5.714285714 | S126: -2.380952381 | T126: 3.333333333 | AW126: 10318000
A127: 95 | B127: =IF(A127>$A$8,"",OFFSET(InputPriceData!B$15,$A127+$A$11,0,1,1)) -> 2020-07-31 | C127: =IF(A127>$A$8,"",OFFSET(InputPriceData!G$15,CalculationsAndCharts!$A127+$A$11,IF($C$5,8,0),1,1)) -> 9657200 | D127: =IF(A127>$A$8,"",OFFSET(InputPriceData!C$15,CalculationsAndCharts!$A127+$A$11,IF($C$5,8,0),1,1)) -> 422.529999 | E127: =IF(A127>$A$8,"",OFFSET(InputPriceData!D$15,CalculationsAndCharts!$A127+$A$11,IF($C$5,8,0),1,1)) -> 430.660004 | F127: =IF(A127>$A$8,"",OFFSET(InputPriceData!E$15,CalculationsAndCharts!$A127+$A$11,IF($C$5,8,0),1,1)) -> 417.320007 | G127: =IF(A127>$A$8,"",OFFSET(InputPriceData!F$15,CalculationsAndCharts!$A127+$A$11,IF($C$5,8,0),1,1)) -> 424.589996 | H127: 418.6499938 | I127: 415.2879944 | J127: 411.4139952 | K127: 38.739992 | L127: TRUE | M127: FALSE | N127: 12 | O127: 5 | P127: 3.333333333 | Q127: 3.333333333 | R127: 5.714285714 | S127: -2.380952381 | T127: 3.333333333 | AW127: 9657200
A128: 96 | B128: =IF(A128>$A$8,"",OFFSET(InputPriceData!B$15,$A128+$A$11,0,1,1)) -> 2020-07-30 | C128: =IF(A128>$A$8,"",OFFSET(InputPriceData!G$15,CalculationsAndCharts!$A128+$A$11,IF($C$5,8,0),1,1)) -> 7722000 | D128: =IF(A128>$A$8,"",OFFSET(InputPriceData!C$15,CalculationsAndCharts!$A128+$A$11,IF($C$5,8,0),1,1)) -> 415 | E128: =IF(A128>$A$8,"",OFFSET(InputPriceData!D$15,CalculationsAndCharts!$A128+$A$11,IF($C$5,8,0),1,1)) -> 424.920013 | F128: =IF(A128>$A$8,"",OFFSET(InputPriceData!E$15,CalculationsAndCharts!$A128+$A$11,IF($C$5,8,0),1,1)) -> 411.809998 | G128: =IF(A128>$A$8,"",OFFSET(InputPriceData!F$15,CalculationsAndCharts!$A128+$A$11,IF($C$5,8,0),1,1)) -> 424.559998 | H128: 415.2879944 | I128: 411.4139952 | J128: 411.1999938 | K128: 2.140014 | L128: TRUE | M128: FALSE | N128: 12 | O128: 5 | P128: 3.333333333 | Q128: 3.333333333 | R128: 5.714285714 | S128: -2.380952381 | T128: 3.333333333 | AW128: 7722000
A129: 97 | B129: =IF(A129>$A$8,"",OFFSET(InputPriceData!B$15,$A129+$A$11,0,1,1)) -> 2020-07-29 | C129: =IF(A129>$A$8,"",OFFSET(InputPriceData!G$15,CalculationsAndCharts!$A129+$A$11,IF($C$5,8,0),1,1)) -> 7112700 | D129: =IF(A129>$A$8,"",OFFSET(InputPriceData!C$15,CalculationsAndCharts!$A129+$A$11,IF($C$5,8,0),1,1)) -> 415.630005 | E129: =IF(A129>$A$8,"",OFFSET(InputPriceData!D$15,CalculationsAndCharts!$A129+$A$11,IF($C$5,8,0),1,1)) -> 420.649994 | F129: =IF(A129>$A$8,"",OFFSET(InputPriceData!E$15,CalculationsAndCharts!$A129+$A$11,IF($C$5,8,0),1,1)) -> 413.880005 | G129: =IF(A129>$A$8,"",OFFSET(InputPriceData!F$15,CalculationsAndCharts!$A129+$A$11,IF($C$5,8,0),1,1)) -> 418.619995 | H129: 411.4139952 | I129: 411.1999938 | J129: 412.1039978 | K129: -9.04004 | L129: FALSE | M129: TRUE | N129: 12 | O129: 5 | P129: 3.333333333 | Q129: 3.333333333 | R129: 5.714285714 | S129: -2.380952381 | T129: 3.333333333 | AW129: 7112700
A130: 98 | B130: =IF(A130>$A$8,"",OFFSET(InputPriceData!B$15,$A130+$A$11,0,1,1)) -> 2020-07-28 | C130: =IF(A130>$A$8,"",OFFSET(InputPriceData!G$15,CalculationsAndCharts!$A130+$A$11,IF($C$5,8,0),1,1)) -> 6790900 | D130: =IF(A130>$A$8,"",OFFSET(InputPriceData!C$15,CalculationsAndCharts!$A130+$A$11,IF($C$5,8,0),1,1)) -> 414.970001 | E130: =IF(A130>$A$8,"",OFFSET(InputPriceData!D$15,CalculationsAndCharts!$A130+$A$11,IF($C$5,8,0),1,1)) -> 415.279999 | F130: =IF(A130>$A$8,"",OFFSET(InputPriceData!E$15,CalculationsAndCharts!$A130+$A$11,IF($C$5,8,0),1,1)) -> 408.369995 | G130: =IF(A130>$A$8,"",OFFSET(InputPriceData!F$15,CalculationsAndCharts!$A130+$A$11,IF($C$5,8,0),1,1)) -> 408.619995 | H130: 411.1999938 | I130: 412.1039978 | J130: 412.8179994 | K130: -7.140016 | L130: FALSE | M130: TRUE | N130: 12 | O130: 5 | P130: 3.333333333 | Q130: 3.333333333 | R130: 5.714285714 | S130: -2.380952381 | T130: 3.333333333 | AX130: 6790900
A131: 99 | B131: =IF(A131>$A$8,"",OFFSET(InputPriceData!B$15,$A131+$A$11,0,1,1)) -> 2020-07-27 | C131: =IF(A131>$A$8,"",OFFSET(InputPriceData!G$15,CalculationsAndCharts!$A131+$A$11,IF($C$5,8,0),1,1)) -> 7303300 | D131: =IF(A131>$A$8,"",OFFSET(InputPriceData!C$15,CalculationsAndCharts!$A131+$A$11,IF($C$5,8,0),1,1)) -> 409.290009 | E131: =IF(A131>$A$8,"",OFFSET(InputPriceData!D$15,CalculationsAndCharts!$A131+$A$11,IF($C$5,8,0),1,1)) -> 417.670013 | F131: =IF(A131>$A$8,"",OFFSET(InputPriceData!E$15,CalculationsAndCharts!$A131+$A$11,IF($C$5,8,0),1,1)) -> 408.709991 | G131: =IF(A131>$A$8,"",OFFSET(InputPriceData!F$15,CalculationsAndCharts!$A131+$A$11,IF($C$5,8,0),1,1)) -> 416.859985 | H131: 412.1039978 | I131: 412.8179994 | J131: 412.8739992 | K131: -0.559998 | L131: FALSE | M131: FALSE | N131: 12 | O131: 5 | P131: 3.333333333 | Q131: 3.333333333 | R131: 5.714285714 | S131: -2.380952381 | T131: 3.333333333 | AW131: 7303300
A132: 100 | B132: =IF(A132>$A$8,"",OFFSET(InputPriceData!B$15,$A132+$A$11,0,1,1)) -> 2020-07-24 | C132: =IF(A132>$A$8,"",OFFSET(InputPriceData!G$15,CalculationsAndCharts!$A132+$A$11,IF($C$5,8,0),1,1)) -> 11832300 | D132: =IF(A132>$A$8,"",OFFSET(InputPriceData!C$15,CalculationsAndCharts!$A132+$A$11,IF($C$5,8,0),1,1)) -> 395 | E132: =IF(A132>$A$8,"",OFFSET(InputPriceData!D$15,CalculationsAndCharts!$A132+$A$11,IF($C$5,8,0),1,1)) -> 414.589996 | F132: =IF(A132>$A$8,"",OFFSET(InputPriceData!E$15,CalculationsAndCharts!$A132+$A$11,IF($C$5,8,0),1,1)) -> 391.079987 | G132: =IF(A132>$A$8,"",OFFSET(InputPriceData!F$15,CalculationsAndCharts!$A132+$A$11,IF($C$5,8,0),1,1)) -> 407.779999 | H132: 412.8179994 | I132: 412.8739992 | J132: 412.9140018 | K132: -0.400026 | L132: FALSE | M132: FALSE | N132: 13 | O132: 5 | P132: 3.80952381 | Q132: 3.80952381 | R132: 6.19047619 | S132: -2.380952381 | T132: 3.80952381 | AW132: 11832300
A133: 101 | B133: =IF(A133>$A$8,"",OFFSET(InputPriceData!B$15,$A133+$A$11,0,1,1)) -> 2020-07-23 | C133: =IF(A133>$A$8,"",OFFSET(InputPriceData!G$15,CalculationsAndCharts!$A133+$A$11,IF($C$5,8,0),1,1)) -> 10291500 | D133: =IF(A133>$A$8,"",OFFSET(InputPriceData!C$15,CalculationsAndCharts!$A133+$A$11,IF($C$5,8,0),1,1)) -> 418 | E133: =IF(A133>$A$8,"",OFFSET(InputPriceData!D$15,CalculationsAndCharts!$A133+$A$11,IF($C$5,8,0),1,1)) -> 421.880005 | F133: =IF(A133>$A$8,"",OFFSET(InputPriceData!E$15,CalculationsAndCharts!$A133+$A$11,IF($C$5,8,0),1,1)) -> 401.25 | G133: =IF(A133>$A$8,"",OFFSET(InputPriceData!F$15,CalculationsAndCharts!$A133+$A$11,IF($C$5,8,0),1,1)) -> 405.190002 | H133: 412.8739992 | I133: 412.9140018 | J133: 411.2220034 | K133: 16.919984 | L133: TRUE | M133: FALSE | N133: 13 | O133: 5 | P133: 3.80952381 | Q133: 3.80952381 | R133: 6.19047619 | S133: -2.380952381 | T133: 3.80952381 | AX133: 10291500
A134: 102 | B134: =IF(A134>$A$8,"",OFFSET(InputPriceData!B$15,$A134+$A$11,0,1,1)) -> 2020-07-22 | C134: =IF(A134>$A$8,"",OFFSET(InputPriceData!G$15,CalculationsAndCharts!$A134+$A$11,IF($C$5,8,0),1,1)) -> 9182300 | D134: =IF(A134>$A$8,"",OFFSET(InputPriceData!C$15,CalculationsAndCharts!$A134+$A$11,IF($C$5,8,0),1,1)) -> 414.700012 | E134: =IF(A134>$A$8,"",OFFSET(InputPriceData!D$15,CalculationsAndCharts!$A134+$A$11,IF($C$5,8,0),1,1)) -> 424.100006 | F134: =IF(A134>$A$8,"",OFFSET(InputPriceData!E$15,CalculationsAndCharts!$A134+$A$11,IF($C$5,8,0),1,1)) -> 411.660004 | G134: =IF(A134>$A$8,"",OFFSET(InputPriceData!F$15,CalculationsAndCharts!$A134+$A$11,IF($C$5,8,0),1,1)) -> 417.549988 | H134: 412.9140018 | I134: 411.2220034 | J134: 411.6099978 | K134: -3.879944 | L134: FALSE | M134: TRUE | N134: 13 | O134: 5 | P134: 3.80952381 | Q134: 3.80952381 | R134: 6.19047619 | S134: -2.380952381 | T134: 3.80952381 | AW134: 9182300
A135: 103 | B135: =IF(A135>$A$8,"",OFFSET(InputPriceData!B$15,$A135+$A$11,0,1,1)) -> 2020-07-21 | C135: =IF(A135>$A$8,"",OFFSET(InputPriceData!G$15,CalculationsAndCharts!$A135+$A$11,IF($C$5,8,0),1,1)) -> 6941700 | D135: =IF(A135>$A$8,"",OFFSET(InputPriceData!C$15,CalculationsAndCharts!$A135+$A$11,IF($C$5,8,0),1,1)) -> 420.519989 | E135: =IF(A135>$A$8,"",OFFSET(InputPriceData!D$15,CalculationsAndCharts!$A135+$A$11,IF($C$5,8,0),1,1)) -> 422.399994 | F135: =IF(A135>$A$8,"",OFFSET(InputPriceData!E$15,CalculationsAndCharts!$A135+$A$11,IF($C$5,8,0),1,1)) -> 411.470001 | G135: =IF(A135>$A$8,"",OFFSET(InputPriceData!F$15,CalculationsAndCharts!$A135+$A$11,IF($C$5,8,0),1,1)) -> 413.140015 | H135: 411.2220034 | I135: 411.6099978 | J135: 407.9419984 | K135: 36.679994 | L135: TRUE | M135: FALSE | N135: 14 | O135: 4 | P135: 4.761904762 | Q135: 4.761904762 | R135: 6.666666667 | S135: -1.904761905 | T135: 4.761904762 | AX135: 6941700
A136: 104 | B136: =IF(A136>$A$8,"",OFFSET(InputPriceData!B$15,$A136+$A$11,0,1,1)) -> 2020-07-20 | C136: =IF(A136>$A$8,"",OFFSET(InputPriceData!G$15,CalculationsAndCharts!$A136+$A$11,IF($C$5,8,0),1,1)) -> 7121300 | D136: =IF(A136>$A$8,"",OFFSET(InputPriceData!C$15,CalculationsAndCharts!$A136+$A$11,IF($C$5,8,0),1,1)) -> 410.970001 | E136: =IF(A136>$A$8,"",OFFSET(InputPriceData!D$15,CalculationsAndCharts!$A136+$A$11,IF($C$5,8,0),1,1)) -> 421.25 | F136: =IF(A136>$A$8,"",OFFSET(InputPriceData!E$15,CalculationsAndCharts!$A136+$A$11,IF($C$5,8,0),1,1)) -> 406.269989 | G136: =IF(A136>$A$8,"",OFFSET(InputPriceData!F$15,CalculationsAndCharts!$A136+$A$11,IF($C$5,8,0),1,1)) -> 420.429993 | H136: 411.6099978 | I136: 407.9419984 | J136: 410.1640014 | K136: -22.22003 | L136: FALSE | M136: TRUE | N136: 14 | O136: 4 | P136: 4.761904762 | Q136: 4.761904762 | R136: 6.666666667 | S136: -1.904761905 | T136: 4.761904762 | AW136: 7121300
A137: 105 | B137: =IF(A137>$A$8,"",OFFSET(InputPriceData!B$15,$A137+$A$11,0,1,1)) -> 2020-07-17 | C137: =IF(A137>$A$8,"",OFFSET(InputPriceData!G$15,CalculationsAndCharts!$A137+$A$11,IF($C$5,8,0),1,1)) -> 6657100 | D137: =IF(A137>$A$8,"",OFFSET(InputPriceData!C$15,CalculationsAndCharts!$A137+$A$11,IF($C$5,8,0),1,1)) -> 409.019989 | E137: =IF(A137>$A$8,"",OFFSET(InputPriceData!D$15,CalculationsAndCharts!$A137+$A$11,IF($C$5,8,0),1,1)) -> 409.940002 | F137: =IF(A137>$A$8,"",OFFSET(InputPriceData!E$15,CalculationsAndCharts!$A137+$A$11,IF($C$5,8,0),1,1)) -> 403.51001 | G137: =IF(A137>$A$8,"",OFFSET(InputPriceData!F$15,CalculationsAndCharts!$A137+$A$11,IF($C$5,8,0),1,1)) -> 408.059998 | H137: 407.9419984 | I137: 410.1640014 | J137: 413.1579954 | K137: -29.93994 | L137: FALSE | M137: TRUE | N137: 15 | O137: 3 | P137: 5.714285714 | Q137: 5.714285714 | R137: 7.142857143 | S137: -1.428571429 | T137: 5.714285714 | AX137: 6657100
A138: 106 | B138: =IF(A138>$A$8,"",OFFSET(InputPriceData!B$15,$A138+$A$11,0,1,1)) -> 2020-07-16 | C138: =IF(A138>$A$8,"",OFFSET(InputPriceData!G$15,CalculationsAndCharts!$A138+$A$11,IF($C$5,8,0),1,1)) -> 8624100 | D138: =IF(A138>$A$8,"",OFFSET(InputPriceData!C$15,CalculationsAndCharts!$A138+$A$11,IF($C$5,8,0),1,1)) -> 400.600006 | E138: =IF(A138>$A$8,"",OFFSET(InputPriceData!D$15,CalculationsAndCharts!$A138+$A$11,IF($C$5,8,0),1,1)) -> 408.269989 | F138: =IF(A138>$A$8,"",OFFSET(InputPriceData!E$15,CalculationsAndCharts!$A138+$A$11,IF($C$5,8,0),1,1)) -> 395.820007 | G138: =IF(A138>$A$8,"",OFFSET(InputPriceData!F$15,CalculationsAndCharts!$A138+$A$11,IF($C$5,8,0),1,1)) -> 405.390015 | H138: 410.1640014 | I138: 413.1579954 | J138: 413.0679992 | K138: 0.899962 | L138: FALSE | M138: FALSE | N138: 15 | O138: 3 | P138: 5.714285714 | Q138: 5.714285714 | R138: 7.142857143 | S138: -1.428571429 | T138: 5.714285714 | AW138: 8624100
A139: 107 | B139: =IF(A139>$A$8,"",OFFSET(InputPriceData!B$15,$A139+$A$11,0,1,1)) -> 2020-07-15 | C139: =IF(A139>$A$8,"",OFFSET(InputPriceData!G$15,CalculationsAndCharts!$A139+$A$11,IF($C$5,8,0),1,1)) -> 10099600 | D139: =IF(A139>$A$8,"",OFFSET(InputPriceData!C$15,CalculationsAndCharts!$A139+$A$11,IF($C$5,8,0),1,1)) -> 416.570007 | E139: =IF(A139>$A$8,"",OFFSET(InputPriceData!D$15,CalculationsAndCharts!$A139+$A$11,IF($C$5,8,0),1,1)) -> 417.320007 | F139: =IF(A139>$A$8,"",OFFSET(InputPriceData!E$15,CalculationsAndCharts!$A139+$A$11,IF($C$5,8,0),1,1)) -> 402.230011 | G139: =IF(A139>$A$8,"",OFFSET(InputPriceData!F$15,CalculationsAndCharts!$A139+$A$11,IF($C$5,8,0),1,1)) -> 409.089996 | H139: 413.1579954 | I139: 413.0679992 | J139: 409.0260008 | K139: 40.419984 | L139: TRUE | M139: FALSE | N139: 16 | O139: 3 | P139: 6.19047619 | Q139: 6.19047619 | R139: 7.619047619 | S139: -1.428571429 | T139: 6.19047619 | AX139: 10099600
A140: 108 | B140: =IF(A140>$A$8,"",OFFSET(InputPriceData!B$15,$A140+$A$11,0,1,1)) -> 2020-07-14 | C140: =IF(A140>$A$8,"",OFFSET(InputPriceData!G$15,CalculationsAndCharts!$A140+$A$11,IF($C$5,8,0),1,1)) -> 13566900 | D140: =IF(A140>$A$8,"",OFFSET(InputPriceData!C$15,CalculationsAndCharts!$A140+$A$11,IF($C$5,8,0),1,1)) -> 403 | E140: =IF(A140>$A$8,"",OFFSET(InputPriceData!D$15,CalculationsAndCharts!$A140+$A$11,IF($C$5,8,0),1,1)) -> 416.109985 | F140: =IF(A140>$A$8,"",OFFSET(InputPriceData!E$15,CalculationsAndCharts!$A140+$A$11,IF($C$5,8,0),1,1)) -> 391.420013 | G140: =IF(A140>$A$8,"",OFFSET(InputPriceData!F$15,CalculationsAndCharts!$A140+$A$11,IF($C$5,8,0),1,1)) -> 415.079987 | H140: 413.0679992 | I140: 409.0260008 | J140: 407.322003 | K140: 17.039978 | L140: TRUE | M140: FALSE | N140: 16 | O140: 3 | P140: 6.19047619 | Q140: 6.19047619 | R140: 7.619047619 | S140: -1.428571429 | T140: 6.19047619 | AW140: 13566900
A141: 109 | B141: =IF(A141>$A$8,"",OFFSET(InputPriceData!B$15,$A141+$A$11,0,1,1)) -> 2020-07-13 | C141: =IF(A141>$A$8,"",OFFSET(InputPriceData!G$15,CalculationsAndCharts!$A141+$A$11,IF($C$5,8,0),1,1)) -> 11426900 | D141: =IF(A141>$A$8,"",OFFSET(InputPriceData!C$15,CalculationsAndCharts!$A141+$A$11,IF($C$5,8,0),1,1)) -> 423.799988 | E141: =IF(A141>$A$8,"",OFFSET(InputPriceData!D$15,CalculationsAndCharts!$A141+$A$11,IF($C$5,8,0),1,1)) -> 431.690002 | F141: =IF(A141>$A$8,"",OFFSET(InputPriceData!E$15,CalculationsAndCharts!$A141+$A$11,IF($C$5,8,0),1,1)) -> 401 | G141: =IF(A141>$A$8,"",OFFSET(InputPriceData!F$15,CalculationsAndCharts!$A141+$A$11,IF($C$5,8,0),1,1)) -> 402.089996 | H141: 409.0260008 | I141: 407.322003 | J141: 400.3859984 | K141: 69.360046 | L141: TRUE | M141: FALSE | N141: 16 | O141: 3 | P141: 6.19047619 | Q141: 6.19047619 | R141: 7.619047619 | S141: -1.428571429 | T141: 6.19047619 | AX141: 11426900
A142: 110 | B142: =IF(A142>$A$8,"",OFFSET(InputPriceData!B$15,$A142+$A$11,0,1,1)) -> 2020-07-10 | C142: =IF(A142>$A$8,"",OFFSET(InputPriceData!G$15,CalculationsAndCharts!$A142+$A$11,IF($C$5,8,0),1,1)) -> 12441900 | D142: =IF(A142>$A$8,"",OFFSET(InputPriceData!C$15,CalculationsAndCharts!$A142+$A$11,IF($C$5,8,0),1,1)) -> 423.549988 | E142: =IF(A142>$A$8,"",OFFSET(InputPriceData!D$15,CalculationsAndCharts!$A142+$A$11,IF($C$5,8,0),1,1)) -> 426.209991 | F142: =IF(A142>$A$8,"",OFFSET(InputPriceData!E$15,CalculationsAndCharts!$A142+$A$11,IF($C$5,8,0),1,1)) -> 415.149994 | G142: =IF(A142>$A$8,"",OFFSET(InputPriceData!F$15,CalculationsAndCharts!$A142+$A$11,IF($C$5,8,0),1,1)) -> 419.170013 | H142: 407.322003 | I142: 400.3859984 | J142: 392.5540038 | K142: 78.319946 | L142: TRUE | M142: FALSE | N142: 16 | O142: 3 | P142: 6.19047619 | Q142: 6.19047619 | R142: 7.619047619 | S142: -1.428571429 | T142: 6.19047619 | AX142: 12441900
A143: 111 | B143: =IF(A143>$A$8,"",OFFSET(InputPriceData!B$15,$A143+$A$11,0,1,1)) -> 2020-07-09 | C143: =IF(A143>$A$8,"",OFFSET(InputPriceData!G$15,CalculationsAndCharts!$A143+$A$11,IF($C$5,8,0),1,1)) -> 12363700 | D143: =IF(A143>$A$8,"",OFFSET(InputPriceData!C$15,CalculationsAndCharts!$A143+$A$11,IF($C$5,8,0),1,1)) -> 415.209991 | E143: =IF(A143>$A$8,"",OFFSET(InputPriceData!D$15,CalculationsAndCharts!$A143+$A$11,IF($C$5,8,0),1,1)) -> 422.799988 | F143: =IF(A143>$A$8,"",OFFSET(InputPriceData!E$15,CalculationsAndCharts!$A143+$A$11,IF($C$5,8,0),1,1)) -> 409.339996 | G143: =IF(A143>$A$8,"",OFFSET(InputPriceData!F$15,CalculationsAndCharts!$A143+$A$11,IF($C$5,8,0),1,1)) -> 420.359985 | H143: 400.3859984 | I143: 392.5540038 | J143: 386.8080016 | K143: 57.460022 | L143: TRUE | M143: FALSE | N143: 16 | O143: 3 | P143: 6.19047619 | Q143: 6.19047619 | R143: 7.619047619 | S143: -1.428571429 | T143: 6.19047619 | AW143: 12363700
A144: 112 | B144: =IF(A144>$A$8,"",OFFSET(InputPriceData!B$15,$A144+$A$11,0,1,1)) -> 2020-07-08 | C144: =IF(A144>$A$8,"",OFFSET(InputPriceData!G$15,CalculationsAndCharts!$A144+$A$11,IF($C$5,8,0),1,1)) -> 9137000 | D144: =IF(A144>$A$8,"",OFFSET(InputPriceData!C$15,CalculationsAndCharts!$A144+$A$11,IF($C$5,8,0),1,1)) -> 399.75 | E144: =IF(A144>$A$8,"",OFFSET(InputPriceData!D$15,CalculationsAndCharts!$A144+$A$11,IF($C$5,8,0),1,1)) -> 409 | F144: =IF(A144>$A$8,"",OFFSET(InputPriceData!E$15,CalculationsAndCharts!$A144+$A$11,IF($C$5,8,0),1,1)) -> 398.619995 | G144: =IF(A144>$A$8,"",OFFSET(InputPriceData!F$15,CalculationsAndCharts!$A144+$A$11,IF($C$5,8,0),1,1)) -> 408.640015 | H144: 392.5540038 | I144: 386.8080016 | J144: 381.4340026 | K144: 53.73999 | L144: TRUE | M144: FALSE | N144: 16 | O144: 3 | P144: 6.19047619 | Q144: 6.19047619 | R144: 7.619047619 | S144: -1.428571429 | T144: 6.19047619 | AW144: 9137000
A145: 113 | B145: =IF(A145>$A$8,"",OFFSET(InputPriceData!B$15,$A145+$A$11,0,1,1)) -> 2020-07-07 | C145: =IF(A145>$A$8,"",OFFSET(InputPriceData!G$15,CalculationsAndCharts!$A145+$A$11,IF($C$5,8,0),1,1)) -> 8945000 | D145: =IF(A145>$A$8,"",OFFSET(InputPriceData!C$15,CalculationsAndCharts!$A145+$A$11,IF($C$5,8,0),1,1)) -> 397.850006 | E145: =IF(A145>$A$8,"",OFFSET(InputPriceData!D$15,CalculationsAndCharts!$A145+$A$11,IF($C$5,8,0),1,1)) -> 402.799988 | F145: =IF(A145>$A$8,"",OFFSET(InputPriceData!E$15,CalculationsAndCharts!$A145+$A$11,IF($C$5,8,0),1,1)) -> 394.029999 | G145: =IF(A145>$A$8,"",OFFSET(InputPriceData!F$15,CalculationsAndCharts!$A145+$A$11,IF($C$5,8,0),1,1)) -> 394.869995 | H145: 386.8080016 | I145: 381.4340026 | J145: 375.9600036 | K145: 54.73999 | L145: TRUE | M145: FALSE | N145: 15 | O145: 3 | P145: 5.714285714 | Q145: 5.714285714 | R145: 7.142857143 | S145: -1.428571429 | T145: 5.714285714 | AX145: 8945000
A146: 114 | B146: =IF(A146>$A$8,"",OFFSET(InputPriceData!B$15,$A146+$A$11,0,1,1)) -> 2020-07-06 | C146: =IF(A146>$A$8,"",OFFSET(InputPriceData!G$15,CalculationsAndCharts!$A146+$A$11,IF($C$5,8,0),1,1)) -> 7897300 | D146: =IF(A146>$A$8,"",OFFSET(InputPriceData!C$15,CalculationsAndCharts!$A146+$A$11,IF($C$5,8,0),1,1)) -> 389.670013 | E146: =IF(A146>$A$8,"",OFFSET(InputPriceData!D$15,CalculationsAndCharts!$A146+$A$11,IF($C$5,8,0),1,1)) -> 396.350006 | F146: =IF(A146>$A$8,"",OFFSET(InputPriceData!E$15,CalculationsAndCharts!$A146+$A$11,IF($C$5,8,0),1,1)) -> 388.5 | G146: =IF(A146>$A$8,"",OFFSET(InputPriceData!F$15,CalculationsAndCharts!$A146+$A$11,IF($C$5,8,0),1,1)) -> 393.570007 | H146: 381.4340026 | I146: 375.9600036 | J146: 374.9820068 | K146: 9.779968 | L146: TRUE | M146: FALSE | N146: 15 | O146: 3 | P146: 5.714285714 | Q146: 5.714285714 | R146: 7.142857143 | S146: -1.428571429 | T146: 5.714285714 | AW146: 7897300
A147: 115 | B147: =IF(A147>$A$8,"",OFFSET(InputPriceData!B$15,$A147+$A$11,0,1,1)) -> 2020-07-02 | C147: =IF(A147>$A$8,"",OFFSET(InputPriceData!G$15,CalculationsAndCharts!$A147+$A$11,IF($C$5,8,0),1,1)) -> 9101400 | D147: =IF(A147>$A$8,"",OFFSET(InputPriceData!C$15,CalculationsAndCharts!$A147+$A$11,IF($C$5,8,0),1,1)) -> 385.559998 | E147: =IF(A147>$A$8,"",OFFSET(InputPriceData!D$15,CalculationsAndCharts!$A147+$A$11,IF($C$5,8,0),1,1)) -> 389.5 | F147: =IF(A147>$A$8,"",OFFSET(InputPriceData!E$15,CalculationsAndCharts!$A147+$A$11,IF($C$5,8,0),1,1)) -> 383.130005 | G147: =IF(A147>$A$8,"",OFFSET(InputPriceData!F$15,CalculationsAndCharts!$A147+$A$11,IF($C$5,8,0),1,1)) -> 384.48999 | H147: 375.9600036 | I147: 374.9820068 | J147: 372.626007 | K147: 23.559998 | L147: TRUE | M147: FALSE | N147: 15 | O147: 3 | P147: 5.714285714 | Q147: 5.714285714 | R147: 7.142857143 | S147: -1.428571429 | T147: 5.714285714 | AX147: 9101400
A148: 116 | B148: =IF(A148>$A$8,"",OFFSET(InputPriceData!B$15,$A148+$A$11,0,1,1)) -> 2020-07-01 | C148: =IF(A148>$A$8,"",OFFSET(InputPriceData!G$15,CalculationsAndCharts!$A148+$A$11,IF($C$5,8,0),1,1)) -> 8166200 | D148: =IF(A148>$A$8,"",OFFSET(InputPriceData!C$15,CalculationsAndCharts!$A148+$A$11,IF($C$5,8,0),1,1)) -> 380.829987 | E148: =IF(A148>$A$8,"",OFFSET(InputPriceData!D$15,CalculationsAndCharts!$A148+$A$11,IF($C$5,8,0),1,1)) -> 383.029999 | F148: =IF(A148>$A$8,"",OFFSET(InputPriceData!E$15,CalculationsAndCharts!$A148+$A$11,IF($C$5,8,0),1,1)) -> 376.519989 | G148: =IF(A148>$A$8,"",OFFSET(InputPriceData!F$15,CalculationsAndCharts!$A148+$A$11,IF($C$5,8,0),1,1)) -> 381.200012 | H148: 374.9820068 | I148: 372.626007 | J148: 372.2440062 | K148: 3.820008 | L148: TRUE | M148: FALSE | N148: 15 | O148: 3 | P148: 5.714285714 | Q148: 5.714285714 | R148: 7.142857143 | S148: -1.428571429 | T148: 5.714285714 | AW148: 8166200
A149: 117 | B149: =IF(A149>$A$8,"",OFFSET(InputPriceData!B$15,$A149+$A$11,0,1,1)) -> 2020-06-30 | C149: =IF(A149>$A$8,"",OFFSET(InputPriceData!G$15,CalculationsAndCharts!$A149+$A$11,IF($C$5,8,0),1,1)) -> 9197300 | D149: =IF(A149>$A$8,"",OFFSET(InputPriceData!C$15,CalculationsAndCharts!$A149+$A$11,IF($C$5,8,0),1,1)) -> 372.559998 | E149: =IF(A149>$A$8,"",OFFSET(InputPriceData!D$15,CalculationsAndCharts!$A149+$A$11,IF($C$5,8,0),1,1)) -> 381.049988 | F149: =IF(A149>$A$8,"",OFFSET(InputPriceData!E$15,CalculationsAndCharts!$A149+$A$11,IF($C$5,8,0),1,1)) -> 370.660004 | G149: =IF(A149>$A$8,"",OFFSET(InputPriceData!F$15,CalculationsAndCharts!$A149+$A$11,IF($C$5,8,0),1,1)) -> 379.910004 | H149: 372.626007 | I149: 372.2440062 | J149: 374.8580076 | K149: -26.140014 | L149: FALSE | M149: TRUE | N149: 15 | O149: 3 | P149: 5.714285714 | Q149: 5.714285714 | R149: 7.142857143 | S149: -1.428571429 | T149: 5.714285714 | AW149: 9197300
A150: 118 | B150: =IF(A150>$A$8,"",OFFSET(InputPriceData!B$15,$A150+$A$11,0,1,1)) -> 2020-06-29 | C150: =IF(A150>$A$8,"",OFFSET(InputPriceData!G$15,CalculationsAndCharts!$A150+$A$11,IF($C$5,8,0),1,1)) -> 8556200 | D150: =IF(A150>$A$8,"",OFFSET(InputPriceData!C$15,CalculationsAndCharts!$A150+$A$11,IF($C$5,8,0),1,1)) -> 366.790009 | E150: =IF(A150>$A$8,"",OFFSET(InputPriceData!D$15,CalculationsAndCharts!$A150+$A$11,IF($C$5,8,0),1,1)) -> 368.179993 | F150: =IF(A150>$A$8,"",OFFSET(InputPriceData!E$15,CalculationsAndCharts!$A150+$A$11,IF($C$5,8,0),1,1)) -> 356 | G150: =IF(A150>$A$8,"",OFFSET(InputPriceData!F$15,CalculationsAndCharts!$A150+$A$11,IF($C$5,8,0),1,1)) -> 368 | H150: 372.2440062 | I150: 374.8580076 | J150: 375.7080076 | K150: -8.5 | L150: FALSE | M150: TRUE | N150: 15 | O150: 3 | P150: 5.714285714 | Q150: 5.714285714 | R150: 7.142857143 | S150: -1.428571429 | T150: 5.714285714 | AW150: 8556200
A151: 119 | B151: =IF(A151>$A$8,"",OFFSET(InputPriceData!B$15,$A151+$A$11,0,1,1)) -> 2020-06-26 | C151: =IF(A151>$A$8,"",OFFSET(InputPriceData!G$15,CalculationsAndCharts!$A151+$A$11,IF($C$5,8,0),1,1)) -> 14802100 | D151: =IF(A151>$A$8,"",OFFSET(InputPriceData!C$15,CalculationsAndCharts!$A151+$A$11,IF($C$5,8,0),1,1)) -> 380 | E151: =IF(A151>$A$8,"",OFFSET(InputPriceData!D$15,CalculationsAndCharts!$A151+$A$11,IF($C$5,8,0),1,1)) -> 380 | F151: =IF(A151>$A$8,"",OFFSET(InputPriceData!E$15,CalculationsAndCharts!$A151+$A$11,IF($C$5,8,0),1,1)) -> 365 | G151: =IF(A151>$A$8,"",OFFSET(InputPriceData!F$15,CalculationsAndCharts!$A151+$A$11,IF($C$5,8,0),1,1)) -> 366.200012 | H151: 374.8580076 | I151: 375.7080076 | J151: 373.5320066 | K151: 21.76001 | L151: TRUE | M151: FALSE | N151: 16 | O151: 2 | P151: 6.666666667 | Q151: 6.666666667 | R151: 7.619047619 | S151: -0.9523809524 | T151: 6.666666667 | AX151: 14802100
A152: 120 | B152: =IF(A152>$A$8,"",OFFSET(InputPriceData!B$15,$A152+$A$11,0,1,1)) -> 2020-06-25 | C152: =IF(A152>$A$8,"",OFFSET(InputPriceData!G$15,CalculationsAndCharts!$A152+$A$11,IF($C$5,8,0),1,1)) -> 9401800 | D152: =IF(A152>$A$8,"",OFFSET(InputPriceData!C$15,CalculationsAndCharts!$A152+$A$11,IF($C$5,8,0),1,1)) -> 374.230011 | E152: =IF(A152>$A$8,"",OFFSET(InputPriceData!D$15,CalculationsAndCharts!$A152+$A$11,IF($C$5,8,0),1,1)) -> 380.200012 | F152: =IF(A152>$A$8,"",OFFSET(InputPriceData!E$15,CalculationsAndCharts!$A152+$A$11,IF($C$5,8,0),1,1)) -> 367.290009 | G152: =IF(A152>$A$8,"",OFFSET(InputPriceData!F$15,CalculationsAndCharts!$A152+$A$11,IF($C$5,8,0),1,1)) -> 379.600006 | H152: 375.7080076 | I152: 373.5320066 | J152: 373.5360044 | K152: -0.039978 | L152: FALSE | M152: FALSE | N152: 15 | O152: 3 | P152: 5.714285714 | Q152: 5.714285714 | R152: 7.142857143 | S152: -1.428571429 | T152: 5.714285714 | AW152: 9401800
A153: 121 | B153: =IF(A153>$A$8,"",OFFSET(InputPriceData!B$15,$A153+$A$11,0,1,1)) -> 2020-06-24 | C153: =IF(A153>$A$8,"",OFFSET(InputPriceData!G$15,CalculationsAndCharts!$A153+$A$11,IF($C$5,8,0),1,1)) -> 11234300 | D153: =IF(A153>$A$8,"",OFFSET(InputPriceData!C$15,CalculationsAndCharts!$A153+$A$11,IF($C$5,8,0),1,1)) -> 379.049988 | E153: =IF(A153>$A$8,"",OFFSET(InputPriceData!D$15,CalculationsAndCharts!$A153+$A$11,IF($C$5,8,0),1,1)) -> 382.26001 | F153: =IF(A153>$A$8,"",OFFSET(InputPriceData!E$15,CalculationsAndCharts!$A153+$A$11,IF($C$5,8,0),1,1)) -> 365.779999 | G153: =IF(A153>$A$8,"",OFFSET(InputPriceData!F$15,CalculationsAndCharts!$A153+$A$11,IF($C$5,8,0),1,1)) -> 369.420013 | H153: 373.5320066 | I153: 373.5360044 | J153: 370.4840024 | K153: 30.52002 | L153: TRUE | M153: FALSE | N153: 15 | O153: 4 | P153: 5.238095238 | Q153: 5.238095238 | R153: 7.142857143 | S153: -1.904761905 | T153: 5.238095238 | AX153: 11234300
A154: 122 | B154: =IF(A154>$A$8,"",OFFSET(InputPriceData!B$15,$A154+$A$11,0,1,1)) -> 2020-06-23 | C154: =IF(A154>$A$8,"",OFFSET(InputPriceData!G$15,CalculationsAndCharts!$A154+$A$11,IF($C$5,8,0),1,1)) -> 9377700 | D154: =IF(A154>$A$8,"",OFFSET(InputPriceData!C$15,CalculationsAndCharts!$A154+$A$11,IF($C$5,8,0),1,1)) -> 382.040009 | E154: =IF(A154>$A$8,"",OFFSET(InputPriceData!D$15,CalculationsAndCharts!$A154+$A$11,IF($C$5,8,0),1,1)) -> 385.700012 | F154: =IF(A154>$A$8,"",OFFSET(InputPriceData!E$15,CalculationsAndCharts!$A154+$A$11,IF($C$5,8,0),1,1)) -> 376.299988 | G154: =IF(A154>$A$8,"",OFFSET(InputPriceData!F$15,CalculationsAndCharts!$A154+$A$11,IF($C$5,8,0),1,1)) -> 378 | H154: 373.5360044 | I154: 370.4840024 | J154: 367.6600034 | K154: 28.23999 | L154: TRUE | M154: FALSE | N154: 14 | O154: 5 | P154: 4.285714286 | Q154: 4.285714286 | R154: 6.666666667 | S154: -2.380952381 | T154: 4.285714286 | AX154: 9377700
A155: 123 | B155: =IF(A155>$A$8,"",OFFSET(InputPriceData!B$15,$A155+$A$11,0,1,1)) -> 2020-06-22 | C155: =IF(A155>$A$8,"",OFFSET(InputPriceData!G$15,CalculationsAndCharts!$A155+$A$11,IF($C$5,8,0),1,1)) -> 9961700 | D155: =IF(A155>$A$8,"",OFFSET(InputPriceData!C$15,CalculationsAndCharts!$A155+$A$11,IF($C$5,8,0),1,1)) -> 372 | E155: =IF(A155>$A$8,"",OFFSET(InputPriceData!D$15,CalculationsAndCharts!$A155+$A$11,IF($C$5,8,0),1,1)) -> 381.25 | F155: =IF(A155>$A$8,"",OFFSET(InputPriceData!E$15,CalculationsAndCharts!$A155+$A$11,IF($C$5,8,0),1,1)) -> 370.929993 | G155: =IF(A155>$A$8,"",OFFSET(InputPriceData!F$15,CalculationsAndCharts!$A155+$A$11,IF($C$5,8,0),1,1)) -> 381.070007 | H155: 370.4840024 | I155: 367.6600034 | J155: 365.0299986 | K155: 26.300048 | L155: TRUE | M155: FALSE | N155: 14 | O155: 5 | P155: 4.285714286 | Q155: 4.285714286 | R155: 6.666666667 | S155: -2.380952381 | T155: 4.285714286 | AW155: 9961700
A156: 124 | B156: =IF(A156>$A$8,"",OFFSET(InputPriceData!B$15,$A156+$A$11,0,1,1)) -> 2020-06-19 | C156: =IF(A156>$A$8,"",OFFSET(InputPriceData!G$15,CalculationsAndCharts!$A156+$A$11,IF($C$5,8,0),1,1)) -> 13104000 | D156: =IF(A156>$A$8,"",OFFSET(InputPriceData!C$15,CalculationsAndCharts!$A156+$A$11,IF($C$5,8,0),1,1)) -> 369.700012 | E156: =IF(A156>$A$8,"",OFFSET(InputPriceData!D$15,CalculationsAndCharts!$A156+$A$11,IF($C$5,8,0),1,1)) -> 377.799988 | F156: =IF(A156>$A$8,"",OFFSET(InputPriceData!E$15,CalculationsAndCharts!$A156+$A$11,IF($C$5,8,0),1,1)) -> 369.089996 | G156: =IF(A156>$A$8,"",OFFSET(InputPriceData!F$15,CalculationsAndCharts!$A156+$A$11,IF($C$5,8,0),1,1)) -> 370.450012 | H156: 367.6600034 | I156: 365.0299986 | J156: 361.6559996 | K156: 33.73999 | L156: TRUE | M156: FALSE | N156: 14 | O156: 5 | P156: 4.285714286 | Q156: 4.285714286 | R156: 6.666666667 | S156: -2.380952381 | T156: 4.285714286 | AW156: 13104000
A157: 125 | B157: =IF(A157>$A$8,"",OFFSET(InputPriceData!B$15,$A157+$A$11,0,1,1)) -> 2020-06-18 | C157: =IF(A157>$A$8,"",OFFSET(InputPriceData!G$15,CalculationsAndCharts!$A157+$A$11,IF($C$5,8,0),1,1)) -> 6360200 | D157: =IF(A157>$A$8,"",OFFSET(InputPriceData!C$15,CalculationsAndCharts!$A157+$A$11,IF($C$5,8,0),1,1)) -> 369.079987 | E157: =IF(A157>$A$8,"",OFFSET(InputPriceData!D$15,CalculationsAndCharts!$A157+$A$11,IF($C$5,8,0),1,1)) -> 371.299988 | F157: =IF(A157>$A$8,"",OFFSET(InputPriceData!E$15,CalculationsAndCharts!$A157+$A$11,IF($C$5,8,0),1,1)) -> 364.579987 | G157: =IF(A157>$A$8,"",OFFSET(InputPriceData!F$15,CalculationsAndCharts!$A157+$A$11,IF($C$5,8,0),1,1)) -> 368.720001 | H157: 365.0299986 | I157: 361.6559996 | J157: 362.7020018 | K157: -10.460022 | L157: FALSE | M157: TRUE | N157: 14 | O157: 5 | P157: 4.285714286 | Q157: 4.285714286 | R157: 6.666666667 | S157: -2.380952381 | T157: 4.285714286 | AX157: 6360200
A158: 126 | B158: =IF(A158>$A$8,"",OFFSET(InputPriceData!B$15,$A158+$A$11,0,1,1)) -> 2020-06-17 | C158: =IF(A158>$A$8,"",OFFSET(InputPriceData!G$15,CalculationsAndCharts!$A158+$A$11,IF($C$5,8,0),1,1)) -> 10188300 | D158: =IF(A158>$A$8,"",OFFSET(InputPriceData!C$15,CalculationsAndCharts!$A158+$A$11,IF($C$5,8,0),1,1)) -> 364.549988 | E158: =IF(A158>$A$8,"",OFFSET(InputPriceData!D$15,CalculationsAndCharts!$A158+$A$11,IF($C$5,8,0),1,1)) -> 371.959991 | F158: =IF(A158>$A$8,"",OFFSET(InputPriceData!E$15,CalculationsAndCharts!$A158+$A$11,IF($C$5,8,0),1,1)) -> 362.809998 | G158: =IF(A158>$A$8,"",OFFSET(InputPriceData!F$15,CalculationsAndCharts!$A158+$A$11,IF($C$5,8,0),1,1)) -> 369.440002 | H158: 361.6559996 | I158: 362.7020018 | J158: 362.522003 | K158: 1.799988 | L158: TRUE | M158: FALSE | N158: 15 | O158: 4 | P158: 5.238095238 | Q158: 5.238095238 | R158: 7.142857143 | S158: -1.904761905 | T158: 5.238095238 | AW158: 10188300
A159: 127 | B159: =IF(A159>$A$8,"",OFFSET(InputPriceData!B$15,$A159+$A$11,0,1,1)) -> 2020-06-16 | C159: =IF(A159>$A$8,"",OFFSET(InputPriceData!G$15,CalculationsAndCharts!$A159+$A$11,IF($C$5,8,0),1,1)) -> 13392900 | D159: =IF(A159>$A$8,"",OFFSET(InputPriceData!C$15,CalculationsAndCharts!$A159+$A$11,IF($C$5,8,0),1,1)) -> 369 | E159: =IF(A159>$A$8,"",OFFSET(InputPriceData!D$15,CalculationsAndCharts!$A159+$A$11,IF($C$5,8,0),1,1)) -> 370.670013 | F159: =IF(A159>$A$8,"",OFFSET(InputPriceData!E$15,CalculationsAndCharts!$A159+$A$11,IF($C$5,8,0),1,1)) -> 353.549988 | G159: =IF(A159>$A$8,"",OFFSET(InputPriceData!F$15,CalculationsAndCharts!$A159+$A$11,IF($C$5,8,0),1,1)) -> 362.73999 | H159: 362.7020018 | I159: 362.522003 | J159: 359.572003 | K159: 29.5 | L159: TRUE | M159: FALSE | N159: 15 | O159: 4 | P159: 5.238095238 | Q159: 5.238095238 | R159: 7.142857143 | S159: -1.904761905 | T159: 5.238095238 | AX159: 13392900
A160: 128 | B160: =IF(A160>$A$8,"",OFFSET(InputPriceData!B$15,$A160+$A$11,0,1,1)) -> 2020-06-15 | C160: =IF(A160>$A$8,"",OFFSET(InputPriceData!G$15,CalculationsAndCharts!$A160+$A$11,IF($C$5,8,0),1,1)) -> 10000100 | D160: =IF(A160>$A$8,"",OFFSET(InputPriceData!C$15,CalculationsAndCharts!$A160+$A$11,IF($C$5,8,0),1,1)) -> 352.609985 | E160: =IF(A160>$A$8,"",OFFSET(InputPriceData!D$15,CalculationsAndCharts!$A160+$A$11,IF($C$5,8,0),1,1)) -> 367.290009 | F160: =IF(A160>$A$8,"",OFFSET(InputPriceData!E$15,CalculationsAndCharts!$A160+$A$11,IF($C$5,8,0),1,1)) -> 349.75 | G160: =IF(A160>$A$8,"",OFFSET(InputPriceData!F$15,CalculationsAndCharts!$A160+$A$11,IF($C$5,8,0),1,1)) -> 366.950012 | H160: 362.522003 | I160: 359.572003 | J160: 359.472003 | K160: 1 | L160: TRUE | M160: FALSE | N160: 15 | O160: 4 | P160: 5.238095238 | Q160: 5.238095238 | R160: 7.142857143 | S160: -1.904761905 | T160: 5.238095238 | AW160: 10000100
A161: 129 | B161: =IF(A161>$A$8,"",OFFSET(InputPriceData!B$15,$A161+$A$11,0,1,1)) -> 2020-06-12 | C161: =IF(A161>$A$8,"",OFFSET(InputPriceData!G$15,CalculationsAndCharts!$A161+$A$11,IF($C$5,8,0),1,1)) -> 14252900 | D161: =IF(A161>$A$8,"",OFFSET(InputPriceData!C$15,CalculationsAndCharts!$A161+$A$11,IF($C$5,8,0),1,1)) -> 366.5 | E161: =IF(A161>$A$8,"",OFFSET(InputPriceData!D$15,CalculationsAndCharts!$A161+$A$11,IF($C$5,8,0),1,1)) -> 367.48999 | F161: =IF(A161>$A$8,"",OFFSET(InputPriceData!E$15,CalculationsAndCharts!$A161+$A$11,IF($C$5,8,0),1,1)) -> 348.130005 | G161: =IF(A161>$A$8,"",OFFSET(InputPriceData!F$15,CalculationsAndCharts!$A161+$A$11,IF($C$5,8,0),1,1)) -> 357.299988 | H161: 359.572003 | I161: 359.472003 | J161: 359.2340026 | K161: =(I161-J161)/$E$21 -> 2.380004 | L161: TRUE | M161: FALSE | N161: 15 | O161: 4 | P161: 5.238095238 | Q161: 5.238095238 | R161: 7.142857143 | S161: -1.904761905 | T161: =IF($R$16=1,Q161,P161) -> 5.238095238 | AW161: =IF(G161>=D161,C161,NA()) ->  | AX161: =IF(G161<D161,C161,NA()) -> 14252900
A162: 130 | B162: =IF(A162>$A$8,"",OFFSET(InputPriceData!B$15,$A162+$A$11,0,1,1)) -> 2020-06-11 | C162: =IF(A162>$A$8,"",OFFSET(InputPriceData!G$15,CalculationsAndCharts!$A162+$A$11,IF($C$5,8,0),1,1)) -> 14591300 | D162: =IF(A162>$A$8,"",OFFSET(InputPriceData!C$15,CalculationsAndCharts!$A162+$A$11,IF($C$5,8,0),1,1)) -> 366 | E162: =IF(A162>$A$8,"",OFFSET(InputPriceData!D$15,CalculationsAndCharts!$A162+$A$11,IF($C$5,8,0),1,1)) -> 370.450012 | F162: =IF(A162>$A$8,"",OFFSET(InputPriceData!E$15,CalculationsAndCharts!$A162+$A$11,IF($C$5,8,0),1,1)) -> 351.440002 | G162: =IF(A162>$A$8,"",OFFSET(InputPriceData!F$15,CalculationsAndCharts!$A162+$A$11,IF($C$5,8,0),1,1)) -> 351.850006 | H162: =AVERAGE(OFFSET(G162,0,0,$A$18,1)) -> 359.472003 | I162: =OFFSET(H162,$A$16+1,0,1,1) -> 359.2340026 | J162: =OFFSET(H162,$A$16+2,0,1,1) -> 354.4559998 | K162: 47.780028 | L162: =K162>$A$19 -> TRUE | M162: =K162<-$A$19 -> FALSE | N162: =COUNTIF(OFFSET(L162,0,0,$A$17,1),TRUE) -> 15 | O162: =COUNTIF(OFFSET(M162,0,0,$A$17,1),TRUE) -> 4 | P162: =(100*(N162-O162)/$E$17) -> 5.238095238 | Q162: =ABS(P162) -> 5.238095238 | R162: =(100*(N162)/$E$17) -> 7.142857143 | S162: =(100*(-O162)/$E$17) -> -1.904761905 | T162: 5.238095238 | U162: =IF($R$16=3,R162,NA()) ->  | V162: =IF($R$16=3,S162,NA()) ->  | AX162: 14591300
A163: 131 | B163: =IF(A163>$A$8,"",OFFSET(InputPriceData!B$15,$A163+$A$11,0,1,1)) -> 2020-06-10 | C163: =IF(A163>$A$8,"",OFFSET(InputPriceData!G$15,CalculationsAndCharts!$A163+$A$11,IF($C$5,8,0),1,1)) -> 15804500 | D163: =IF(A163>$A$8,"",OFFSET(InputPriceData!C$15,CalculationsAndCharts!$A163+$A$11,IF($C$5,8,0),1,1)) -> 366.709991 | E163: =IF(A163>$A$8,"",OFFSET(InputPriceData!D$15,CalculationsAndCharts!$A163+$A$11,IF($C$5,8,0),1,1)) -> 380 | F163: =IF(A163>$A$8,"",OFFSET(InputPriceData!E$15,CalculationsAndCharts!$A163+$A$11,IF($C$5,8,0),1,1)) -> 366.140015 | G163: =IF(A163>$A$8,"",OFFSET(InputPriceData!F$15,CalculationsAndCharts!$A163+$A$11,IF($C$5,8,0),1,1)) -> 374.670013 | H163: 359.2340026 | I163: 354.4559998 | J163: 352.6900026 | K163: 17.659972 | L163: TRUE | M163: FALSE | N163: 15 | O163: 4 | P163: 5.238095238 | Q163: 5.238095238 | R163: 7.142857143 | S163: -1.904761905 | T163: 5.238095238 | AW163: 15804500
A164: 132 | B164: =IF(A164>$A$8,"",OFFSET(InputPriceData!B$15,$A164+$A$11,0,1,1)) -> 2020-06-09 | C164: =IF(A164>$A$8,"",OFFSET(InputPriceData!G$15,CalculationsAndCharts!$A164+$A$11,IF($C$5,8,0),1,1)) -> 11712200 | D164: =IF(A164>$A$8,"",OFFSET(InputPriceData!C$15,CalculationsAndCharts!$A164+$A$11,IF($C$5,8,0),1,1)) -> 352 | E164: =IF(A164>$A$8,"",OFFSET(InputPriceData!D$15,CalculationsAndCharts!$A164+$A$11,IF($C$5,8,0),1,1)) -> 364.390015 | F164: =IF(A164>$A$8,"",OFFSET(InputPriceData!E$15,CalculationsAndCharts!$A164+$A$11,IF($C$5,8,0),1,1)) -> 350.049988 | G164: =IF(A164>$A$8,"",OFFSET(InputPriceData!F$15,CalculationsAndCharts!$A164+$A$11,IF($C$5,8,0),1,1)) -> 361.839996 | H164: 354.4559998 | I164: 352.6900026 | J164: 352.7000002 | K164: -0.099976 | L164: FALSE | M164: FALSE | N164: 15 | O164: 4 | P164: 5.238095238 | Q164: 5.238095238 | R164: 7.142857143 | S164: -1.904761905 | T164: 5.238095238 | AW164: 11712200
A165: 133 | B165: =IF(A165>$A$8,"",OFFSET(InputPriceData!B$15,$A165+$A$11,0,1,1)) -> 2020-06-08 | C165: =IF(A165>$A$8,"",OFFSET(InputPriceData!G$15,CalculationsAndCharts!$A165+$A$11,IF($C$5,8,0),1,1)) -> 9693400 | D165: =IF(A165>$A$8,"",OFFSET(InputPriceData!C$15,CalculationsAndCharts!$A165+$A$11,IF($C$5,8,0),1,1)) -> 355.089996 | E165: =IF(A165>$A$8,"",OFFSET(InputPriceData!D$15,CalculationsAndCharts!$A165+$A$11,IF($C$5,8,0),1,1)) -> 355.589996 | F165: =IF(A165>$A$8,"",OFFSET(InputPriceData!E$15,CalculationsAndCharts!$A165+$A$11,IF($C$5,8,0),1,1)) -> 347.429993 | G165: =IF(A165>$A$8,"",OFFSET(InputPriceData!F$15,CalculationsAndCharts!$A165+$A$11,IF($C$5,8,0),1,1)) -> 352.200012 | H165: 352.6900026 | I165: 352.7000002 | J165: 352.3440004 | K165: 3.559998 | L165: TRUE | M165: FALSE | N165: 16 | O165: 4 | P165: 5.714285714 | Q165: 5.714285714 | R165: 7.619047619 | S165: -1.904761905 | T165: 5.714285714 | AX165: 9693400
A166: 134 | B166: =IF(A166>$A$8,"",OFFSET(InputPriceData!B$15,$A166+$A$11,0,1,1)) -> 2020-06-05 | C166: =IF(A166>$A$8,"",OFFSET(InputPriceData!G$15,CalculationsAndCharts!$A166+$A$11,IF($C$5,8,0),1,1)) -> 12043700 | D166: =IF(A166>$A$8,"",OFFSET(InputPriceData!C$15,CalculationsAndCharts!$A166+$A$11,IF($C$5,8,0),1,1)) -> 351.779999 | E166: =IF(A166>$A$8,"",OFFSET(InputPriceData!D$15,CalculationsAndCharts!$A166+$A$11,IF($C$5,8,0),1,1)) -> 359.880005 | F166: =IF(A166>$A$8,"",OFFSET(InputPriceData!E$15,CalculationsAndCharts!$A166+$A$11,IF($C$5,8,0),1,1)) -> 348.320007 | G166: =IF(A166>$A$8,"",OFFSET(InputPriceData!F$15,CalculationsAndCharts!$A166+$A$11,IF($C$5,8,0),1,1)) -> 356.799988 | H166: 352.7000002 | I166: 352.3440004 | J166: 350.1080018 | K166: 22.359986 | L166: TRUE | M166: FALSE | N166: 16 | O166: 4 | P166: 5.714285714 | Q166: 5.714285714 | R166: 7.619047619 | S166: -1.904761905 | T166: 5.714285714 | AW166: 12043700
A167: 135 | B167: =IF(A167>$A$8,"",OFFSET(InputPriceData!B$15,$A167+$A$11,0,1,1)) -> 2020-06-04 | C167: =IF(A167>$A$8,"",OFFSET(InputPriceData!G$15,CalculationsAndCharts!$A167+$A$11,IF($C$5,8,0),1,1)) -> 10607000 | D167: =IF(A167>$A$8,"",OFFSET(InputPriceData!C$15,CalculationsAndCharts!$A167+$A$11,IF($C$5,8,0),1,1)) -> 349.119995 | E167: =IF(A167>$A$8,"",OFFSET(InputPriceData!D$15,CalculationsAndCharts!$A167+$A$11,IF($C$5,8,0),1,1)) -> 357.730011 | F167: =IF(A167>$A$8,"",OFFSET(InputPriceData!E$15,CalculationsAndCharts!$A167+$A$11,IF($C$5,8,0),1,1)) -> 347.100006 | G167: =IF(A167>$A$8,"",OFFSET(InputPriceData!F$15,CalculationsAndCharts!$A167+$A$11,IF($C$5,8,0),1,1)) -> 350.660004 | H167: 352.3440004 | I167: 350.1080018 | J167: 348.154004 | K167: 19.539978 | L167: TRUE | M167: FALSE | N167: 15 | O167: 5 | P167: 4.761904762 | Q167: 4.761904762 | R167: 7.142857143 | S167: -2.380952381 | T167: 4.761904762 | AW167: 10607000
A168: 136 | B168: =IF(A168>$A$8,"",OFFSET(InputPriceData!B$15,$A168+$A$11,0,1,1)) -> 2020-06-03 | C168: =IF(A168>$A$8,"",OFFSET(InputPriceData!G$15,CalculationsAndCharts!$A168+$A$11,IF($C$5,8,0),1,1)) -> 9136000 | D168: =IF(A168>$A$8,"",OFFSET(InputPriceData!C$15,CalculationsAndCharts!$A168+$A$11,IF($C$5,8,0),1,1)) -> 352.890015 | E168: =IF(A168>$A$8,"",OFFSET(InputPriceData!D$15,CalculationsAndCharts!$A168+$A$11,IF($C$5,8,0),1,1)) -> 354.649994 | F168: =IF(A168>$A$8,"",OFFSET(InputPriceData!E$15,CalculationsAndCharts!$A168+$A$11,IF($C$5,8,0),1,1)) -> 348 | G168: =IF(A168>$A$8,"",OFFSET(InputPriceData!F$15,CalculationsAndCharts!$A168+$A$11,IF($C$5,8,0),1,1)) -> 350.779999 | H168: 350.1080018 | I168: 348.154004 | J168: 347.2940002 | K168: 8.600038 | L168: TRUE | M168: FALSE | N168: 15 | O168: 5 | P168: 4.761904762 | Q168: 4.761904762 | R168: 7.142857143 | S168: -2.380952381 | T168: 4.761904762 | AX168: 9136000
A169: 137 | B169: =IF(A169>$A$8,"",OFFSET(InputPriceData!B$15,$A169+$A$11,0,1,1)) -> 2020-06-02 | C169: =IF(A169>$A$8,"",OFFSET(InputPriceData!G$15,CalculationsAndCharts!$A169+$A$11,IF($C$5,8,0),1,1)) -> 9783000 | D169: =IF(A169>$A$8,"",OFFSET(InputPriceData!C$15,CalculationsAndCharts!$A169+$A$11,IF($C$5,8,0),1,1)) -> 351.850006 | E169: =IF(A169>$A$8,"",OFFSET(InputPriceData!D$15,CalculationsAndCharts!$A169+$A$11,IF($C$5,8,0),1,1)) -> 353.48999 | F169: =IF(A169>$A$8,"",OFFSET(InputPriceData!E$15,CalculationsAndCharts!$A169+$A$11,IF($C$5,8,0),1,1)) -> 346.320007 | G169: =IF(A169>$A$8,"",OFFSET(InputPriceData!F$15,CalculationsAndCharts!$A169+$A$11,IF($C$5,8,0),1,1)) -> 353.01001 | H169: 348.154004 | I169: 347.2940002 | J169: 349.0539978 | K169: -17.599976 | L169: FALSE | M169: TRUE | N169: 14 | O169: 6 | P169: 3.80952381 | Q169: 3.80952381 | R169: 6.666666667 | S169: -2.857142857 | T169: 3.80952381 | AW169: 9783000
A170: 138 | B170: =IF(A170>$A$8,"",OFFSET(InputPriceData!B$15,$A170+$A$11,0,1,1)) -> 2020-06-01 | C170: =IF(A170>$A$8,"",OFFSET(InputPriceData!G$15,CalculationsAndCharts!$A170+$A$11,IF($C$5,8,0),1,1)) -> 9746900 | D170: =IF(A170>$A$8,"",OFFSET(InputPriceData!C$15,CalculationsAndCharts!$A170+$A$11,IF($C$5,8,0),1,1)) -> 353.329987 | E170: =IF(A170>$A$8,"",OFFSET(InputPriceData!D$15,CalculationsAndCharts!$A170+$A$11,IF($C$5,8,0),1,1)) -> 353.630005 | F170: =IF(A170>$A$8,"",OFFSET(InputPriceData!E$15,CalculationsAndCharts!$A170+$A$11,IF($C$5,8,0),1,1)) -> 347.579987 | G170: =IF(A170>$A$8,"",OFFSET(InputPriceData!F$15,CalculationsAndCharts!$A170+$A$11,IF($C$5,8,0),1,1)) -> 352.25 | H170: 347.2940002 | I170: 349.0539978 | J170: 348.252002 | K170: 8.019958 | L170: TRUE | M170: FALSE | N170: 14 | O170: 6 | P170: 3.80952381 | Q170: 3.80952381 | R170: 6.666666667 | S170: -2.857142857 | T170: 3.80952381 | AX170: 9746900
A171: 139 | B171: =IF(A171>$A$8,"",OFFSET(InputPriceData!B$15,$A171+$A$11,0,1,1)) -> 2020-05-29 | C171: =IF(A171>$A$8,"",OFFSET(InputPriceData!G$15,CalculationsAndCharts!$A171+$A$11,IF($C$5,8,0),1,1)) -> 18648000 | D171: =IF(A171>$A$8,"",OFFSET(InputPriceData!C$15,CalculationsAndCharts!$A171+$A$11,IF($C$5,8,0),1,1)) -> 342.179993 | E171: =IF(A171>$A$8,"",OFFSET(InputPriceData!D$15,CalculationsAndCharts!$A171+$A$11,IF($C$5,8,0),1,1)) -> 355.019989 | F171: =IF(A171>$A$8,"",OFFSET(InputPriceData!E$15,CalculationsAndCharts!$A171+$A$11,IF($C$5,8,0),1,1)) -> 339.399994 | G171: =IF(A171>$A$8,"",OFFSET(InputPriceData!F$15,CalculationsAndCharts!$A171+$A$11,IF($C$5,8,0),1,1)) -> 355.019989 | H171: 349.0539978 | I171: 348.252002 | J171: 352.1159974 | K171: -38.639954 | L171: FALSE | M171: TRUE | N171: 14 | O171: 6 | P171: 3.80952381 | Q171: 3.80952381 | R171: 6.666666667 | S171: -2.857142857 | T171: 3.80952381 | AW171: 18648000
A172: 140 | B172: =IF(A172>$A$8,"",OFFSET(InputPriceData!B$15,$A172+$A$11,0,1,1)) -> 2020-05-28 | C172: =IF(A172>$A$8,"",OFFSET(InputPriceData!G$15,CalculationsAndCharts!$A172+$A$11,IF($C$5,8,0),1,1)) -> 18372400 | D172: =IF(A172>$A$8,"",OFFSET(InputPriceData!C$15,CalculationsAndCharts!$A172+$A$11,IF($C$5,8,0),1,1)) -> 336.48999 | E172: =IF(A172>$A$8,"",OFFSET(InputPriceData!D$15,CalculationsAndCharts!$A172+$A$11,IF($C$5,8,0),1,1)) -> 350.420013 | F172: =IF(A172>$A$8,"",OFFSET(InputPriceData!E$15,CalculationsAndCharts!$A172+$A$11,IF($C$5,8,0),1,1)) -> 335.170013 | G172: =IF(A172>$A$8,"",OFFSET(InputPriceData!F$15,CalculationsAndCharts!$A172+$A$11,IF($C$5,8,0),1,1)) -> 339.480011 | H172: 348.252002 | I172: 352.1159974 | J172: 354.3579956 | K172: -22.419982 | L172: FALSE | M172: TRUE | N172: 15 | O172: 5 | P172: 4.761904762 | Q172: 4.761904762 | R172: 7.142857143 | S172: -2.380952381 | T172: 4.761904762 | AW172: 18372400
A173: 141 | B173: =IF(A173>$A$8,"",OFFSET(InputPriceData!B$15,$A173+$A$11,0,1,1)) -> 2020-05-27 | C173: =IF(A173>$A$8,"",OFFSET(InputPriceData!G$15,CalculationsAndCharts!$A173+$A$11,IF($C$5,8,0),1,1)) -> 29397300 | D173: =IF(A173>$A$8,"",OFFSET(InputPriceData!C$15,CalculationsAndCharts!$A173+$A$11,IF($C$5,8,0),1,1)) -> 345 | E173: =IF(A173>$A$8,"",OFFSET(InputPriceData!D$15,CalculationsAndCharts!$A173+$A$11,IF($C$5,8,0),1,1)) -> 345.309998 | F173: =IF(A173>$A$8,"",OFFSET(InputPriceData!E$15,CalculationsAndCharts!$A173+$A$11,IF($C$5,8,0),1,1)) -> 319.869995 | G173: =IF(A173>$A$8,"",OFFSET(InputPriceData!F$15,CalculationsAndCharts!$A173+$A$11,IF($C$5,8,0),1,1)) -> 341.01001 | H173: 352.1159974 | I173: 354.3579956 | J173: 354.6179994 | K173: -2.600038 | L173: FALSE | M173: TRUE | N173: 16 | O173: 4 | P173: 5.714285714 | Q173: 5.714285714 | R173: 7.619047619 | S173: -1.904761905 | T173: 5.714285714 | AX173: 29397300
A174: 142 | B174: =IF(A174>$A$8,"",OFFSET(InputPriceData!B$15,$A174+$A$11,0,1,1)) -> 2020-05-26 | C174: =IF(A174>$A$8,"",OFFSET(InputPriceData!G$15,CalculationsAndCharts!$A174+$A$11,IF($C$5,8,0),1,1)) -> 19269500 | D174: =IF(A174>$A$8,"",OFFSET(InputPriceData!C$15,CalculationsAndCharts!$A174+$A$11,IF($C$5,8,0),1,1)) -> 366.269989 | E174: =IF(A174>$A$8,"",OFFSET(InputPriceData!D$15,CalculationsAndCharts!$A174+$A$11,IF($C$5,8,0),1,1)) -> 367.269989 | F174: =IF(A174>$A$8,"",OFFSET(InputPriceData!E$15,CalculationsAndCharts!$A174+$A$11,IF($C$5,8,0),1,1)) -> 346.880005 | G174: =IF(A174>$A$8,"",OFFSET(InputPriceData!F$15,CalculationsAndCharts!$A174+$A$11,IF($C$5,8,0),1,1)) -> 348.709991 | H174: 354.3579956 | I174: 354.6179994 | J174: 350.3340028 | K174: 42.839966 | L174: TRUE | M174: FALSE | N174: 17 | O174: 3 | P174: 6.666666667 | Q174: 6.666666667 | R174: 8.095238095 | S174: -1.428571429 | T174: 6.666666667 | AX174: 19269500
A175: 143 | B175: =IF(A175>$A$8,"",OFFSET(InputPriceData!B$15,$A175+$A$11,0,1,1)) -> 2020-05-22 | C175: =IF(A175>$A$8,"",OFFSET(InputPriceData!G$15,CalculationsAndCharts!$A175+$A$11,IF($C$5,8,0),1,1)) -> 25969100 | D175: =IF(A175>$A$8,"",OFFSET(InputPriceData!C$15,CalculationsAndCharts!$A175+$A$11,IF($C$5,8,0),1,1)) -> 353.01001 | E175: =IF(A175>$A$8,"",OFFSET(InputPriceData!D$15,CalculationsAndCharts!$A175+$A$11,IF($C$5,8,0),1,1)) -> 363.720001 | F175: =IF(A175>$A$8,"",OFFSET(InputPriceData!E$15,CalculationsAndCharts!$A175+$A$11,IF($C$5,8,0),1,1)) -> 348.529999 | G175: =IF(A175>$A$8,"",OFFSET(InputPriceData!F$15,CalculationsAndCharts!$A175+$A$11,IF($C$5,8,0),1,1)) -> 361.049988 | H175: 354.6179994 | I175: 350.3340028 | J175: 344.376001 | K175: 59.580018 | L175: TRUE | M175: FALSE | N175: 16 | O175: 4 | P175: 5.714285714 | Q175: 5.714285714 | R175: 7.619047619 | S175: -1.904761905 | T175: 5.714285714 | AW175: 25969100
A176: 144 | B176: =IF(A176>$A$8,"",OFFSET(InputPriceData!B$15,$A176+$A$11,0,1,1)) -> 2020-05-21 | C176: =IF(A176>$A$8,"",OFFSET(InputPriceData!G$15,CalculationsAndCharts!$A176+$A$11,IF($C$5,8,0),1,1)) -> 19026700 | D176: =IF(A176>$A$8,"",OFFSET(InputPriceData!C$15,CalculationsAndCharts!$A176+$A$11,IF($C$5,8,0),1,1)) -> 362.059998 | E176: =IF(A176>$A$8,"",OFFSET(InputPriceData!D$15,CalculationsAndCharts!$A176+$A$11,IF($C$5,8,0),1,1)) -> 362.100006 | F176: =IF(A176>$A$8,"",OFFSET(InputPriceData!E$15,CalculationsAndCharts!$A176+$A$11,IF($C$5,8,0),1,1)) -> 349.5 | G176: =IF(A176>$A$8,"",OFFSET(InputPriceData!F$15,CalculationsAndCharts!$A176+$A$11,IF($C$5,8,0),1,1)) -> 351.01001 | H176: 350.3340028 | I176: 344.376001 | J176: 334.8560058 | K176: 95.199952 | L176: TRUE | M176: FALSE | N176: 15 | O176: 5 | P176: 4.761904762 | Q176: 4.761904762 | R176: 7.142857143 | S176: -2.380952381 | T176: 4.761904762 | AX176: 19026700
A177: 145 | B177: =IF(A177>$A$8,"",OFFSET(InputPriceData!B$15,$A177+$A$11,0,1,1)) -> 2020-05-20 | C177: =IF(A177>$A$8,"",OFFSET(InputPriceData!G$15,CalculationsAndCharts!$A177+$A$11,IF($C$5,8,0),1,1)) -> 14688400 | D177: =IF(A177>$A$8,"",OFFSET(InputPriceData!C$15,CalculationsAndCharts!$A177+$A$11,IF($C$5,8,0),1,1)) -> 359.640015 | E177: =IF(A177>$A$8,"",OFFSET(InputPriceData!D$15,CalculationsAndCharts!$A177+$A$11,IF($C$5,8,0),1,1)) -> 361.720001 | F177: =IF(A177>$A$8,"",OFFSET(InputPriceData!E$15,CalculationsAndCharts!$A177+$A$11,IF($C$5,8,0),1,1)) -> 355.549988 | G177: =IF(A177>$A$8,"",OFFSET(InputPriceData!F$15,CalculationsAndCharts!$A177+$A$11,IF($C$5,8,0),1,1)) -> 358.799988 | H177: 344.376001 | I177: 334.8560058 | J177: 326.8320068 | K177: 80.23999 | L177: TRUE | M177: FALSE | N177: 15 | O177: 5 | P177: 4.761904762 | Q177: 4.761904762 | R177: 7.142857143 | S177: -2.380952381 | T177: 4.761904762 | AX177: 14688400
A178: 146 | B178: =IF(A178>$A$8,"",OFFSET(InputPriceData!B$15,$A178+$A$11,0,1,1)) -> 2020-05-19 | C178: =IF(A178>$A$8,"",OFFSET(InputPriceData!G$15,CalculationsAndCharts!$A178+$A$11,IF($C$5,8,0),1,1)) -> 17933000 | D178: =IF(A178>$A$8,"",OFFSET(InputPriceData!C$15,CalculationsAndCharts!$A178+$A$11,IF($C$5,8,0),1,1)) -> 351.609985 | E178: =IF(A178>$A$8,"",OFFSET(InputPriceData!D$15,CalculationsAndCharts!$A178+$A$11,IF($C$5,8,0),1,1)) -> 363.5 | F178: =IF(A178>$A$8,"",OFFSET(InputPriceData!E$15,CalculationsAndCharts!$A178+$A$11,IF($C$5,8,0),1,1)) -> 350.51001 | G178: =IF(A178>$A$8,"",OFFSET(InputPriceData!F$15,CalculationsAndCharts!$A178+$A$11,IF($C$5,8,0),1,1)) -> 352.220001 | H178: 334.8560058 | I178: 326.8320068 | J178: 321.3540038 | K178: 54.78003 | L178: TRUE | M178: FALSE | N178: 14 | O178: 6 | P178: 3.80952381 | Q178: 3.80952381 | R178: 6.666666667 | S178: -2.857142857 | T178: 3.80952381 | AW178: 17933000
A179: 147 | B179: =IF(A179>$A$8,"",OFFSET(InputPriceData!B$15,$A179+$A$11,0,1,1)) -> 2020-05-18 | C179: =IF(A179>$A$8,"",OFFSET(InputPriceData!G$15,CalculationsAndCharts!$A179+$A$11,IF($C$5,8,0),1,1)) -> 19410100 | D179: =IF(A179>$A$8,"",OFFSET(InputPriceData!C$15,CalculationsAndCharts!$A179+$A$11,IF($C$5,8,0),1,1)) -> 350.420013 | E179: =IF(A179>$A$8,"",OFFSET(InputPriceData!D$15,CalculationsAndCharts!$A179+$A$11,IF($C$5,8,0),1,1)) -> 356.660004 | F179: =IF(A179>$A$8,"",OFFSET(InputPriceData!E$15,CalculationsAndCharts!$A179+$A$11,IF($C$5,8,0),1,1)) -> 347.220001 | G179: =IF(A179>$A$8,"",OFFSET(InputPriceData!F$15,CalculationsAndCharts!$A179+$A$11,IF($C$5,8,0),1,1)) -> 350.01001 | H179: 326.8320068 | I179: 321.3540038 | J179: 315.9280028 | K179: 54.26001 | L179: TRUE | M179: FALSE | N179: 14 | O179: 6 | P179: 3.80952381 | Q179: 3.80952381 | R179: 6.666666667 | S179: -2.857142857 | T179: 3.80952381 | AX179: 19410100
A180: 148 | B180: =IF(A180>$A$8,"",OFFSET(InputPriceData!B$15,$A180+$A$11,0,1,1)) -> 2020-05-15 | C180: =IF(A180>$A$8,"",OFFSET(InputPriceData!G$15,CalculationsAndCharts!$A180+$A$11,IF($C$5,8,0),1,1)) -> 24691500 | D180: =IF(A180>$A$8,"",OFFSET(InputPriceData!C$15,CalculationsAndCharts!$A180+$A$11,IF($C$5,8,0),1,1)) -> 315.589996 | E180: =IF(A180>$A$8,"",OFFSET(InputPriceData!D$15,CalculationsAndCharts!$A180+$A$11,IF($C$5,8,0),1,1)) -> 340.019989 | F180: =IF(A180>$A$8,"",OFFSET(InputPriceData!E$15,CalculationsAndCharts!$A180+$A$11,IF($C$5,8,0),1,1)) -> 314.959991 | G180: =IF(A180>$A$8,"",OFFSET(InputPriceData!F$15,CalculationsAndCharts!$A180+$A$11,IF($C$5,8,0),1,1)) -> 339.630005 | H180: 321.3540038 | I180: 315.9280028 | J180: 312.6580016 | K180: 32.700012 | L180: TRUE | M180: FALSE | N180: 14 | O180: 6 | P180: 3.80952381 | Q180: 3.80952381 | R180: 6.666666667 | S180: -2.857142857 | T180: 3.80952381 | AW180: 24691500
A181: 149 | B181: =IF(A181>$A$8,"",OFFSET(InputPriceData!B$15,$A181+$A$11,0,1,1)) -> 2020-05-14 | C181: =IF(A181>$A$8,"",OFFSET(InputPriceData!G$15,CalculationsAndCharts!$A181+$A$11,IF($C$5,8,0),1,1)) -> 15057800 | D181: =IF(A181>$A$8,"",OFFSET(InputPriceData!C$15,CalculationsAndCharts!$A181+$A$11,IF($C$5,8,0),1,1)) -> 313.670013 | E181: =IF(A181>$A$8,"",OFFSET(InputPriceData!D$15,CalculationsAndCharts!$A181+$A$11,IF($C$5,8,0),1,1)) -> 321.440002 | F181: =IF(A181>$A$8,"",OFFSET(InputPriceData!E$15,CalculationsAndCharts!$A181+$A$11,IF($C$5,8,0),1,1)) -> 307.5 | G181: =IF(A181>$A$8,"",OFFSET(InputPriceData!F$15,CalculationsAndCharts!$A181+$A$11,IF($C$5,8,0),1,1)) -> 321.220001 | H181: 315.9280028 | I181: 312.6580016 | J181: 309.976001 | K181: 26.820006 | L181: TRUE | M181: FALSE | N181: 14 | O181: 6 | P181: 3.80952381 | Q181: 3.80952381 | R181: 6.666666667 | S181: -2.857142857 | T181: 3.80952381 | AW181: 15057800
A182: 150 | B182: =IF(A182>$A$8,"",OFFSET(InputPriceData!B$15,$A182+$A$11,0,1,1)) -> 2020-05-13 | C182: =IF(A182>$A$8,"",OFFSET(InputPriceData!G$15,CalculationsAndCharts!$A182+$A$11,IF($C$5,8,0),1,1)) -> 15646300 | D182: =IF(A182>$A$8,"",OFFSET(InputPriceData!C$15,CalculationsAndCharts!$A182+$A$11,IF($C$5,8,0),1,1)) -> 316.700012 | E182: =IF(A182>$A$8,"",OFFSET(InputPriceData!D$15,CalculationsAndCharts!$A182+$A$11,IF($C$5,8,0),1,1)) -> 323.140015 | F182: =IF(A182>$A$8,"",OFFSET(InputPriceData!E$15,CalculationsAndCharts!$A182+$A$11,IF($C$5,8,0),1,1)) -> 303.790009 | G182: =IF(A182>$A$8,"",OFFSET(InputPriceData!F$15,CalculationsAndCharts!$A182+$A$11,IF($C$5,8,0),1,1)) -> 311.200012 | H182: 312.6580016 | I182: 309.976001 | J182: 306.3039978 | K182: 36.720032 | L182: TRUE | M182: FALSE | N182: 14 | O182: 6 | P182: 3.80952381 | Q182: 3.80952381 | R182: 6.666666667 | S182: -2.857142857 | T182: 3.80952381 | AX182: 15646300
A183: 151 | B183: =IF(A183>$A$8,"",OFFSET(InputPriceData!B$15,$A183+$A$11,0,1,1)) -> 2020-05-12 | C183: =IF(A183>$A$8,"",OFFSET(InputPriceData!G$15,CalculationsAndCharts!$A183+$A$11,IF($C$5,8,0),1,1)) -> 12326500 | D183: =IF(A183>$A$8,"",OFFSET(InputPriceData!C$15,CalculationsAndCharts!$A183+$A$11,IF($C$5,8,0),1,1)) -> 324.940002 | E183: =IF(A183>$A$8,"",OFFSET(InputPriceData!D$15,CalculationsAndCharts!$A183+$A$11,IF($C$5,8,0),1,1)) -> 326.899994 | F183: =IF(A183>$A$8,"",OFFSET(InputPriceData!E$15,CalculationsAndCharts!$A183+$A$11,IF($C$5,8,0),1,1)) -> 311.709991 | G183: =IF(A183>$A$8,"",OFFSET(InputPriceData!F$15,CalculationsAndCharts!$A183+$A$11,IF($C$5,8,0),1,1)) -> 312.100006 | H183: 309.976001 | I183: 306.3039978 | J183: 300.0380006 | K183: 62.659972 | L183: TRUE | M183: FALSE | N183: 14 | O183: 6 | P183: 3.80952381 | Q183: 3.80952381 | R183: 6.666666667 | S183: -2.857142857 | T183: 3.80952381 | AX183: 12326500
A184: 152 | B184: =IF(A184>$A$8,"",OFFSET(InputPriceData!B$15,$A184+$A$11,0,1,1)) -> 2020-05-11 | C184: =IF(A184>$A$8,"",OFFSET(InputPriceData!G$15,CalculationsAndCharts!$A184+$A$11,IF($C$5,8,0),1,1)) -> 11726500 | D184: =IF(A184>$A$8,"",OFFSET(InputPriceData!C$15,CalculationsAndCharts!$A184+$A$11,IF($C$5,8,0),1,1)) -> 312.299988 | E184: =IF(A184>$A$8,"",OFFSET(InputPriceData!D$15,CalculationsAndCharts!$A184+$A$11,IF($C$5,8,0),1,1)) -> 324.5 | F184: =IF(A184>$A$8,"",OFFSET(InputPriceData!E$15,CalculationsAndCharts!$A184+$A$11,IF($C$5,8,0),1,1)) -> 311.149994 | G184: =IF(A184>$A$8,"",OFFSET(InputPriceData!F$15,CalculationsAndCharts!$A184+$A$11,IF($C$5,8,0),1,1)) -> 322.619995 | H184: 306.3039978 | I184: 300.0380006 | J184: 294.0940004 | K184: 59.440002 | L184: TRUE | M184: FALSE | N184: 14 | O184: 6 | P184: 3.80952381 | Q184: 3.80952381 | R184: 6.666666667 | S184: -2.857142857 | T184: 3.80952381 | AW184: 11726500
A185: 153 | B185: =IF(A185>$A$8,"",OFFSET(InputPriceData!B$15,$A185+$A$11,0,1,1)) -> 2020-05-08 | C185: =IF(A185>$A$8,"",OFFSET(InputPriceData!G$15,CalculationsAndCharts!$A185+$A$11,IF($C$5,8,0),1,1)) -> 8497700 | D185: =IF(A185>$A$8,"",OFFSET(InputPriceData!C$15,CalculationsAndCharts!$A185+$A$11,IF($C$5,8,0),1,1)) -> 307.75 | E185: =IF(A185>$A$8,"",OFFSET(InputPriceData!D$15,CalculationsAndCharts!$A185+$A$11,IF($C$5,8,0),1,1)) -> 312.75 | F185: =IF(A185>$A$8,"",OFFSET(InputPriceData!E$15,CalculationsAndCharts!$A185+$A$11,IF($C$5,8,0),1,1)) -> 306.390015 | G185: =IF(A185>$A$8,"",OFFSET(InputPriceData!F$15,CalculationsAndCharts!$A185+$A$11,IF($C$5,8,0),1,1)) -> 312.5 | H185: 300.0380006 | I185: 294.0940004 | J185: 291.5760012 | K185: 25.179992 | L185: TRUE | M185: FALSE | N185: 14 | O185: 6 | P185: 3.80952381 | Q185: 3.80952381 | R185: 6.666666667 | S185: -2.857142857 | T185: 3.80952381 | AW185: 8497700
A186: 154 | B186: =IF(A186>$A$8,"",OFFSET(InputPriceData!B$15,$A186+$A$11,0,1,1)) -> 2020-05-07 | C186: =IF(A186>$A$8,"",OFFSET(InputPriceData!G$15,CalculationsAndCharts!$A186+$A$11,IF($C$5,8,0),1,1)) -> 9343300 | D186: =IF(A186>$A$8,"",OFFSET(InputPriceData!C$15,CalculationsAndCharts!$A186+$A$11,IF($C$5,8,0),1,1)) -> 303.380005 | E186: =IF(A186>$A$8,"",OFFSET(InputPriceData!D$15,CalculationsAndCharts!$A186+$A$11,IF($C$5,8,0),1,1)) -> 307.410004 | F186: =IF(A186>$A$8,"",OFFSET(InputPriceData!E$15,CalculationsAndCharts!$A186+$A$11,IF($C$5,8,0),1,1)) -> 301.320007 | G186: =IF(A186>$A$8,"",OFFSET(InputPriceData!F$15,CalculationsAndCharts!$A186+$A$11,IF($C$5,8,0),1,1)) -> 304.869995 | H186: 294.0940004 | I186: 291.5760012 | J186: 291.7099976 | K186: -1.339964 | L186: FALSE | M186: TRUE | N186: 14 | O186: 6 | P186: 3.80952381 | Q186: 3.80952381 | R186: 6.666666667 | S186: -2.857142857 | T186: 3.80952381 | AW186: 9343300
A187: 155 | B187: =IF(A187>$A$8,"",OFFSET(InputPriceData!B$15,$A187+$A$11,0,1,1)) -> 2020-05-06 | C187: =IF(A187>$A$8,"",OFFSET(InputPriceData!G$15,CalculationsAndCharts!$A187+$A$11,IF($C$5,8,0),1,1)) -> 8086600 | D187: =IF(A187>$A$8,"",OFFSET(InputPriceData!C$15,CalculationsAndCharts!$A187+$A$11,IF($C$5,8,0),1,1)) -> 296.929993 | E187: =IF(A187>$A$8,"",OFFSET(InputPriceData!D$15,CalculationsAndCharts!$A187+$A$11,IF($C$5,8,0),1,1)) -> 302 | F187: =IF(A187>$A$8,"",OFFSET(InputPriceData!E$15,CalculationsAndCharts!$A187+$A$11,IF($C$5,8,0),1,1)) -> 295.410004 | G187: =IF(A187>$A$8,"",OFFSET(InputPriceData!F$15,CalculationsAndCharts!$A187+$A$11,IF($C$5,8,0),1,1)) -> 297.790009 | H187: 291.5760012 | I187: 291.7099976 | J187: 291.2339966 | K187: 4.76001 | L187: TRUE | M187: FALSE | N187: 14 | O187: 6 | P187: 3.80952381 | Q187: 3.80952381 | R187: 6.666666667 | S187: -2.857142857 | T187: 3.80952381 | AW187: 8086600
A188: 156 | B188: =IF(A188>$A$8,"",OFFSET(InputPriceData!B$15,$A188+$A$11,0,1,1)) -> 2020-05-05 | C188: =IF(A188>$A$8,"",OFFSET(InputPriceData!G$15,CalculationsAndCharts!$A188+$A$11,IF($C$5,8,0),1,1)) -> 9222400 | D188: =IF(A188>$A$8,"",OFFSET(InputPriceData!C$15,CalculationsAndCharts!$A188+$A$11,IF($C$5,8,0),1,1)) -> 295.470001 | E188: =IF(A188>$A$8,"",OFFSET(InputPriceData!D$15,CalculationsAndCharts!$A188+$A$11,IF($C$5,8,0),1,1)) -> 300.269989 | F188: =IF(A188>$A$8,"",OFFSET(InputPriceData!E$15,CalculationsAndCharts!$A188+$A$11,IF($C$5,8,0),1,1)) -> 291.290009 | G188: =IF(A188>$A$8,"",OFFSET(InputPriceData!F$15,CalculationsAndCharts!$A188+$A$11,IF($C$5,8,0),1,1)) -> 293.73999 | H188: 291.7099976 | I188: 291.2339966 | J188: 292.3919922 | K188: -11.579956 | L188: FALSE | M188: TRUE | N188: 14 | O188: 6 | P188: 3.80952381 | Q188: 3.80952381 | R188: 6.666666667 | S188: -2.857142857 | T188: 3.80952381 | AX188: 9222400
A189: 157 | B189: =IF(A189>$A$8,"",OFFSET(InputPriceData!B$15,$A189+$A$11,0,1,1)) -> 2020-05-04 | C189: =IF(A189>$A$8,"",OFFSET(InputPriceData!G$15,CalculationsAndCharts!$A189+$A$11,IF($C$5,8,0),1,1)) -> 7938900 | D189: =IF(A189>$A$8,"",OFFSET(InputPriceData!C$15,CalculationsAndCharts!$A189+$A$11,IF($C$5,8,0),1,1)) -> 280.880005 | E189: =IF(A189>$A$8,"",OFFSET(InputPriceData!D$15,CalculationsAndCharts!$A189+$A$11,IF($C$5,8,0),1,1)) -> 291.839996 | F189: =IF(A189>$A$8,"",OFFSET(InputPriceData!E$15,CalculationsAndCharts!$A189+$A$11,IF($C$5,8,0),1,1)) -> 280.880005 | G189: =IF(A189>$A$8,"",OFFSET(InputPriceData!F$15,CalculationsAndCharts!$A189+$A$11,IF($C$5,8,0),1,1)) -> 291.290009 | H189: 291.2339966 | I189: 292.3919922 | J189: 293.7539916 | K189: -13.619994 | L189: FALSE | M189: TRUE | N189: 14 | O189: 6 | P189: 3.80952381 | Q189: 3.80952381 | R189: 6.666666667 | S189: -2.857142857 | T189: 3.80952381 | AW189: 7938900
A190: 158 | B190: =IF(A190>$A$8,"",OFFSET(InputPriceData!B$15,$A190+$A$11,0,1,1)) -> 2020-05-01 | C190: =IF(A190>$A$8,"",OFFSET(InputPriceData!G$15,CalculationsAndCharts!$A190+$A$11,IF($C$5,8,0),1,1)) -> 8552400 | D190: =IF(A190>$A$8,"",OFFSET(InputPriceData!C$15,CalculationsAndCharts!$A190+$A$11,IF($C$5,8,0),1,1)) -> 284.350006 | E190: =IF(A190>$A$8,"",OFFSET(InputPriceData!D$15,CalculationsAndCharts!$A190+$A$11,IF($C$5,8,0),1,1)) -> 288.899994 | F190: =IF(A190>$A$8,"",OFFSET(InputPriceData!E$15,CalculationsAndCharts!$A190+$A$11,IF($C$5,8,0),1,1)) -> 280.839996 | G190: =IF(A190>$A$8,"",OFFSET(InputPriceData!F$15,CalculationsAndCharts!$A190+$A$11,IF($C$5,8,0),1,1)) -> 282.779999 | H190: 292.3919922 | I190: 293.7539916 | J190: 292.0999938 | K190: 16.539978 | L190: TRUE | M190: FALSE | N190: 14 | O190: 6 | P190: 3.80952381 | Q190: 3.80952381 | R190: 6.666666667 | S190: -2.857142857 | T190: 3.80952381 | AX190: 8552400
A191: 159 | B191: =IF(A191>$A$8,"",OFFSET(InputPriceData!B$15,$A191+$A$11,0,1,1)) -> 2020-04-30 | C191: =IF(A191>$A$8,"",OFFSET(InputPriceData!G$15,CalculationsAndCharts!$A191+$A$11,IF($C$5,8,0),1,1)) -> 9397900 | D191: =IF(A191>$A$8,"",OFFSET(InputPriceData!C$15,CalculationsAndCharts!$A191+$A$11,IF($C$5,8,0),1,1)) -> 296.290009 | E191: =IF(A191>$A$8,"",OFFSET(InputPriceData!D$15,CalculationsAndCharts!$A191+$A$11,IF($C$5,8,0),1,1)) -> 298.459991 | F191: =IF(A191>$A$8,"",OFFSET(InputPriceData!E$15,CalculationsAndCharts!$A191+$A$11,IF($C$5,8,0),1,1)) -> 291.720001 | G191: =IF(A191>$A$8,"",OFFSET(InputPriceData!F$15,CalculationsAndCharts!$A191+$A$11,IF($C$5,8,0),1,1)) -> 292.279999 | H191: 293.7539916 | I191: 292.0999938 | J191: 289.6379944 | K191: 24.619994 | L191: TRUE | M191: FALSE | N191: 13 | O191: 7 | P191: 2.857142857 | Q191: 2.857142857 | R191: 6.19047619 | S191: -3.333333333 | T191: 2.857142857 | AX191: 9397900
A192: 160 | B192: =IF(A192>$A$8,"",OFFSET(InputPriceData!B$15,$A192+$A$11,0,1,1)) -> 2020-04-29 | C192: =IF(A192>$A$8,"",OFFSET(InputPriceData!G$15,CalculationsAndCharts!$A192+$A$11,IF($C$5,8,0),1,1)) -> 9479000 | D192: =IF(A192>$A$8,"",OFFSET(InputPriceData!C$15,CalculationsAndCharts!$A192+$A$11,IF($C$5,8,0),1,1)) -> 296.769989 | E192: =IF(A192>$A$8,"",OFFSET(InputPriceData!D$15,CalculationsAndCharts!$A192+$A$11,IF($C$5,8,0),1,1)) -> 300.579987 | F192: =IF(A192>$A$8,"",OFFSET(InputPriceData!E$15,CalculationsAndCharts!$A192+$A$11,IF($C$5,8,0),1,1)) -> 293.75 | G192: =IF(A192>$A$8,"",OFFSET(InputPriceData!F$15,CalculationsAndCharts!$A192+$A$11,IF($C$5,8,0),1,1)) -> 298.459991 | H192: 292.0999938 | I192: 289.6379944 | J192: 285.2679994 | K192: 43.69995 | L192: TRUE | M192: FALSE | N192: 13 | O192: 7 | P192: 2.857142857 | Q192: 2.857142857 | R192: 6.19047619 | S192: -3.333333333 | T192: 2.857142857 | AW192: 9479000
A193: 161 | B193: =IF(A193>$A$8,"",OFFSET(InputPriceData!B$15,$A193+$A$11,0,1,1)) -> 2020-04-28 | C193: =IF(A193>$A$8,"",OFFSET(InputPriceData!G$15,CalculationsAndCharts!$A193+$A$11,IF($C$5,8,0),1,1)) -> 11072600 | D193: =IF(A193>$A$8,"",OFFSET(InputPriceData!C$15,CalculationsAndCharts!$A193+$A$11,IF($C$5,8,0),1,1)) -> 303 | E193: =IF(A193>$A$8,"",OFFSET(InputPriceData!D$15,CalculationsAndCharts!$A193+$A$11,IF($C$5,8,0),1,1)) -> 304.200012 | F193: =IF(A193>$A$8,"",OFFSET(InputPriceData!E$15,CalculationsAndCharts!$A193+$A$11,IF($C$5,8,0),1,1)) -> 291.140015 | G193: =IF(A193>$A$8,"",OFFSET(InputPriceData!F$15,CalculationsAndCharts!$A193+$A$11,IF($C$5,8,0),1,1)) -> 291.359985 | H193: 289.6379944 | I193: 285.2679994 | J193: 283.2619996 | K193: 20.059998 | L193: TRUE | M193: FALSE | N193: 13 | O193: 7 | P193: 2.857142857 | Q193: 2.857142857 | R193: 6.19047619 | S193: -3.333333333 | T193: 2.857142857 | AX193: 11072600
A194: 162 | B194: =IF(A194>$A$8,"",OFFSET(InputPriceData!B$15,$A194+$A$11,0,1,1)) -> 2020-04-27 | C194: =IF(A194>$A$8,"",OFFSET(InputPriceData!G$15,CalculationsAndCharts!$A194+$A$11,IF($C$5,8,0),1,1)) -> 11984700 | D194: =IF(A194>$A$8,"",OFFSET(InputPriceData!C$15,CalculationsAndCharts!$A194+$A$11,IF($C$5,8,0),1,1)) -> 294.98999 | E194: =IF(A194>$A$8,"",OFFSET(InputPriceData!D$15,CalculationsAndCharts!$A194+$A$11,IF($C$5,8,0),1,1)) -> 303.5 | F194: =IF(A194>$A$8,"",OFFSET(InputPriceData!E$15,CalculationsAndCharts!$A194+$A$11,IF($C$5,8,0),1,1)) -> 294 | G194: =IF(A194>$A$8,"",OFFSET(InputPriceData!F$15,CalculationsAndCharts!$A194+$A$11,IF($C$5,8,0),1,1)) -> 297.079987 | H194: 285.2679994 | I194: 283.2619996 | J194: 283.8080018 | K194: -5.460022 | L194: FALSE | M194: TRUE | N194: 13 | O194: 7 | P194: 2.857142857 | Q194: 2.857142857 | R194: 6.19047619 | S194: -3.333333333 | T194: 2.857142857 | AW194: 11984700
A195: 163 | B195: =IF(A195>$A$8,"",OFFSET(InputPriceData!B$15,$A195+$A$11,0,1,1)) -> 2020-04-24 | C195: =IF(A195>$A$8,"",OFFSET(InputPriceData!G$15,CalculationsAndCharts!$A195+$A$11,IF($C$5,8,0),1,1)) -> 8816100 | D195: =IF(A195>$A$8,"",OFFSET(InputPriceData!C$15,CalculationsAndCharts!$A195+$A$11,IF($C$5,8,0),1,1)) -> 283.600006 | E195: =IF(A195>$A$8,"",OFFSET(InputPriceData!D$15,CalculationsAndCharts!$A195+$A$11,IF($C$5,8,0),1,1)) -> 289.670013 | F195: =IF(A195>$A$8,"",OFFSET(InputPriceData!E$15,CalculationsAndCharts!$A195+$A$11,IF($C$5,8,0),1,1)) -> 280.600006 | G195: =IF(A195>$A$8,"",OFFSET(InputPriceData!F$15,CalculationsAndCharts!$A195+$A$11,IF($C$5,8,0),1,1)) -> 289.589996 | H195: 283.2619996 | I195: 283.8080018 | J195: 285.9460022 | K195: -21.380004 | L195: FALSE | M195: TRUE | N195: 14 | O195: 6 | P195: 3.80952381 | Q195: 3.80952381 | R195: 6.666666667 | S195: -2.857142857 | T195: 3.80952381 | AW195: 8816100
A196: 164 | B196: =IF(A196>$A$8,"",OFFSET(InputPriceData!B$15,$A196+$A$11,0,1,1)) -> 2020-04-23 | C196: =IF(A196>$A$8,"",OFFSET(InputPriceData!G$15,CalculationsAndCharts!$A196+$A$11,IF($C$5,8,0),1,1)) -> 10604000 | D196: =IF(A196>$A$8,"",OFFSET(InputPriceData!C$15,CalculationsAndCharts!$A196+$A$11,IF($C$5,8,0),1,1)) -> 287.839996 | E196: =IF(A196>$A$8,"",OFFSET(InputPriceData!D$15,CalculationsAndCharts!$A196+$A$11,IF($C$5,8,0),1,1)) -> 293.140015 | F196: =IF(A196>$A$8,"",OFFSET(InputPriceData!E$15,CalculationsAndCharts!$A196+$A$11,IF($C$5,8,0),1,1)) -> 283 | G196: =IF(A196>$A$8,"",OFFSET(InputPriceData!F$15,CalculationsAndCharts!$A196+$A$11,IF($C$5,8,0),1,1)) -> 284.01001 | H196: 283.8080018 | I196: 285.9460022 | J196: 284.8840026 | K196: 10.619996 | L196: TRUE | M196: FALSE | N196: 15 | O196: 5 | P196: 4.761904762 | Q196: 4.761904762 | R196: 7.142857143 | S196: -2.380952381 | T196: 4.761904762 | AX196: 10604000
A197: 165 | B197: =IF(A197>$A$8,"",OFFSET(InputPriceData!B$15,$A197+$A$11,0,1,1)) -> 2020-04-22 | C197: =IF(A197>$A$8,"",OFFSET(InputPriceData!G$15,CalculationsAndCharts!$A197+$A$11,IF($C$5,8,0),1,1)) -> 12118200 | D197: =IF(A197>$A$8,"",OFFSET(InputPriceData!C$15,CalculationsAndCharts!$A197+$A$11,IF($C$5,8,0),1,1)) -> 277.230011 | E197: =IF(A197>$A$8,"",OFFSET(InputPriceData!D$15,CalculationsAndCharts!$A197+$A$11,IF($C$5,8,0),1,1)) -> 287.869995 | F197: =IF(A197>$A$8,"",OFFSET(InputPriceData!E$15,CalculationsAndCharts!$A197+$A$11,IF($C$5,8,0),1,1)) -> 275.399994 | G197: =IF(A197>$A$8,"",OFFSET(InputPriceData!F$15,CalculationsAndCharts!$A197+$A$11,IF($C$5,8,0),1,1)) -> 286.149994 | H197: 285.9460022 | I197: 284.8840026 | J197: 287.772003 | K197: -28.880004 | L197: FALSE | M197: TRUE | N197: 15 | O197: 5 | P197: 4.761904762 | Q197: 4.761904762 | R197: 7.142857143 | S197: -2.380952381 | T197: 4.761904762 | AW197: 12118200
A198: 166 | B198: =IF(A198>$A$8,"",OFFSET(InputPriceData!B$15,$A198+$A$11,0,1,1)) -> 2020-04-21 | C198: =IF(A198>$A$8,"",OFFSET(InputPriceData!G$15,CalculationsAndCharts!$A198+$A$11,IF($C$5,8,0),1,1)) -> 18379000 | D198: =IF(A198>$A$8,"",OFFSET(InputPriceData!C$15,CalculationsAndCharts!$A198+$A$11,IF($C$5,8,0),1,1)) -> 282.309998 | E198: =IF(A198>$A$8,"",OFFSET(InputPriceData!D$15,CalculationsAndCharts!$A198+$A$11,IF($C$5,8,0),1,1)) -> 284.769989 | F198: =IF(A198>$A$8,"",OFFSET(InputPriceData!E$15,CalculationsAndCharts!$A198+$A$11,IF($C$5,8,0),1,1)) -> 267.109985 | G198: =IF(A198>$A$8,"",OFFSET(InputPriceData!F$15,CalculationsAndCharts!$A198+$A$11,IF($C$5,8,0),1,1)) -> 269.51001 | H198: 284.8840026 | I198: 287.772003 | J198: 284.3320066 | K198: 34.399964 | L198: TRUE | M198: FALSE | N198: 16 | O198: 4 | P198: 5.714285714 | Q198: 5.714285714 | R198: 7.619047619 | S198: -1.904761905 | T198: 5.714285714 | AX198: 18379000
A199: 167 | B199: =IF(A199>$A$8,"",OFFSET(InputPriceData!B$15,$A199+$A$11,0,1,1)) -> 2020-04-20 | C199: =IF(A199>$A$8,"",OFFSET(InputPriceData!G$15,CalculationsAndCharts!$A199+$A$11,IF($C$5,8,0),1,1)) -> 11234700 | D199: =IF(A199>$A$8,"",OFFSET(InputPriceData!C$15,CalculationsAndCharts!$A199+$A$11,IF($C$5,8,0),1,1)) -> 287.23999 | E199: =IF(A199>$A$8,"",OFFSET(InputPriceData!D$15,CalculationsAndCharts!$A199+$A$11,IF($C$5,8,0),1,1)) -> 293.5 | F199: =IF(A199>$A$8,"",OFFSET(InputPriceData!E$15,CalculationsAndCharts!$A199+$A$11,IF($C$5,8,0),1,1)) -> 285.269989 | G199: =IF(A199>$A$8,"",OFFSET(InputPriceData!F$15,CalculationsAndCharts!$A199+$A$11,IF($C$5,8,0),1,1)) -> 287.049988 | H199: 287.772003 | I199: 284.3320066 | J199: 278.4580076 | K199: 58.73999 | L199: TRUE | M199: FALSE | N199: 15 | O199: 5 | P199: 4.761904762 | Q199: 4.761904762 | R199: 7.142857143 | S199: -2.380952381 | T199: 4.761904762 | AX199: 11234700
A200: 168 | B200: =IF(A200>$A$8,"",OFFSET(InputPriceData!B$15,$A200+$A$11,0,1,1)) -> 2020-04-17 | C200: =IF(A200>$A$8,"",OFFSET(InputPriceData!G$15,CalculationsAndCharts!$A200+$A$11,IF($C$5,8,0),1,1)) -> 13478000 | D200: =IF(A200>$A$8,"",OFFSET(InputPriceData!C$15,CalculationsAndCharts!$A200+$A$11,IF($C$5,8,0),1,1)) -> 298 | E200: =IF(A200>$A$8,"",OFFSET(InputPriceData!D$15,CalculationsAndCharts!$A200+$A$11,IF($C$5,8,0),1,1)) -> 298.859985 | F200: =IF(A200>$A$8,"",OFFSET(InputPriceData!E$15,CalculationsAndCharts!$A200+$A$11,IF($C$5,8,0),1,1)) -> 286.940002 | G200: =IF(A200>$A$8,"",OFFSET(InputPriceData!F$15,CalculationsAndCharts!$A200+$A$11,IF($C$5,8,0),1,1)) -> 292.320007 | H200: 284.3320066 | I200: 278.4580076 | J200: 272.9080076 | K200: 55.5 | L200: TRUE | M200: FALSE | N200: 14 | O200: 6 | P200: 3.80952381 | Q200: 3.80952381 | R200: 6.666666667 | S200: -2.857142857 | T200: 3.80952381 | AX200: 13478000
A201: 169 | B201: =IF(A201>$A$8,"",OFFSET(InputPriceData!B$15,$A201+$A$11,0,1,1)) -> 2020-04-16 | C201: =IF(A201>$A$8,"",OFFSET(InputPriceData!G$15,CalculationsAndCharts!$A201+$A$11,IF($C$5,8,0),1,1)) -> 18640500 | D201: =IF(A201>$A$8,"",OFFSET(InputPriceData!C$15,CalculationsAndCharts!$A201+$A$11,IF($C$5,8,0),1,1)) -> 287.079987 | E201: =IF(A201>$A$8,"",OFFSET(InputPriceData!D$15,CalculationsAndCharts!$A201+$A$11,IF($C$5,8,0),1,1)) -> 299 | F201: =IF(A201>$A$8,"",OFFSET(InputPriceData!E$15,CalculationsAndCharts!$A201+$A$11,IF($C$5,8,0),1,1)) -> 286.549988 | G201: =IF(A201>$A$8,"",OFFSET(InputPriceData!F$15,CalculationsAndCharts!$A201+$A$11,IF($C$5,8,0),1,1)) -> 294.700012 | H201: 278.4580076 | I201: 272.9080076 | J201: 268.5460082 | K201: 43.619994 | L201: TRUE | M201: FALSE | N201: 13 | O201: 7 | P201: 2.857142857 | Q201: 2.857142857 | R201: 6.19047619 | S201: -3.333333333 | T201: 2.857142857 | AW201: 18640500
A202: 170 | B202: =IF(A202>$A$8,"",OFFSET(InputPriceData!B$15,$A202+$A$11,0,1,1)) -> 2020-04-15 | C202: =IF(A202>$A$8,"",OFFSET(InputPriceData!G$15,CalculationsAndCharts!$A202+$A$11,IF($C$5,8,0),1,1)) -> 9153700 | D202: =IF(A202>$A$8,"",OFFSET(InputPriceData!C$15,CalculationsAndCharts!$A202+$A$11,IF($C$5,8,0),1,1)) -> 277.200012 | E202: =IF(A202>$A$8,"",OFFSET(InputPriceData!D$15,CalculationsAndCharts!$A202+$A$11,IF($C$5,8,0),1,1)) -> 284.170013 | F202: =IF(A202>$A$8,"",OFFSET(InputPriceData!E$15,CalculationsAndCharts!$A202+$A$11,IF($C$5,8,0),1,1)) -> 275.380005 | G202: =IF(A202>$A$8,"",OFFSET(InputPriceData!F$15,CalculationsAndCharts!$A202+$A$11,IF($C$5,8,0),1,1)) -> 280.839996 | H202: 272.9080076 | I202: 268.5460082 | J202: 265.4360046 | K202: 31.100036 | L202: TRUE | M202: FALSE | N202: 12 | O202: 8 | P202: 1.904761905 | Q202: 1.904761905 | R202: 5.714285714 | S202: -3.80952381 | T202: 1.904761905 | AW202: 9153700
A203: 171 | B203: =IF(A203>$A$8,"",OFFSET(InputPriceData!B$15,$A203+$A$11,0,1,1)) -> 2020-04-14 | C203: =IF(A203>$A$8,"",OFFSET(InputPriceData!G$15,CalculationsAndCharts!$A203+$A$11,IF($C$5,8,0),1,1)) -> 13273700 | D203: =IF(A203>$A$8,"",OFFSET(InputPriceData!C$15,CalculationsAndCharts!$A203+$A$11,IF($C$5,8,0),1,1)) -> 275 | E203: =IF(A203>$A$8,"",OFFSET(InputPriceData!D$15,CalculationsAndCharts!$A203+$A$11,IF($C$5,8,0),1,1)) -> 285.320007 | F203: =IF(A203>$A$8,"",OFFSET(InputPriceData!E$15,CalculationsAndCharts!$A203+$A$11,IF($C$5,8,0),1,1)) -> 273.890015 | G203: =IF(A203>$A$8,"",OFFSET(InputPriceData!F$15,CalculationsAndCharts!$A203+$A$11,IF($C$5,8,0),1,1)) -> 283.950012 | H203: 268.5460082 | I203: 265.4360046 | J203: 260.2480042 | K203: 51.880004 | L203: TRUE | M203: FALSE | N203: 11 | O203: 9 | P203: 0.9523809524 | Q203: 0.9523809524 | R203: 5.238095238 | S203: -4.285714286 | T203: 0.9523809524 | AW203: 13273700
A204: 172 | B204: =IF(A204>$A$8,"",OFFSET(InputPriceData!B$15,$A204+$A$11,0,1,1)) -> 2020-04-13 | C204: =IF(A204>$A$8,"",OFFSET(InputPriceData!G$15,CalculationsAndCharts!$A204+$A$11,IF($C$5,8,0),1,1)) -> 9960200 | D204: =IF(A204>$A$8,"",OFFSET(InputPriceData!C$15,CalculationsAndCharts!$A204+$A$11,IF($C$5,8,0),1,1)) -> 260.549988 | E204: =IF(A204>$A$8,"",OFFSET(InputPriceData!D$15,CalculationsAndCharts!$A204+$A$11,IF($C$5,8,0),1,1)) -> 270.200012 | F204: =IF(A204>$A$8,"",OFFSET(InputPriceData!E$15,CalculationsAndCharts!$A204+$A$11,IF($C$5,8,0),1,1)) -> 257 | G204: =IF(A204>$A$8,"",OFFSET(InputPriceData!F$15,CalculationsAndCharts!$A204+$A$11,IF($C$5,8,0),1,1)) -> 269.850006 | H204: 265.4360046 | I204: 260.2480042 | J204: 258.752002 | K204: 14.960022 | L204: TRUE | M204: FALSE | N204: 10 | O204: 10 | P204: 0 | Q204: 0 | R204: 4.761904762 | S204: -4.761904762 | T204: 0 | AW204: 9960200
A205: 173 | B205: =IF(A205>$A$8,"",OFFSET(InputPriceData!B$15,$A205+$A$11,0,1,1)) -> 2020-04-09 | C205: =IF(A205>$A$8,"",OFFSET(InputPriceData!G$15,CalculationsAndCharts!$A205+$A$11,IF($C$5,8,0),1,1)) -> 13156200 | D205: =IF(A205>$A$8,"",OFFSET(InputPriceData!C$15,CalculationsAndCharts!$A205+$A$11,IF($C$5,8,0),1,1)) -> 272 | E205: =IF(A205>$A$8,"",OFFSET(InputPriceData!D$15,CalculationsAndCharts!$A205+$A$11,IF($C$5,8,0),1,1)) -> 272.920013 | F205: =IF(A205>$A$8,"",OFFSET(InputPriceData!E$15,CalculationsAndCharts!$A205+$A$11,IF($C$5,8,0),1,1)) -> 260.420013 | G205: =IF(A205>$A$8,"",OFFSET(InputPriceData!F$15,CalculationsAndCharts!$A205+$A$11,IF($C$5,8,0),1,1)) -> 262.950012 | H205: 260.2480042 | I205: 258.752002 | J205: 253.976001 | K205: 47.76001 | L205: TRUE | M205: FALSE | N205: 9 | O205: 11 | P205: -0.9523809524 | Q205: 0.9523809524 | R205: 4.285714286 | S205: -5.238095238 | T205: -0.9523809524 | AX205: 13156200
A206: 174 | B206: =IF(A206>$A$8,"",OFFSET(InputPriceData!B$15,$A206+$A$11,0,1,1)) -> 2020-04-08 | C206: =IF(A206>$A$8,"",OFFSET(InputPriceData!G$15,CalculationsAndCharts!$A206+$A$11,IF($C$5,8,0),1,1)) -> 13561100 | D206: =IF(A206>$A$8,"",OFFSET(InputPriceData!C$15,CalculationsAndCharts!$A206+$A$11,IF($C$5,8,0),1,1)) -> 263.410004 | E206: =IF(A206>$A$8,"",OFFSET(InputPriceData!D$15,CalculationsAndCharts!$A206+$A$11,IF($C$5,8,0),1,1)) -> 267.950012 | F206: =IF(A206>$A$8,"",OFFSET(InputPriceData!E$15,CalculationsAndCharts!$A206+$A$11,IF($C$5,8,0),1,1)) -> 260.600006 | G206: =IF(A206>$A$8,"",OFFSET(InputPriceData!F$15,CalculationsAndCharts!$A206+$A$11,IF($C$5,8,0),1,1)) -> 266.950012 | H206: 258.752002 | I206: 253.976001 | J206: 254.8900024 | K206: -9.140014 | L206: FALSE | M206: TRUE | N206: 8 | O206: 12 | P206: -1.904761905 | Q206: 1.904761905 | R206: 3.80952381 | S206: -5.714285714 | T206: -1.904761905 | AW206: 13561100
... 1076 more rows

Sheet Follow
A1: Stocks and Indexes I wish to follow
A3: To ease following a stock, enter a Yahoo Finance acceptable symbol in column "A" anywhere below cell "A9".
A4: Thereafter you may doubleclick the cell containing a symbol of interest to initiate data retrieval and charting for that symbol.
A7: Symbol
A8: To | B8: Description | C8: Last Trade as of most recent check
A9: Follow | C9: Date | D9: Time | E9: Open | F9: High | G9: Low | H9: Close | I9: Volume | J9: Change | K9: Retrieved @
A10: A | B10: Agilent Technologies, Inc. (A) -NYSE (Daily) | C10: 2020-03-09 | D10: 16:04:00 | E10: 72.589996 | F10: 74.190002 | G10: 70.169998 | H10: 70.75 | I10: 4591093 | J10: -7.809998 | K10: 2020-03-09T16:59:21
A11: AA | B11: Alcoa Corporation (AA) -NYSE (Daily) | C11: 2020-01-31 | D11: 16:04:00 | E11: 14.01 | F11: 14.24 | G11: 13.62 | H11: 13.95 | I11: 9931500 | J11: -0.34 | K11: 2020-02-02T15:07:13
A12: AAL | B12: American Airlines Group Inc. (AAL) -NasdaqGS (Daily) | C12: 2020-03-09 | D12: 16:00:00 | E12: 14.87 | F12: 15.79 | G12: 14.46 | H12: 14.75 | I12: 41078614 | J12: -1.22 | K12: 2020-03-09T17:00:15
A13: AAPL | B13: Apple Inc. (AAPL) -NasdaqGS (Daily) | C13: 2020-06-17 | D13: 16:00:00 | E13: 355.149994 | F13: 355.369995 | G13: 351.089996 | H13: 351.589996 | I13: 27604481 | J13: -0.489991 | K13: 2020-06-17T17:45:34
A14: ADM | B14: Archer-Daniels-Midland Company (ADM) -NYSE (Weekly) | C14: 2018-07-13 | D14: 16:00:00 | E14: 47.5 | F14: 47.84 | G14: 47.169998 | H14: 47.57 | I14: 2402809 | J14: 0
A15: ADBE | B15: Adobe Inc. (ADBE) -NasdaqGS (Daily) | C15: 2020-06-17 | D15: 16:00:00 | E15: 414 | F15: 417.425995 | G15: 411.429993 | H15: 413.48999 | I15: 2026063 | J15: 1.819977 | K15: 2020-06-17T17:42:59
A16: ALGN | B16: Align Technology, Inc. (ALGN) -NasdaqGS (Daily) | C16: 2020-01-30 | D16: 16:00:00 | E16: 248.740005 | F16: 264.450012 | G16: 248.350006 | H16: 262.890015 | I16: 1833160 | J16: 1.290009
A17: AMC | B17: AMC Entertainment Holdings, Inc. (AMC) -NYSE (Weekly) | C17: 2018-07-13 | D17: 16:02:00 | E17: 17.049999 | F17: 17.15 | G17: 16.525 | H17: 17.049999 | I17: 1442776 | J17: 0
A18: AMD | B18: Advanced Micro Devices, Inc. (AMD) -NasdaqGS (Daily) | C18: 2020-08-19 | D18: 12:40:00 | E18: 81.775703 | F18: 81.849998 | G18: 80.449997 | H18: 80.760002 | I18: 18434143 | J18: -0.900002 | K18: 2020-08-19T12:40:49
A19: BSX | B19: Boston Scientific Corporation C (BSX) -NYQ (Daily) | C19: 2015-03-13 | D19: 16:01:00 | E19: 16.84 | F19: 16.91 | G19: 16.44 | H19: 16.61 | I19: 7262460 | J19: -0.28
A20: CASY | B20: Casey's General Stores, Inc. (CASY) -NasdaqGS (Daily) | C20: 2019-04-10 | D20: 16:00:00 | E20: 128.979996 | F20: 130.330002 | G20: 128.779999 | H20: 130.179993 | I20: 351300 | J20: 1.489991
A21: CAT | B21: Caterpillar Inc. (CAT) -NYSE (Daily) | C21: 2020-03-13 | D21: 11:48:00 | E21: 98.389999 | F21: 99.910004 | G21: 90.150101 | H21: 90.269997 | I21: 3568294 | J21: -1.990005 | K21: 2020-03-13T11:48:53
A22: CSCO | B22: Cisco Systems, In (CSCO) -NasdaqNM (Daily) | C22: 2015-02-19 | D22: 16:00:00 | E22: 29.32 | F22: 29.39 | G22: 29.13 | H22: 29.31 | I22: 21469012 | J22: -0.18
A23: CVS | B23: CVS Health Corporation (CVS) -NYSE (Daily) | C23: 2020-03-09 | D23: 16:07:00 | E23: 59.75 | F23: 63 | G23: 59.599998 | H23: 61.299999 | I23: 13065424 | J23: -2.850003 | K23: 2020-03-09T17:51:54
A24: DIS | B24: The Walt Disney Company (DIS) -NYSE (Daily) | C24: 2020-03-09 | D24: 16:07:00 | E24: 108.690002 | F24: 110.43 | G24: 104.279999 | H24: 104.349998 | I24: 26101127 | J24: -10.919999 | K24: 2020-03-09T16:59:51
A25: F | B25: Ford Motor Company (F) -NYSE (Daily) | C25: 2020-01-31 | D25: 16:03:00 | E25: 8.78 | F25: 8.84 | G25: 8.74 | H25: 8.82 | I25: 59781000 | J25: -0.02 | K25: 2020-02-02T15:09:03
A26: FAS | B26: Direxion Daily Financial Bull 3X ETF (FAS) -NYSEArca (Daily) | C26: 2017-10-13 | D26: 16:00:00 | E26: 58.099998 | F26: 58.939999 | G26: 57.43 | H26: 58.450001 | I26: 1709300 | J26: 0.07
A27: FB | B27: Facebook, Inc. (FB) -NasdaqGS (Daily) | C27: 2020-02-14 | D27: 16:00:00 | E27: 214 | F27: 214.929993 | G27: 212.649994 | H27: 214.179993 | I27: 10727400 | J27: 1.039994 | K27: 2020-02-15T17:19:34
A28: GSK | B28: GlaxoSmithKline plc (GSK) -NYSE (Daily) | C28: 2019-08-14 | D28: 11:15:00 | E28: 40.060001 | F28: 40.209999 | G28: 39.895 | H28: 39.93 | I28: 941699 | J28: -0.310002
A29: GDX | B29: VanEck Vectors Gold Miners ETF (GDX) -NYSEArca (Daily) | C29: 2020-01-31 | D29: 16:00:00 | E29: 28.799999 | F29: 29.24 | G29: 28.76 | H29: 28.99 | I29: 41946000 | J29: 0.26 | K29: 2020-02-02T15:11:17
A30: GOOG | B30: Alphabet Inc. (GOOG) -NasdaqGS (Daily) | C30: 2020-02-14 | D30: 16:00:00 | E30: 1515.599976 | F30: 1520.73999 | G30: 1507.339966 | H30: 1520.73999 | I30: 1196700 | J30: 6.079956 | K30: 2020-02-15T17:20:39
A31: HAL | B31: Halliburton Company (HAL) -NYSE (Daily) | C31: 2020-09-17 | D31: 11:11:00 | E31: 14.73 | F31: 14.945 | G31: 14.57 | H31: 14.91 | I31: 4265279 | J31: -0.16 | K31: 2020-09-17T11:11:52
A32: HD | B32: The Home Depot, Inc. (HD) -NYSE (Daily) | C32: 2020-03-13 | D32: 11:54:00 | E32: 200.449997 | F32: 201.179993 | G32: 192.270096 | H32: 193.449997 | I32: 3274582 | J32: 2.860001 | K32: 2020-03-13T11:54:29
A33: HSY | B33: The Hershey Company (HSY) -NYSE (Daily) | C33: 2019-04-10 | D33: 16:02:00 | E33: 116.099998 | F33: 116.43 | G33: 115.75 | H33: 116.309998 | I33: 574600 | J33: 0.290001
A34: HTLD | B34: Heartland Express, Inc. (HTLD) -NasdaqGS (Daily) | C34: 2020-03-09 | D34: 16:00:00 | E34: 17.33 | F34: 17.690001 | G34: 16.82 | H34: 16.879999 | I34: 284762 | J34: -1.280001 | K34: 2020-03-09T17:00:56
A35: IBM | B35: International Business Machines Corporation (IBM) -NYSE (Daily) | C35: 2019-08-14 | D35: 11:24:00 | E35: 133.910004 | F35: 134.160004 | G35: 132.130005 | H35: 132.460098 | I35: 1281528 | J35: -1.659897
A36: INTC | B36: Intel Corporation (INTC) -NasdaqGS (Daily) | C36: 2020-02-14 | D36: 16:00:00 | E36: 67.519997 | F36: 67.860001 | G36: 66.82 | H36: 67.269997 | I36: 13402800 | J36: -0.170005 | K36: 2020-02-15T17:21:41
A37: JAH | B37: Jarden Corporation Common Stock (JAH) -NYQ (Daily) | C37: 2016-01-08 | D37: 16:02:00 | E37: 53.82 | F37: 53.88 | G37: 52.65 | H37: 52.73 | I37: 4519480 | J37: -0.81
A38: JNJ | B38: Johnson & Johnson (JNJ) -NYSE (Daily) | C38: 2019-08-14 | D38: 10:33:00 | E38: 132.529999 | F38: 132.539993 | G38: 131.419998 | H38: 131.759995 | I38: 870520 | J38: -0.169998
A39: KO | B39: The Coca-Cola Company (KO) -NYSE (Daily) | C39: 2020-03-09 | D39: 16:07:00 | E39: 52.049999 | F39: 53.580002 | G39: 51.474998 | H39: 51.860001 | I39: 27771279 | J39: -3.399997 | K39: 2020-03-09T17:05:43
A40: LOW | B40: Lowe's Companies, Inc. (LOW) -NYSE (Daily) | C40: 2020-03-09 | D40: 16:03:00 | E40: 97.82 | F40: 99.82 | G40: 93.150101 | H40: 94.220001 | I40: 8167579 | J40: -11.089997 | K40: 2020-03-09T16:57:19
A41: LMT | B41: Lockheed Martin Corporation (LMT) -NYSE (Daily) | C41: 2020-03-09 | D41: 16:06:00 | E41: 359.980011 | F41: 369.470001 | G41: 351.269989 | H41: 352.029999 | I41: 3067426 | J41: -30.440002 | K41: 2020-03-09T17:06:13
A42: MCD | B42: McDonald's Corporation (MCD) -NYSE (Daily) | C42: 2020-03-09 | D42: 16:01:00 | E42: 187.669998 | F42: 194.470001 | G42: 184.100006 | H42: 186.860001 | I42: 7601343 | J42: -12 | K42: 2020-03-09T16:58:16
A43: MDT | B43: Medtronic plc (MDT) -NYSE (Daily) | C43: 2020-03-09 | D43: 16:07:00 | E43: 94.019997 | F43: 95.470001 | G43: 91.709999 | H43: 92.400002 | I43: 9000931 | J43: -6.659996 | K43: 2020-03-09T17:48:45
A44: MGM | B44: MGM Resorts International (MGM) -NYSE (Daily) | C44: 2020-03-09 | D44: 16:02:00 | E44: 18.6 | F44: 19.58 | G44: 17.530001 | H44: 17.879999 | I44: 26050818 | J44: -2.51 | K44: 2020-03-09T17:13:53
A45: MO | B45: Altria Group, Inc. (MO) -NYSE (Daily) | C45: 2020-01-31 | D45: 16:05:00 | E45: 48.25 | F45: 48.799999 | G45: 47.240002 | H45: 47.529999 | I45: 11790800 | J45: -0.470001 | K45: 2020-02-02T15:20:55
A46: MSFT | B46: Microsoft Corporation (MSFT) -NasdaqGS (Daily) | C46: 2020-03-09 | D46: 16:00:00 | E46: 151 | F46: 157.75 | G46: 150 | H46: 150.619995 | I46: 69167627 | J46: -10.950012 | K46: 2020-03-09T17:06:41
A47: NFLX | B47: Netflix, Inc. (NFLX) -NasdaqGS (Daily) | C47: 2020-03-09 | D47: 16:00:00 | E47: 343.859985 | F47: 357.470001 | G47: 341.720886 | H47: 346.48999 | I47: 6746188 | J47: -22.480011 | K47: 2020-03-09T17:23:37
A48: NUGT | B48: Direxion Daily Gold Miners Index Bull 3X Shares (NUGT) -NYSEArca (Daily) | C48: 2020-01-31 | D48: 16:00:00 | E48: 32.439999 | F48: 33.830002 | G48: 32.240002 | H48: 33.02 | I48: 11325200 | J48: 0.84 | K48: 2020-02-02T15:21:51
A49: NVS | B49: Novartis AG (NVS) -NYSE (Daily) | C49: 2020-03-06 | D49: 16:02:00 | E49: 84.330002 | F49: 85.830002 | G49: 83.970001 | H49: 85.720001 | I49: 5624700 | J49: -0.089997 | K49: 2020-03-08T16:56:35
A50: NVDA | B50: NVIDIA Corporation (NVDA) -NasdaqGS (Daily) | C50: 2020-12-14 | D50: 16:00:00 | E50: 523.515015 | F50: 535.549988 | G50: 523.099976 | H50: 532.349976 | I50: 6580666 | J50: 11.819947 | K50: 2020-12-14T18:31:17
A51: PRU | B51: Prudential Financial, Inc. (PRU) -NYSE (Daily) | C51: 2020-03-09 | D51: 16:02:00 | E51: 63.75 | F51: 65.830002 | G51: 57.375 | H51: 58.240002 | I51: 7614493 | J51: -11.569996 | K51: 2020-03-09T17:11:43
A52: PSEC | B52: Prospect Capital Corporation (PSEC) -NasdaqGS (Daily) | C52: 2020-02-14 | D52: 16:00:00 | E52: 6.53 | F52: 6.56 | G52: 6.51 | H52: 6.52 | I52: 1235500 | J52: -0.04 | K52: 2020-02-15T14:43:16
A53: RPM | B53: RPM International Inc. (RPM) -NYSE (Daily) | C53: 2020-03-09 | D53: 16:02:00 | E53: 64.470001 | F53: 66.730003 | G53: 63.5 | H53: 65.290001 | I53: 1115882 | J53: -2.919998 | K53: 2020-03-09T17:10:08
A54: RSP | B54: Invesco S&P 500 Equal Weight ETF (RSP) -NYSEArca (Daily) | C54: 2020-01-31 | D54: 16:00:00 | E54: 115.279999 | F54: 115.32 | G54: 113.230003 | H54: 113.540001 | I54: 747600 | J54: -2.309997 | K54: 2020-02-02T15:28:52
A55: SPR | B55: Spirit AeroSystems Holdings, Inc. (SPR) -NYSE (Daily) | C55: 2020-03-09 | D55: 16:06:00 | E55: 43.700001 | F55: 43.880001 | G55: 41.5 | H55: 42.139999 | I55: 2091368 | J55: -5.23 | K55: 2020-03-09T17:09:37
A56: SQ | B56: Square, Inc. (SQ) -NYSE (Daily) | C56: 2020-10-02 | D56: 16:00:00 | E56: 164.050003 | F56: 171.240005 | G56: 163.800995 | H56: 169.610001 | I56: 11150500 | J56: 1.119996 | K56: 2020-10-04T20:00:52
A57: SWKS | B57: Skyworks Solutions, Inc. (SWKS) -NasdaqGS (Daily) | C57: 2020-01-31 | D57: 16:00:00 | E57: 115.5 | F57: 115.739998 | G57: 112.720001 | H57: 113.150002 | I57: 2444600 | J57: -3.080001 | K57: 2020-02-02T15:26:46
A58: TOL | B58: Toll Brothers, Inc. (TOL) -NYSE (Daily) | C58: 2020-03-09 | D58: 16:07:00 | E58: 34.759998 | F58: 35.314999 | G58: 32.060001 | H58: 34.110001 | I58: 3127968 | J58: -2.86 | K58: 2020-03-09T17:12:09
A59: TSLA | B59: Tesla, Inc. (TSLA) -NasdaqGS (Daily) | C59: 2020-03-13 | D59: 12:08:00 | E59: 595 | F59: 607.570007 | G59: 502.01001 | H59: 510 | I59: 12224537 | J59: -50.549988 | K59: 2020-03-13T12:08:39
A60: TXN | B60: Texas Instruments Incorporated (TXN) -NasdaqGS (Daily) | C60: 2020-06-19 | D60: 11:30:00 | E60: 128.059998 | F60: 128.179993 | G60: 126.07 | H60: 126.370003 | I60: 2078988 | J60: 0.39 | K60: 2020-06-19T11:31:00
A61: UNP | B61: Union Pacific Corporation (UNP) -NYSE (Daily) | C61: 2020-03-09 | D61: 16:07:00 | E61: 145.199997 | F61: 145.580002 | G61: 133.179993 | H61: 135.839996 | I61: 9380024 | J61: -20.25 | K61: 2020-03-09T17:11:21
A62: VZ | B62: Verizon Communications Inc. (VZ) -NYSE (Daily) | C62: 2019-04-10 | D62: 16:00:00 | E62: 58.400002 | F62: 58.700001 | G62: 58.360001 | H62: 58.610001 | I62: 8022000 | J62: 0.209999
A63: WBA | B63: Walgreens Boots Alliance, Inc. (WBA) -NasdaqGS (Daily) | C63: 2020-01-31 | D63: 16:00:00 | E63: 51.709999 | F63: 51.919998 | G63: 50.66 | H63: 50.849998 | I63: 6532300 | J63: -1.100003 | K63: 2020-02-02T15:28:06
A64: WMT | B64: Walmart Inc. (WMT) -NYSE (Daily) | C64: 2020-03-09 | D64: 16:01:00 | E64: 113.82 | F64: 120.629997 | G64: 112.730003 | H64: 117.160004 | I64: 19567750 | J64: -0.069999 | K64: 2020-03-09T17:10:39
A66: ^AEX | B66: AEX-INDEX (^AEX) -Amsterdam (Daily) | C66: 2020-03-09 | D66: 18:05:00 | E66: 506.950012 | F66: 506.950012 | G66: 485.730011 | H66: 490.660004 | I66: 0 | J66: -40.629974 | K66: 2020-03-09T17:41:58
A67: ^AORD | B67: ALL ORDINARIES (^AORD) -ASX (Daily) | C67: 2020-03-09 | D67: 16:17:00 | E67: 6472.399902 | F67: 6287.299805 | G67: 5822.399902 | H67: 5822.399902 | I67: 0 | J67: -465.100098 | K67: 2020-03-09T17:45:59
A68: ^DJI | B68: Dow Jones Industrial Average (^DJI) -DJI (Daily) | C68: 2020-03-09 | D68: 16:59:00 | E68: 24992.35938 | F68: 24992.35938 | G68: 23706.07031 | H68: 23851.01953 | I68: 750431083 | J68: -2013.759766 | K68: 2020-03-09T17:37:29
A69: ^FTSE | B69: FTSE 100 (^FTSE) -FTSE Index (Daily) | C69: 2020-03-09 | D69: 16:45:00 | E69: 6462.549805 | F69: 6462.549805 | G69: 5891.560059 | H69: 5965.77002 | I69: 0 | J69: -496.830078 | K69: 2020-03-09T17:43:57
A70: ^GSPC | B70: S&P 500 (^GSPC) -SNP (Daily) | C70: 2020-06-12 | D70: 17:38:00 | E70: 3071.040039 | F70: 3088.419922 | G70: 2984.469971 | H70: 3041.310059 | I70: 5832250000 | J70: 39.209961 | K70: 2020-06-13T08:34:26
A71: ^HSI | B71: HANG SENG INDEX (^HSI) -HKSE (Daily) | C71: 2020-03-09 | D71: 16:08:00 | E71: 25134.01953 | F71: 25321.2793 | G71: 24948.38086 | H71: 25040.46094 | I71: 0 | J71: -1106.208984 | K71: 2020-03-09T17:39:06
A72: ^MID | B72: S&P MID CAP 400 INDEX (^MID) -NYSE (Daily) | C72: 2020-02-14 | D72: 16:06:00 | E72: 2099.459961 | F72: 2100.51001 | G72: 2089.610107 | H72: 2096.610107 | I72: 0 | J72: -0.679932 | K72: 2020-02-14T21:04:41
A73: ^NDX | B73: NASDAQ 100 (^NDX) -Nasdaq GIDS (Daily) | C73: 2020-02-14 | D73: 16:51:00 | E73: 9613.881836 | F73: 9634.750977 | G73: 9583.083008 | H73: 9623.580078 | I73: 469910279 | J73: 27.879883 | K73: 2020-02-14T16:52:02
A74: ^NYA | B74: NYSE COMPOSITE (DJ) (^NYA) -NYSE (Daily) | C74: 2020-03-13 | D74: 13:53:00 | E74: 10445.44043 | F74: 10642.39844 | G74: 10060.35352 | H74: 10464.54883 | I74: 0 | J74: 403.789062 | K74: 2020-03-13T14:08:31
A75: ^OEX | B75: S&P 100 INDEX (^OEX) -Chicago Options (Daily) | C75: 2019-09-13 | D75: 16:56:00 | E75: 1332.27002 | F75: 1334.420044 | G75: 1328.73999 | H75: 1330.969971 | I75: 3520060000 | J75: -1.010009
A76: ^RUT | B76: Russell 2000 (^RUT) -Chicago Options (Daily) | C76: 2019-09-13 | D76: 16:30:00 | E76: 1579.22998 | F76: 1589.449951 | G76: 1577.109985 | H76: 1578.140015 | I76: 35200600 | J76: 3.070069
A77: ^SSEC | B77: SSE Composite Index (^SSEC) -Shanghai (Daily) | C77: 2020-03-09 | D77: 15:00:00 | E77: 3039.939453 | F77: 2989.205078 | G77: 2940.713867 | H77: 2943.290771 | I77: 2801367936 | J77: -388.231202 | K77: 2020-03-09T17:38:09
A78: ^VIX | B78: CBOE Volatility Index (^VIX) -Chicago Options (Daily) | C78: 2020-03-09 | D78: 16:14:00 | E78: 41.939999 | F78: 62.119999 | G78: 41.939999 | H78: 54.459999 | I78: 0 | J78: 12.52 | K78: 2020-03-09T17:38:36
A79: IWM | B79: iShares Russell 2000 ETF (IWM) -NYSEArca (Daily) | C79: 2018-04-13 | D79: 16:00:00 | E79: 155.289993 | F79: 155.330002 | G79: 153.509995 | H79: 153.949997 | I79: 19710100 | J79: -0.809998
A80: QQQ | B80: Invesco QQQ Trust (QQQ) -NasdaqGM (Daily) | C80: 2020-08-27 | D80: 15:01:00 | E80: 293.079987 | F80: 293.851013 | G80: 288.704987 | H80: 291.994995 | I80: 41822663 | J80: 0.035004 | K80: 2020-08-27T15:02:03
A81: XLE | B81: Energy Select Sector SPDR Fund (XLE) -NYSEArca (Daily) | C81: 2020-07-10 | D81: 16:00:00 | E81: 34.240002 | F81: 35.580002 | G81: 34.240002 | H81: 35.540001 | I81: 25223900 | J81: 1.100002 | K81: 2020-07-11T16:34:13
A82: SPY | B82: SPDR S&P 500 ETF Trust (SPY) -NYSEArca (Daily) | C82: 2020-10-05 | D82: 13:14:00 | E82: 336.059998 | F82: 338.869995 | G82: 336.01001 | H82: 338.730011 | I82: 18602671 | J82: 4.890015 | K82: 2020-10-05T13:15:00
A84: ACAD | B84: ACADIA Pharmaceut (ACAD) -NasdaqNM (Daily) | C84: 2014-07-21 | D84: 16:00:00 | E84: 20.13 | F84: 20.55 | G84: 19.8101 | H84: 20.31 | I84: 691016
A85: CLDX | B85: Celldex Therapeut (CLDX) -NasdaqNM (Daily) | C85: 2015-02-02 | D85: 16:00:00 | E85: 21.47 | F85: 21.69 | G85: 20.11 | H85: 21.02 | I85: 1570418 | J85: -0.4
A86: ICPT | B86: Intercept Pharmac (ICPT) -NasdaqNM (Daily) | C86: 2014-07-21 | D86: 16:00:00 | E86: 215.97 | F86: 218.43 | G86: 213.05 | H86: 218.14 | I86: 191276
A87: INO | B87: Inovio Pharmaceut (INO) -AMEX (Daily) | C87: 2014-07-21 | D87: 16:00:00 | E87: 10.3 | F87: 11.08 | G87: 10.1 | H87: 11.01 | I87: 1800796
A88: JCP | B88: J. C. Penney Company, Inc. (JCP) -NYSE (Daily) | C88: 2017-12-07 | D88: 16:01:00 | E88: 3.34 | F88: 3.4 | G88: 3.25 | H88: 3.27 | I88: 14485464 | J88: -0.07
A89: LCI | B89: Lannett Co Inc Co (LCI) -NYSE (Daily) | C89: 2014-07-21 | D89: 16:02:00 | E89: 38.09 | F89: 38.803 | G89: 36.5101 | H89: 37.76 | I89: 611367
A90: NPSP | B90: NPS Pharmaceutica (NPSP) -NasdaqNM (Daily) | C90: 2014-07-21 | D90: 15:59:00 | E90: 28.75 | F90: 29.43 | G90: 28.31 | H90: 29.29 | I90: 1126758
A91: PBYI | B91: Puma Biotechnolog (PBYI) -NYSE (Daily) | C91: 2014-07-21 | D91: 16:02:00 | E91: 58.27 | F91: 59.46 | G91: 57.39 | H91: 58.98 | I91: 348030
